{"text_format":"3","workbook":"xlsx","n_sheets":5,"sheets":["البدء","المصروفات المخططة","المصروفات الفعلية","فروق المصروفات","تحليل المصروفات"],"not_rendered":{"charts":3,"images":3,"defined_names":1},"read":"whole","date_system":"1900"}

{"sheet":"البدء","index":0,"n_rows":8,"n_cols":2,"rows_kept":8}
[null,"حول هذا القالب"]
[null,"استخدم المصنف \"ميزانية مصروفات الأعمال\" لتعقب \"المصروفات الفعلية\" والمخططة\" و\"الفروق\"."]
[null,"قم بتعبئة \"اسم الشركة\" وإضافة \"شعار\"."]
[null,"أدخل التفاصيل في الجداول في ورقة العمل \"المصروفات المخططة\" و\"المصروفات الفعلية\"."]
[null,"يتم تحديث الجداول تلقائياً في ورقة العمل \"فروق المصروفات\" والمخططات في ورقة العمل \"تحليل المصروفات\""]
[null,"ملاحظة: "]
[null,"تم توفير إرشادات إضافية في العمود A في كل ورقة عمل. تم إخفاء هذا النص عن قصد. لإزالة النص، حدد العمود A، ثم حدد \"حذف\". لإظهار النص، حدد العمود A، ثم قم بتغيير لون الخط."]
[null,"لمعرفة المزيد حول الجداول، اضغط على SHIFT ثم F10 داخل جدول، وحدد خيار \"جدول\"، ثم حدد \"النص البديل\""]

{"sheet":"المصروفات المخططة","index":1,"n_rows":37,"n_cols":18,"rows_kept":37,"merged":[[1,1,2,3],[1,10,1,12],[1,13,2,14],[2,10,2,12],[3,17,12,19],[8,1,8,2],[19,1,19,2],[28,1,28,2],[33,1,33,2]]}
["أدخل \"تكاليف الموظفين المخططة\" و\"تكاليف المكاتب\" و\"تكاليف التسويق\" و\"تكاليف التدريب أو السفر\" في الجداول ذات الصلة في ورقة العمل هذه. يتم حساب الإجماليات تلقائياً. توجد تعليمات مفيدة حول كيفية استخدام ورقة العمل هذه في الخلايا الموجودة في هذا العمود. السهم لأسفل لبدء الاستخدام.",{"$nulls":14}," "]
["أدخل \"اسم الشركة\" في الخلية الموجودة على اليسار والشعار في الخلية N2. يوجد عنوان ورقة العمل في الخلية K2.","اسم الشركة",{"$nulls":8},"تقديرات المصروفات التفصيلية",null,null,"يوجد شعار العنصر النائب في هذه الخلية."]
["يوجد تلميح في الخلية K3.",{"$nulls":9},"الخلايا المظللة هي العمليات الحسابية."]
["توجد التسمية \"المصروفات المخططة\" في الخلية الموجودة على اليسار، والأشهر في الخلايا من C4 إلى N4، والتسمية \"السنة\" في O4، وإرشادات \"كيفية استخدام هذا القالب\" في الخلية R4.","المصروفات المخططة","يناير","فبراير","مارس","أبريل","مايو","يونيو","يوليو","أغسطس","سبتمبر","أكتوبر","نوفمبر","ديسمبر","السنة",null,null,"تلميح: كيفية استخدام هذا القالب\nسيتم احتساب البيانات المدخلة في الخلايا البيضاء في أوراق العمل \"المصروفات المخططة\" و\"االمصروفات الفعلية\"، وسيتم حساب \"فروق المصروفات\" و\"تحليل المصروفات\" لك. إذا قمت بإضافة صف في ورقة واحدة، فيجب أن يطابق الأوراق الأخرى."]
["أدخل \"تكاليف الموظفين\" في الجدول \"خطة الموظفين\" بدءاً من الخلية الموجودة على اليسار. توجد الإرشادات التالية في الخلية A10.","تكاليف الموظفين","يناير","فبراير","مارس","أبريل","مايو","يونيو","يوليو","أغسطس","سبتمبر","أكتوبر","نوفمبر","ديسمبر","السنة"]
[null,"الأجور",{"v":85000,"d":"ر.س.‏ 85,000.00"},{"v":85000,"d":"ر.س.‏ 85,000.00"},{"v":85000,"d":"ر.س.‏ 85,000.00"},{"v":87500,"d":"ر.س.‏ 87,500.00"},{"v":87500,"d":"ر.س.‏ 87,500.00"},{"v":87500,"d":"ر.س.‏ 87,500.00"},{"v":87500,"d":"ر.س.‏ 87,500.00"},{"v":92400,"d":"ر.س.‏ 92,400.00"},{"v":92400,"d":"ر.س.‏ 92,400.00"},{"v":92400,"d":"ر.س.‏ 92,400.00"},{"v":92400,"d":"ر.س.‏ 92,400.00"},{"v":92400,"d":"ر.س.‏ 92,400.00"},{"$f":"SUM(C6:N6)","v":{"v":1067000,"d":"ر.س.‏ 1,067,000.00"}}]
[null,"الفوائد",{"$f":"C6*0.27","v":{"v":22950,"d":"ر.س.‏ 22,950.00"}},{"v":22950,"d":"ر.س.‏ 22,950.00"},{"v":22950,"d":"ر.س.‏ 22,950.00"},{"v":23625,"d":"ر.س.‏ 23,625.00"},{"v":23625,"d":"ر.س.‏ 23,625.00"},{"v":23625,"d":"ر.س.‏ 23,625.00"},{"v":23625,"d":"ر.س.‏ 23,625.00"},{"v":24948,"d":"ر.س.‏ 24,948.00"},{"v":24948,"d":"ر.س.‏ 24,948.00"},{"v":24948,"d":"ر.س.‏ 24,948.00"},{"v":24948,"d":"ر.س.‏ 24,948.00"},{"v":24948,"d":"ر.س.‏ 24,948.00"},{"$f":"SUM(C7:N7)","v":{"v":288090,"d":"ر.س.‏ 288,090.00"}}]
[null,"الإجمالي الفرعي",{"$f":"SUBTOTAL(109,خطة_الموظفين[يناير])","v":{"v":107950,"d":"ر.س.‏ 107,950.00"}},{"$f":"SUBTOTAL(109,خطة_الموظفين[فبراير])","v":{"v":107950,"d":"ر.س.‏ 107,950.00"}},{"$f":"SUBTOTAL(109,خطة_الموظفين[مارس])","v":{"v":107950,"d":"ر.س.‏ 107,950.00"}},{"$f":"SUBTOTAL(109,خطة_الموظفين[أبريل])","v":{"v":111125,"d":"ر.س.‏ 111,125.00"}},{"$f":"SUBTOTAL(109,خطة_الموظفين[مايو])","v":{"v":111125,"d":"ر.س.‏ 111,125.00"}},{"$f":"SUBTOTAL(109,خطة_الموظفين[يونيو])","v":{"v":111125,"d":"ر.س.‏ 111,125.00"}},{"$f":"SUBTOTAL(109,خطة_الموظفين[يوليو])","v":{"v":111125,"d":"ر.س.‏ 111,125.00"}},{"$f":"SUBTOTAL(109,خطة_الموظفين[أغسطس])","v":{"v":117348,"d":"ر.س.‏ 117,348.00"}},{"$f":"SUBTOTAL(109,خطة_الموظفين[سبتمبر])","v":{"v":117348,"d":"ر.س.‏ 117,348.00"}},{"$f":"SUBTOTAL(109,خطة_الموظفين[أكتوبر])","v":{"v":117348,"d":"ر.س.‏ 117,348.00"}},{"$f":"SUBTOTAL(109,خطة_الموظفين[نوفمبر])","v":{"v":117348,"d":"ر.س.‏ 117,348.00"}},{"$f":"SUBTOTAL(109,خطة_الموظفين[ديسمبر])","v":{"v":117348,"d":"ر.س.‏ 117,348.00"}},{"$f":"SUBTOTAL(109,خطة_الموظفين[السنة])","v":{"v":1355090,"d":"ر.س.‏ 1,355,090.00"}}]
[]
["أدخل \"تكاليف المكتب\" في الجدول \"خطة المكتب\" بدءاً من الخلية الموجودة على اليسار. توجد الإرشادات التالية في الخلية A21.","تكاليف المكتب","يناير","فبراير","مارس","أبريل","مايو","يونيو","يوليو","أغسطس","سبتمبر","أكتوبر","نوفمبر","ديسمبر","السنة"]
[null,"تأجير المكتب",{"v":9800,"d":"ر.س.‏ 9,800.00"},{"v":9800,"d":"ر.س.‏ 9,800.00"},{"v":9800,"d":"ر.س.‏ 9,800.00"},{"v":9800,"d":"ر.س.‏ 9,800.00"},{"v":9800,"d":"ر.س.‏ 9,800.00"},{"v":9800,"d":"ر.س.‏ 9,800.00"},{"v":9800,"d":"ر.س.‏ 9,800.00"},{"v":9800,"d":"ر.س.‏ 9,800.00"},{"v":9800,"d":"ر.س.‏ 9,800.00"},{"v":9800,"d":"ر.س.‏ 9,800.00"},{"v":9800,"d":"ر.س.‏ 9,800.00"},{"v":9800,"d":"ر.س.‏ 9,800.00"},{"$f":"SUM(C11:N11)","v":{"v":117600,"d":"ر.س.‏ 117,600.00"}}]
[null,"وقود",null,{"v":400,"d":"ر.س.‏ 400.00"},{"v":400,"d":"ر.س.‏ 400.00"},{"v":100,"d":"ر.س.‏ 100.00"},{"v":100,"d":"ر.س.‏ 100.00"},{"v":100,"d":"ر.س.‏ 100.00"},{"v":100,"d":"ر.س.‏ 100.00"},{"v":100,"d":"ر.س.‏ 100.00"},{"v":100,"d":"ر.س.‏ 100.00"},{"v":100,"d":"ر.س.‏ 100.00"},{"v":400,"d":"ر.س.‏ 400.00"},{"v":400,"d":"ر.س.‏ 400.00"},{"v":2300,"d":"ر.س.‏ 2,300.00"}]
[null,"كهرباء",{"v":300,"d":"ر.س.‏ 300.00"},{"v":300,"d":"ر.س.‏ 300.00"},{"v":300,"d":"ر.س.‏ 300.00"},{"v":300,"d":"ر.س.‏ 300.00"},{"v":300,"d":"ر.س.‏ 300.00"},{"v":300,"d":"ر.س.‏ 300.00"},{"v":300,"d":"ر.س.‏ 300.00"},{"v":300,"d":"ر.س.‏ 300.00"},{"v":300,"d":"ر.س.‏ 300.00"},{"v":300,"d":"ر.س.‏ 300.00"},{"v":300,"d":"ر.س.‏ 300.00"},{"v":300,"d":"ر.س.‏ 300.00"},{"v":3600,"d":"ر.س.‏ 3,600.00"}]
[null,"ماء",{"v":40,"d":"ر.س.‏ 40.00"},{"v":40,"d":"ر.س.‏ 40.00"},{"v":40,"d":"ر.س.‏ 40.00"},{"v":40,"d":"ر.س.‏ 40.00"},{"v":40,"d":"ر.س.‏ 40.00"},{"v":40,"d":"ر.س.‏ 40.00"},{"v":40,"d":"ر.س.‏ 40.00"},{"v":40,"d":"ر.س.‏ 40.00"},{"v":40,"d":"ر.س.‏ 40.00"},{"v":40,"d":"ر.س.‏ 40.00"},{"v":40,"d":"ر.س.‏ 40.00"},{"v":40,"d":"ر.س.‏ 40.00"},{"v":480,"d":"ر.س.‏ 480.00"}]
[null,"رقم الهاتف",{"v":250,"d":"ر.س.‏ 250.00"},{"v":250,"d":"ر.س.‏ 250.00"},{"v":250,"d":"ر.س.‏ 250.00"},{"v":250,"d":"ر.س.‏ 250.00"},{"v":250,"d":"ر.س.‏ 250.00"},{"v":250,"d":"ر.س.‏ 250.00"},{"v":250,"d":"ر.س.‏ 250.00"},{"v":250,"d":"ر.س.‏ 250.00"},{"v":250,"d":"ر.س.‏ 250.00"},{"v":250,"d":"ر.س.‏ 250.00"},{"v":250,"d":"ر.س.‏ 250.00"},{"v":250,"d":"ر.س.‏ 250.00"},{"v":3000,"d":"ر.س.‏ 3,000.00"}]
[null,"الوصول للإنترنت",{"v":180,"d":"ر.س.‏ 180.00"},{"v":180,"d":"ر.س.‏ 180.00"},{"v":180,"d":"ر.س.‏ 180.00"},{"v":180,"d":"ر.س.‏ 180.00"},{"v":180,"d":"ر.س.‏ 180.00"},{"v":180,"d":"ر.س.‏ 180.00"},{"v":180,"d":"ر.س.‏ 180.00"},{"v":180,"d":"ر.س.‏ 180.00"},{"v":180,"d":"ر.س.‏ 180.00"},{"v":180,"d":"ر.س.‏ 180.00"},{"v":180,"d":"ر.س.‏ 180.00"},{"v":180,"d":"ر.س.‏ 180.00"},{"v":2160,"d":"ر.س.‏ 2,160.00"}]
[null,"مستلزمات المكتب",{"v":200,"d":"ر.س.‏ 200.00"},{"v":200,"d":"ر.س.‏ 200.00"},{"v":200,"d":"ر.س.‏ 200.00"},{"v":200,"d":"ر.س.‏ 200.00"},{"v":200,"d":"ر.س.‏ 200.00"},{"v":200,"d":"ر.س.‏ 200.00"},{"v":200,"d":"ر.س.‏ 200.00"},{"v":200,"d":"ر.س.‏ 200.00"},{"v":200,"d":"ر.س.‏ 200.00"},{"v":200,"d":"ر.س.‏ 200.00"},{"v":200,"d":"ر.س.‏ 200.00"},{"v":200,"d":"ر.س.‏ 200.00"},{"v":2400,"d":"ر.س.‏ 2,400.00"}]
[null,"الأمان",{"v":600,"d":"ر.س.‏ 600.00"},{"v":600,"d":"ر.س.‏ 600.00"},{"v":600,"d":"ر.س.‏ 600.00"},{"v":600,"d":"ر.س.‏ 600.00"},{"v":600,"d":"ر.س.‏ 600.00"},{"v":600,"d":"ر.س.‏ 600.00"},{"v":600,"d":"ر.س.‏ 600.00"},{"v":600,"d":"ر.س.‏ 600.00"},{"v":600,"d":"ر.س.‏ 600.00"},{"v":600,"d":"ر.س.‏ 600.00"},{"v":600,"d":"ر.س.‏ 600.00"},{"v":600,"d":"ر.س.‏ 600.00"},{"v":7200,"d":"ر.س.‏ 7,200.00"}]
[null,"الإجمالي الفرعي",{"$f":"SUBTOTAL(109,خطة_المكتب[يناير])","v":{"v":11370,"d":"ر.س.‏ 11,370.00"}},{"$f":"SUBTOTAL(109,خطة_المكتب[فبراير])","v":{"v":11770,"d":"ر.س.‏ 11,770.00"}},{"$f":"SUBTOTAL(109,خطة_المكتب[مارس])","v":{"v":11770,"d":"ر.س.‏ 11,770.00"}},{"$f":"SUBTOTAL(109,خطة_المكتب[أبريل])","v":{"v":11470,"d":"ر.س.‏ 11,470.00"}},{"$f":"SUBTOTAL(109,خطة_المكتب[مايو])","v":{"v":11470,"d":"ر.س.‏ 11,470.00"}},{"$f":"SUBTOTAL(109,خطة_المكتب[يونيو])","v":{"v":11470,"d":"ر.س.‏ 11,470.00"}},{"$f":"SUBTOTAL(109,خطة_المكتب[يوليو])","v":{"v":11470,"d":"ر.س.‏ 11,470.00"}},{"$f":"SUBTOTAL(109,خطة_المكتب[أغسطس])","v":{"v":11470,"d":"ر.س.‏ 11,470.00"}},{"$f":"SUBTOTAL(109,خطة_المكتب[سبتمبر])","v":{"v":11470,"d":"ر.س.‏ 11,470.00"}},{"$f":"SUBTOTAL(109,خطة_المكتب[أكتوبر])","v":{"v":11470,"d":"ر.س.‏ 11,470.00"}},{"$f":"SUBTOTAL(109,خطة_المكتب[نوفمبر])","v":{"v":11770,"d":"ر.س.‏ 11,770.00"}},{"$f":"SUBTOTAL(109,خطة_المكتب[ديسمبر])","v":{"v":11770,"d":"ر.س.‏ 11,770.00"}},{"$f":"SUBTOTAL(109,خطة_المكتب[السنة])","v":{"v":138740,"d":"ر.س.‏ 138,740.00"}}]
[]
["أدخل \"تكاليف التسويق\" في الجدول \"خطة التسويق\" بدءاً من الخلية الموجودة على اليسار. توجد الإرشادات التالية في الخلية A30.","تكاليف التسويق","يناير","فبراير","مارس","أبريل","مايو","يونيو","يوليو","أغسطس","سبتمبر","أكتوبر","نوفمبر","ديسمبر","السنة"]
[null,"استضافة موقع الويب",{"v":500,"d":"ر.س.‏ 500.00"},{"v":500,"d":"ر.س.‏ 500.00"},{"v":500,"d":"ر.س.‏ 500.00"},{"v":500,"d":"ر.س.‏ 500.00"},{"v":500,"d":"ر.س.‏ 500.00"},{"v":500,"d":"ر.س.‏ 500.00"},{"v":500,"d":"ر.س.‏ 500.00"},{"v":500,"d":"ر.س.‏ 500.00"},{"v":500,"d":"ر.س.‏ 500.00"},{"v":500,"d":"ر.س.‏ 500.00"},{"v":500,"d":"ر.س.‏ 500.00"},{"v":500,"d":"ر.س.‏ 500.00"},{"$f":"SUM(C22:N22)","v":{"v":6000,"d":"ر.س.‏ 6,000.00"}}]
[null,"تحديثات موقع الويب",{"v":200,"d":"ر.س.‏ 200.00"},{"v":200,"d":"ر.س.‏ 200.00"},{"v":200,"d":"ر.س.‏ 200.00"},{"v":200,"d":"ر.س.‏ 200.00"},{"v":200,"d":"ر.س.‏ 200.00"},{"v":1000,"d":"ر.س.‏ 1,000.00"},{"v":200,"d":"ر.س.‏ 200.00"},{"v":200,"d":"ر.س.‏ 200.00"},{"v":200,"d":"ر.س.‏ 200.00"},{"v":200,"d":"ر.س.‏ 200.00"},{"v":200,"d":"ر.س.‏ 200.00"},{"v":1000,"d":"ر.س.‏ 1,000.00"},{"v":4000,"d":"ر.س.‏ 4,000.00"}]
[null,"إعداد الضمانات",{"v":5000,"d":"ر.س.‏ 5,000.00"},{"v":0,"d":"ر.س.‏ 0.00"},{"v":0,"d":"ر.س.‏ 0.00"},{"v":5000,"d":"ر.س.‏ 5,000.00"},{"v":0,"d":"ر.س.‏ 0.00"},{"v":0,"d":"ر.س.‏ 0.00"},{"v":5000,"d":"ر.س.‏ 5,000.00"},{"v":0,"d":"ر.س.‏ 0.00"},{"v":0,"d":"ر.س.‏ 0.00"},{"v":5000,"d":"ر.س.‏ 5,000.00"},{"v":0,"d":"ر.س.‏ 0.00"},{"v":0,"d":"ر.س.‏ 0.00"},{"v":20000,"d":"ر.س.‏ 20,000.00"}]
[null,"طباعة الضمانات",{"v":200,"d":"ر.س.‏ 200.00"},{"v":200,"d":"ر.س.‏ 200.00"},{"v":200,"d":"ر.س.‏ 200.00"},{"v":200,"d":"ر.س.‏ 200.00"},{"v":200,"d":"ر.س.‏ 200.00"},{"v":200,"d":"ر.س.‏ 200.00"},{"v":200,"d":"ر.س.‏ 200.00"},{"v":200,"d":"ر.س.‏ 200.00"},{"v":200,"d":"ر.س.‏ 200.00"},{"v":200,"d":"ر.س.‏ 200.00"},{"v":200,"d":"ر.س.‏ 200.00"},{"v":200,"d":"ر.س.‏ 200.00"},{"v":2400,"d":"ر.س.‏ 2,400.00"}]
[null,"أحداث التسويق",{"v":2000,"d":"ر.س.‏ 2,000.00"},{"v":2000,"d":"ر.س.‏ 2,000.00"},{"v":2000,"d":"ر.س.‏ 2,000.00"},{"v":5000,"d":"ر.س.‏ 5,000.00"},{"v":2000,"d":"ر.س.‏ 2,000.00"},{"v":2000,"d":"ر.س.‏ 2,000.00"},{"v":2000,"d":"ر.س.‏ 2,000.00"},{"v":5000,"d":"ر.س.‏ 5,000.00"},{"v":2000,"d":"ر.س.‏ 2,000.00"},{"v":2000,"d":"ر.س.‏ 2,000.00"},{"v":2000,"d":"ر.س.‏ 2,000.00"},{"v":5000,"d":"ر.س.‏ 5,000.00"},{"v":33000,"d":"ر.س.‏ 33,000.00"}]
[null,"المصروفات المتنوعة",{"v":200,"d":"ر.س.‏ 200.00"},{"v":200,"d":"ر.س.‏ 200.00"},{"v":200,"d":"ر.س.‏ 200.00"},{"v":200,"d":"ر.س.‏ 200.00"},{"v":200,"d":"ر.س.‏ 200.00"},{"v":200,"d":"ر.س.‏ 200.00"},{"v":200,"d":"ر.س.‏ 200.00"},{"v":200,"d":"ر.س.‏ 200.00"},{"v":200,"d":"ر.س.‏ 200.00"},{"v":200,"d":"ر.س.‏ 200.00"},{"v":200,"d":"ر.س.‏ 200.00"},{"v":200,"d":"ر.س.‏ 200.00"},{"v":2400,"d":"ر.س.‏ 2,400.00"}]
[null,"الإجمالي الفرعي",{"$f":"SUBTOTAL(109,خطة_التسويق[يناير])","v":{"v":8100,"d":"ر.س.‏ 8,100.00"}},{"$f":"SUBTOTAL(109,خطة_التسويق[فبراير])","v":{"v":3100,"d":"ر.س.‏ 3,100.00"}},{"$f":"SUBTOTAL(109,خطة_التسويق[مارس])","v":{"v":3100,"d":"ر.س.‏ 3,100.00"}},{"$f":"SUBTOTAL(109,خطة_التسويق[أبريل])","v":{"v":11100,"d":"ر.س.‏ 11,100.00"}},{"$f":"SUBTOTAL(109,خطة_التسويق[مايو])","v":{"v":3100,"d":"ر.س.‏ 3,100.00"}},{"$f":"SUBTOTAL(109,خطة_التسويق[يونيو])","v":{"v":3900,"d":"ر.س.‏ 3,900.00"}},{"$f":"SUBTOTAL(109,خطة_التسويق[يوليو])","v":{"v":8100,"d":"ر.س.‏ 8,100.00"}},{"$f":"SUBTOTAL(109,خطة_التسويق[أغسطس])","v":{"v":6100,"d":"ر.س.‏ 6,100.00"}},{"$f":"SUBTOTAL(109,خطة_التسويق[سبتمبر])","v":{"v":3100,"d":"ر.س.‏ 3,100.00"}},{"$f":"SUBTOTAL(109,خطة_التسويق[أكتوبر])","v":{"v":8100,"d":"ر.س.‏ 8,100.00"}},{"$f":"SUBTOTAL(109,خطة_التسويق[نوفمبر])","v":{"v":3100,"d":"ر.س.‏ 3,100.00"}},{"$f":"SUBTOTAL(109,خطة_التسويق[ديسمبر])","v":{"v":6900,"d":"ر.س.‏ 6,900.00"}},{"$f":"SUBTOTAL(109,خطة_التسويق[السنة])","v":{"v":67800,"d":"ر.س.‏ 67,800.00"}}]
[]
["أدخل \"تكاليف التدريب والسفر\" في الجدول \"خطة التدريب والسفر\" بدءاً من الخلية الموجودة على اليسار. توجد الإرشادات التالية في الخلية A35.","التدريب/السفر","يناير","فبراير","مارس","أبريل","مايو","يونيو","يوليو","أغسطس","سبتمبر","أكتوبر","نوفمبر","ديسمبر","السنة"]
[null,"صفوف التدريب",{"v":2000,"d":"ر.س.‏ 2,000.00"},{"v":2000,"d":"ر.س.‏ 2,000.00"},{"v":2000,"d":"ر.س.‏ 2,000.00"},{"v":2000,"d":"ر.س.‏ 2,000.00"},{"v":2000,"d":"ر.س.‏ 2,000.00"},{"v":2000,"d":"ر.س.‏ 2,000.00"},{"v":2000,"d":"ر.س.‏ 2,000.00"},{"v":2000,"d":"ر.س.‏ 2,000.00"},{"v":2000,"d":"ر.س.‏ 2,000.00"},{"v":2000,"d":"ر.س.‏ 2,000.00"},{"v":2000,"d":"ر.س.‏ 2,000.00"},{"v":2000,"d":"ر.س.‏ 2,000.00"},{"$f":"SUM(C31:N31)","v":{"v":24000,"d":"ر.س.‏ 24,000.00"}}]
[null,"تكاليف السفر ذات الصلة بالتدريب",{"v":2000,"d":"ر.س.‏ 2,000.00"},{"v":2000,"d":"ر.س.‏ 2,000.00"},{"v":2000,"d":"ر.س.‏ 2,000.00"},{"v":2000,"d":"ر.س.‏ 2,000.00"},{"v":2000,"d":"ر.س.‏ 2,000.00"},{"v":2000,"d":"ر.س.‏ 2,000.00"},{"v":2000,"d":"ر.س.‏ 2,000.00"},{"v":2000,"d":"ر.س.‏ 2,000.00"},{"v":2000,"d":"ر.س.‏ 2,000.00"},{"v":2000,"d":"ر.س.‏ 2,000.00"},{"v":2000,"d":"ر.س.‏ 2,000.00"},{"v":2000,"d":"ر.س.‏ 2,000.00"},{"$f":"SUM(C32:N32)","v":{"v":24000,"d":"ر.س.‏ 24,000.00"}}]
[null,"الإجمالي الفرعي",{"$f":"SUBTOTAL(109,خطة_السفر_والتدريب[يناير])","v":{"v":4000,"d":"ر.س.‏ 4,000.00"}},{"$f":"SUBTOTAL(109,خطة_السفر_والتدريب[فبراير])","v":{"v":4000,"d":"ر.س.‏ 4,000.00"}},{"$f":"SUBTOTAL(109,خطة_السفر_والتدريب[مارس])","v":{"v":4000,"d":"ر.س.‏ 4,000.00"}},{"$f":"SUBTOTAL(109,خطة_السفر_والتدريب[أبريل])","v":{"v":4000,"d":"ر.س.‏ 4,000.00"}},{"$f":"SUBTOTAL(109,خطة_السفر_والتدريب[مايو])","v":{"v":4000,"d":"ر.س.‏ 4,000.00"}},{"$f":"SUBTOTAL(109,خطة_السفر_والتدريب[يونيو])","v":{"v":4000,"d":"ر.س.‏ 4,000.00"}},{"$f":"SUBTOTAL(109,خطة_السفر_والتدريب[يوليو])","v":{"v":4000,"d":"ر.س.‏ 4,000.00"}},{"$f":"SUBTOTAL(109,خطة_السفر_والتدريب[أغسطس])","v":{"v":4000,"d":"ر.س.‏ 4,000.00"}},{"$f":"SUBTOTAL(109,خطة_السفر_والتدريب[سبتمبر])","v":{"v":4000,"d":"ر.س.‏ 4,000.00"}},{"$f":"SUBTOTAL(109,خطة_السفر_والتدريب[أكتوبر])","v":{"v":4000,"d":"ر.س.‏ 4,000.00"}},{"$f":"SUBTOTAL(109,خطة_السفر_والتدريب[نوفمبر])","v":{"v":4000,"d":"ر.س.‏ 4,000.00"}},{"$f":"SUBTOTAL(109,خطة_السفر_والتدريب[ديسمبر])","v":{"v":4000,"d":"ر.س.‏ 4,000.00"}},{"$f":"SUBTOTAL(109,خطة_السفر_والتدريب[السنة])","v":{"v":48000,"d":"ر.س.‏ 48,000.00"}}]
[]
["يتم حساب الإجماليات تلقائياً في الجدول \"المخطط الإجمالي\" بدءاً من الخلية الموجودة على اليسار.","الإجماليات","يناير","فبراير","مارس","أبريل","مايو","يونيو","يوليو","أغسطس","سبتمبر","أكتوبر","نوفمبر","ديسمبر","السنة"]
[null,"المصروفات الشهرية المخططة",{"$f":"خطة_السفر_والتدريب[[#Totals],[يناير]]+خطة_التسويق[[#Totals],[يناير]]+خطة_المكتب[[#Totals],[يناير]]+خطة_الموظفين[[#Totals],[يناير]]","v":{"v":131420,"d":"ر.س.‏ 131,420.00"}},{"$f":"خطة_السفر_والتدريب[[#Totals],[فبراير]]+خطة_التسويق[[#Totals],[فبراير]]+خطة_المكتب[[#Totals],[فبراير]]+خطة_الموظفين[[#Totals],[فبراير]]","v":{"v":126820,"d":"ر.س.‏ 126,820.00"}},{"$f":"خطة_السفر_والتدريب[[#Totals],[مارس]]+خطة_التسويق[[#Totals],[مارس]]+خطة_المكتب[[#Totals],[مارس]]+خطة_الموظفين[[#Totals],[مارس]]","v":{"v":126820,"d":"ر.س.‏ 126,820.00"}},{"$f":"خطة_السفر_والتدريب[[#Totals],[أبريل]]+خطة_التسويق[[#Totals],[أبريل]]+خطة_المكتب[[#Totals],[أبريل]]+خطة_الموظفين[[#Totals],[أبريل]]","v":{"v":137695,"d":"ر.س.‏ 137,695.00"}},{"$f":"خطة_السفر_والتدريب[[#Totals],[مايو]]+خطة_التسويق[[#Totals],[مايو]]+خطة_المكتب[[#Totals],[مايو]]+خطة_الموظفين[[#Totals],[مايو]]","v":{"v":129695,"d":"ر.س.‏ 129,695.00"}},{"$f":"خطة_السفر_والتدريب[[#Totals],[يونيو]]+خطة_التسويق[[#Totals],[يونيو]]+خطة_المكتب[[#Totals],[يونيو]]+خطة_الموظفين[[#Totals],[يونيو]]","v":{"v":130495,"d":"ر.س.‏ 130,495.00"}},{"$f":"خطة_السفر_والتدريب[[#Totals],[يوليو]]+خطة_التسويق[[#Totals],[يوليو]]+خطة_المكتب[[#Totals],[يوليو]]+خطة_الموظفين[[#Totals],[يوليو]]","v":{"v":134695,"d":"ر.س.‏ 134,695.00"}},{"$f":"خطة_السفر_والتدريب[[#Totals],[أغسطس]]+خطة_التسويق[[#Totals],[أغسطس]]+خطة_المكتب[[#Totals],[أغسطس]]+خطة_الموظفين[[#Totals],[أغسطس]]","v":{"v":138918,"d":"ر.س.‏ 138,918.00"}},{"$f":"خطة_السفر_والتدريب[[#Totals],[سبتمبر]]+خطة_التسويق[[#Totals],[سبتمبر]]+خطة_المكتب[[#Totals],[سبتمبر]]+خطة_الموظفين[[#Totals],[سبتمبر]]","v":{"v":135918,"d":"ر.س.‏ 135,918.00"}},{"$f":"خطة_السفر_والتدريب[[#Totals],[أكتوبر]]+خطة_التسويق[[#Totals],[أكتوبر]]+خطة_المكتب[[#Totals],[أكتوبر]]+خطة_الموظفين[[#Totals],[أكتوبر]]","v":{"v":140918,"d":"ر.س.‏ 140,918.00"}},{"$f":"خطة_السفر_والتدريب[[#Totals],[نوفمبر]]+خطة_التسويق[[#Totals],[نوفمبر]]+خطة_المكتب[[#Totals],[نوفمبر]]+خطة_الموظفين[[#Totals],[نوفمبر]]","v":{"v":136218,"d":"ر.س.‏ 136,218.00"}},{"$f":"خطة_السفر_والتدريب[[#Totals],[ديسمبر]]+خطة_التسويق[[#Totals],[ديسمبر]]+خطة_المكتب[[#Totals],[ديسمبر]]+خطة_الموظفين[[#Totals],[ديسمبر]]","v":{"v":140018,"d":"ر.س.‏ 140,018.00"}},{"$f":"خطة_السفر_والتدريب[[#Totals],[السنة]]+خطة_التسويق[[#Totals],[السنة]]+خطة_المكتب[[#Totals],[السنة]]+خطة_الموظفين[[#Totals],[السنة]]","v":{"v":1609630,"d":"ر.س.‏ 1,609,630.00"}}]
[null,"إجمالي المصروفات المخططة",{"$f":"SUM($C$36:C36)","v":{"v":131420,"d":"ر.س.‏ 131,420.00"}},{"$f":"SUM($C$36:D36)","v":{"v":258240,"d":"ر.س.‏ 258,240.00"}},{"$f":"SUM($C$36:E36)","v":{"v":385060,"d":"ر.س.‏ 385,060.00"}},{"$f":"SUM($C$36:F36)","v":{"v":522755,"d":"ر.س.‏ 522,755.00"}},{"$f":"SUM($C$36:G36)","v":{"v":652450,"d":"ر.س.‏ 652,450.00"}},{"$f":"SUM($C$36:H36)","v":{"v":782945,"d":"ر.س.‏ 782,945.00"}},{"$f":"SUM($C$36:I36)","v":{"v":917640,"d":"ر.س.‏ 917,640.00"}},{"$f":"SUM($C$36:J36)","v":{"v":1056558,"d":"ر.س.‏ 1,056,558.00"}},{"$f":"SUM($C$36:K36)","v":{"v":1192476,"d":"ر.س.‏ 1,192,476.00"}},{"$f":"SUM($C$36:L36)","v":{"v":1333394,"d":"ر.س.‏ 1,333,394.00"}},{"$f":"SUM($C$36:M36)","v":{"v":1469612,"d":"ر.س.‏ 1,469,612.00"}},{"$f":"SUM($C$36:N36)","v":{"v":1609630,"d":"ر.س.‏ 1,609,630.00"}}]

{"sheet":"المصروفات الفعلية","index":2,"n_rows":37,"n_cols":16,"rows_kept":37,"merged":[[1,1,2,3],[1,10,1,12],[1,13,2,14],[2,10,2,12],[8,1,8,2],[19,1,19,2],[28,1,28,2],[33,1,33,2]]}
["أدخل \"تكاليف الموظفين الفعلية\" و\"تكاليف المكاتب\" و\"تكاليف التسويق\" و\"تكاليف التدريب أو السفر\" في الجداول ذات الصلة في ورقة العمل هذه. يتم حساب الإجماليات تلقائياً. توجد تعليمات مفيدة حول كيفية استخدام ورقة العمل هذه في الخلايا الموجودة في هذا العمود. السهم لأسفل لبدء الاستخدام.",{"$nulls":14}," "]
["يتم تحديث اسم الشركة تلقائياً في الخلية الموجودة على اليسار. يوجد عنوان ورقة العمل في الخلية K2. أدخل \"الشعار\" في الخلية N2.",{"$f":"'المصروفات المخططة'!B2:D3","v":"اسم الشركة"},{"$nulls":8},{"$f":"عنوان_ورقة_العمل","v":"تقديرات المصروفات التفصيلية"},null,null,"يوجد شعار العنصر النائب في هذه الخلية."]
["يوجد تلميح في الخلية K3.",{"$nulls":9},"الخلايا المظللة هي العمليات الحسابية."]
["توجد التسمية \"المصروفات الفعلية\" في الخلية الموجودة على اليسار، وتوجد الأشهر في الخلايا من C4 إلى N4، والتسمية \"السنة\" في O4.","المصروفات الفعلية","يناير","فبراير","مارس","أبريل","مايو","يونيو","يوليو","أغسطس","سبتمبر","أكتوبر","نوفمبر","ديسمبر","السنة"]
["أدخل \"تكاليف الموظفين\" في الجدول \"الموظفين الفعليين\" بدءاً من الخلية الموجودة على اليسار. توجد الإرشادات التالية في الخلية A10.","تكاليف الموظفين","يناير","فبراير","مارس","أبريل","مايو","يونيو","يوليو","أغسطس","سبتمبر","أكتوبر","نوفمبر","ديسمبر","السنة"]
[null,"الأجور",{"v":85000,"d":"ر.س.‏ 85,000.00"},{"v":85000,"d":"ر.س.‏ 85,000.00"},{"v":85000,"d":"ر.س.‏ 85,000.00"},{"v":88000,"d":"ر.س.‏ 88,000.00"},{"v":88000,"d":"ر.س.‏ 88,000.00"},{"v":88000,"d":"ر.س.‏ 88,000.00"},{"$nulls":6},{"$f":"SUM(C6:N6)","v":{"v":519000,"d":"ر.س.‏ 519,000.00"}}]
[null,"الفوائد",{"$f":"C6*0.27","v":{"v":22950,"d":"ر.س.‏ 22,950.00"}},{"v":22950,"d":"ر.س.‏ 22,950.00"},{"v":22950,"d":"ر.س.‏ 22,950.00"},{"v":23760,"d":"ر.س.‏ 23,760.00"},{"v":23760,"d":"ر.س.‏ 23,760.00"},{"v":23760,"d":"ر.س.‏ 23,760.00"},{"v":0,"d":"ر.س.‏ 0.00"},{"v":0,"d":"ر.س.‏ 0.00"},{"v":0,"d":"ر.س.‏ 0.00"},{"v":0,"d":"ر.س.‏ 0.00"},{"v":0,"d":"ر.س.‏ 0.00"},{"v":0,"d":"ر.س.‏ 0.00"},{"$f":"SUM(C7:N7)","v":{"v":140130,"d":"ر.س.‏ 140,130.00"}}]
[null,"الإجمالي الفرعي",{"$f":"SUBTOTAL(109,تكاليف_الموظفين_الفعلية[يناير])","v":{"v":107950,"d":"ر.س.‏ 107,950.00"}},{"$f":"SUBTOTAL(109,تكاليف_الموظفين_الفعلية[فبراير])","v":{"v":107950,"d":"ر.س.‏ 107,950.00"}},{"$f":"SUBTOTAL(109,تكاليف_الموظفين_الفعلية[مارس])","v":{"v":107950,"d":"ر.س.‏ 107,950.00"}},{"$f":"SUBTOTAL(109,تكاليف_الموظفين_الفعلية[أبريل])","v":{"v":111760,"d":"ر.س.‏ 111,760.00"}},{"$f":"SUBTOTAL(109,تكاليف_الموظفين_الفعلية[مايو])","v":{"v":111760,"d":"ر.س.‏ 111,760.00"}},{"$f":"SUBTOTAL(109,تكاليف_الموظفين_الفعلية[يونيو])","v":{"v":111760,"d":"ر.س.‏ 111,760.00"}},{"$f":"SUBTOTAL(109,تكاليف_الموظفين_الفعلية[يوليو])","v":{"v":0,"d":"ر.س.‏ 0.00"}},{"$f":"SUBTOTAL(109,تكاليف_الموظفين_الفعلية[أغسطس])","v":{"v":0,"d":"ر.س.‏ 0.00"}},{"$f":"SUBTOTAL(109,تكاليف_الموظفين_الفعلية[سبتمبر])","v":{"v":0,"d":"ر.س.‏ 0.00"}},{"$f":"SUBTOTAL(109,تكاليف_الموظفين_الفعلية[أكتوبر])","v":{"v":0,"d":"ر.س.‏ 0.00"}},{"$f":"SUBTOTAL(109,تكاليف_الموظفين_الفعلية[نوفمبر])","v":{"v":0,"d":"ر.س.‏ 0.00"}},{"$f":"SUBTOTAL(109,تكاليف_الموظفين_الفعلية[ديسمبر])","v":{"v":0,"d":"ر.س.‏ 0.00"}},{"$f":"SUBTOTAL(109,تكاليف_الموظفين_الفعلية[السنة])","v":{"v":659130,"d":"ر.س.‏ 659,130.00"}}]
[]
["أدخل \"تكاليف المكتب\" في الجدول \"المكتب الفعلي\" بدءاً من الخلية الموجودة على اليسار. توجد الإرشادات التالية في الخلية A21.","تكاليف المكتب","يناير","فبراير","مارس","أبريل","مايو","يونيو","يوليو","أغسطس","سبتمبر","أكتوبر","نوفمبر","ديسمبر","السنة"]
[null,"تأجير المكتب",{"v":9800,"d":"ر.س.‏ 9,800.00"},{"v":9800,"d":"ر.س.‏ 9,800.00"},{"v":9800,"d":"ر.س.‏ 9,800.00"},{"v":9800,"d":"ر.س.‏ 9,800.00"},{"v":9800,"d":"ر.س.‏ 9,800.00"},{"v":9800,"d":"ر.س.‏ 9,800.00"},{"$nulls":6},{"$f":"SUM(C11:N11)","v":{"v":58800,"d":"ر.س.‏ 58,800.00"}}]
[null,"وقود",{"v":4,"d":"ر.س.‏ 4.00"},{"v":430,"d":"ر.س.‏ 430.00"},{"v":385,"d":"ر.س.‏ 385.00"},{"v":230,"d":"ر.س.‏ 230.00"},{"v":87,"d":"ر.س.‏ 87.00"},{"v":88,"d":"ر.س.‏ 88.00"},{"$nulls":6},{"v":1224,"d":"ر.س.‏ 1,224.00"}]
[null,"كهرباء",{"v":288,"d":"ر.س.‏ 288.00"},{"v":278,"d":"ر.س.‏ 278.00"},{"v":268,"d":"ر.س.‏ 268.00"},{"v":299,"d":"ر.س.‏ 299.00"},{"v":306,"d":"ر.س.‏ 306.00"},{"v":290,"d":"ر.س.‏ 290.00"},{"$nulls":6},{"v":1729,"d":"ر.س.‏ 1,729.00"}]
[null,"ماء",{"v":35,"d":"ر.س.‏ 35.00"},{"v":33,"d":"ر.س.‏ 33.00"},{"v":34,"d":"ر.س.‏ 34.00"},{"v":36,"d":"ر.س.‏ 36.00"},{"v":34,"d":"ر.س.‏ 34.00"},{"v":36,"d":"ر.س.‏ 36.00"},{"$nulls":6},{"v":208,"d":"ر.س.‏ 208.00"}]
[null,"رقم الهاتف",{"v":224,"d":"ر.س.‏ 224.00"},{"v":235,"d":"ر.س.‏ 235.00"},{"v":265,"d":"ر.س.‏ 265.00"},{"v":245,"d":"ر.س.‏ 245.00"},{"v":245,"d":"ر.س.‏ 245.00"},{"v":220,"d":"ر.س.‏ 220.00"},{"$nulls":6},{"v":1434,"d":"ر.س.‏ 1,434.00"}]
[null,"الوصول للإنترنت",{"v":180,"d":"ر.س.‏ 180.00"},{"v":180,"d":"ر.س.‏ 180.00"},{"v":180,"d":"ر.س.‏ 180.00"},{"v":180,"d":"ر.س.‏ 180.00"},{"v":180,"d":"ر.س.‏ 180.00"},{"v":180,"d":"ر.س.‏ 180.00"},{"$nulls":6},{"v":1080,"d":"ر.س.‏ 1,080.00"}]
[null,"مستلزمات المكتب",{"v":256,"d":"ر.س.‏ 256.00"},{"v":142,"d":"ر.س.‏ 142.00"},{"v":160,"d":"ر.س.‏ 160.00"},{"v":221,"d":"ر.س.‏ 221.00"},{"v":256,"d":"ر.س.‏ 256.00"},{"v":240,"d":"ر.س.‏ 240.00"},{"$nulls":6},{"v":1275,"d":"ر.س.‏ 1,275.00"}]
[null,"الأمان",{"v":600,"d":"ر.س.‏ 600.00"},{"v":600,"d":"ر.س.‏ 600.00"},{"v":600,"d":"ر.س.‏ 600.00"},{"v":600,"d":"ر.س.‏ 600.00"},{"v":600,"d":"ر.س.‏ 600.00"},{"v":600,"d":"ر.س.‏ 600.00"},{"$nulls":6},{"v":3600,"d":"ر.س.‏ 3,600.00"}]
[null,"الإجمالي الفرعي",{"$f":"SUBTOTAL(109,المكتب_الفعلي[يناير])","v":{"v":11387,"d":"ر.س.‏ 11,387.00"}},{"$f":"SUBTOTAL(109,المكتب_الفعلي[فبراير])","v":{"v":11698,"d":"ر.س.‏ 11,698.00"}},{"$f":"SUBTOTAL(109,المكتب_الفعلي[مارس])","v":{"v":11692,"d":"ر.س.‏ 11,692.00"}},{"$f":"SUBTOTAL(109,المكتب_الفعلي[أبريل])","v":{"v":11611,"d":"ر.س.‏ 11,611.00"}},{"$f":"SUBTOTAL(109,المكتب_الفعلي[مايو])","v":{"v":11508,"d":"ر.س.‏ 11,508.00"}},{"$f":"SUBTOTAL(109,المكتب_الفعلي[يونيو])","v":{"v":11454,"d":"ر.س.‏ 11,454.00"}},{"$f":"SUBTOTAL(109,المكتب_الفعلي[يوليو])","v":{"v":0,"d":"ر.س.‏ 0.00"}},{"$f":"SUBTOTAL(109,المكتب_الفعلي[أغسطس])","v":{"v":0,"d":"ر.س.‏ 0.00"}},{"$f":"SUBTOTAL(109,المكتب_الفعلي[سبتمبر])","v":{"v":0,"d":"ر.س.‏ 0.00"}},{"$f":"SUBTOTAL(109,المكتب_الفعلي[أكتوبر])","v":{"v":0,"d":"ر.س.‏ 0.00"}},{"$f":"SUBTOTAL(109,المكتب_الفعلي[نوفمبر])","v":{"v":0,"d":"ر.س.‏ 0.00"}},{"$f":"SUBTOTAL(109,المكتب_الفعلي[ديسمبر])","v":{"v":0,"d":"ر.س.‏ 0.00"}},{"$f":"SUBTOTAL(109,المكتب_الفعلي[السنة])","v":{"v":69350,"d":"ر.س.‏ 69,350.00"}}]
[]
["أدخل \"تكاليف التسويق\" في الجدول \"التسويق الفعلي\" بدءاً من الخلية الموجودة على اليسار. توجد الإرشادات التالية في الخلية A30.","تكاليف التسويق","يناير","فبراير","مارس","أبريل","مايو","يونيو","يوليو","أغسطس","سبتمبر","أكتوبر","نوفمبر","ديسمبر","السنة"]
[null,"استضافة موقع الويب",{"v":500,"d":"ر.س.‏ 500.00"},{"v":500,"d":"ر.س.‏ 500.00"},{"v":500,"d":"ر.س.‏ 500.00"},{"v":500,"d":"ر.س.‏ 500.00"},{"v":500,"d":"ر.س.‏ 500.00"},{"v":500,"d":"ر.س.‏ 500.00"},{"$nulls":6},{"$f":"SUM(C22:N22)","v":{"v":3000,"d":"ر.س.‏ 3,000.00"}}]
[null,"تحديثات موقع الويب",{"v":200,"d":"ر.س.‏ 200.00"},{"v":200,"d":"ر.س.‏ 200.00"},{"v":200,"d":"ر.س.‏ 200.00"},{"v":200,"d":"ر.س.‏ 200.00"},{"v":200,"d":"ر.س.‏ 200.00"},{"v":1500,"d":"ر.س.‏ 1,500.00"},{"$nulls":6},{"v":2500,"d":"ر.س.‏ 2,500.00"}]
[null,"إعداد الضمانات",{"v":4800,"d":"ر.س.‏ 4,800.00"},{"v":0,"d":"ر.س.‏ 0.00"},{"v":0,"d":"ر.س.‏ 0.00"},{"v":5500,"d":"ر.س.‏ 5,500.00"},{"v":0,"d":"ر.س.‏ 0.00"},{"v":0,"d":"ر.س.‏ 0.00"},{"$nulls":6},{"v":10300,"d":"ر.س.‏ 10,300.00"}]
[null,"طباعة الضمانات",{"v":100,"d":"ر.س.‏ 100.00"},{"v":500,"d":"ر.س.‏ 500.00"},{"v":100,"d":"ر.س.‏ 100.00"},{"v":100,"d":"ر.س.‏ 100.00"},{"v":600,"d":"ر.س.‏ 600.00"},{"v":180,"d":"ر.س.‏ 180.00"},{"$nulls":6},{"v":1580,"d":"ر.س.‏ 1,580.00"}]
[null,"أحداث التسويق",{"v":1800,"d":"ر.س.‏ 1,800.00"},{"v":2200,"d":"ر.س.‏ 2,200.00"},{"v":2200,"d":"ر.س.‏ 2,200.00"},{"v":4700,"d":"ر.س.‏ 4,700.00"},{"v":1500,"d":"ر.س.‏ 1,500.00"},{"v":2300,"d":"ر.س.‏ 2,300.00"},{"$nulls":6},{"v":14700,"d":"ر.س.‏ 14,700.00"}]
[null,"المصروفات المتنوعة",{"v":145,"d":"ر.س.‏ 145.00"},{"v":156,"d":"ر.س.‏ 156.00"},{"v":123,"d":"ر.س.‏ 123.00"},{"v":223,"d":"ر.س.‏ 223.00"},{"v":187,"d":"ر.س.‏ 187.00"},{"v":245,"d":"ر.س.‏ 245.00"},{"$nulls":6},{"v":1079,"d":"ر.س.‏ 1,079.00"}]
[null,"الإجمالي الفرعي",{"$f":"SUBTOTAL(109,التسويق_الفعلي[يناير])","v":{"v":7545,"d":"ر.س.‏ 7,545.00"}},{"$f":"SUBTOTAL(109,التسويق_الفعلي[فبراير])","v":{"v":3556,"d":"ر.س.‏ 3,556.00"}},{"$f":"SUBTOTAL(109,التسويق_الفعلي[مارس])","v":{"v":3123,"d":"ر.س.‏ 3,123.00"}},{"$f":"SUBTOTAL(109,التسويق_الفعلي[أبريل])","v":{"v":11223,"d":"ر.س.‏ 11,223.00"}},{"$f":"SUBTOTAL(109,التسويق_الفعلي[مايو])","v":{"v":2987,"d":"ر.س.‏ 2,987.00"}},{"$f":"SUBTOTAL(109,التسويق_الفعلي[يونيو])","v":{"v":4725,"d":"ر.س.‏ 4,725.00"}},{"$f":"SUBTOTAL(109,التسويق_الفعلي[يوليو])","v":{"v":0,"d":"ر.س.‏ 0.00"}},{"$f":"SUBTOTAL(109,التسويق_الفعلي[أغسطس])","v":{"v":0,"d":"ر.س.‏ 0.00"}},{"$f":"SUBTOTAL(109,التسويق_الفعلي[سبتمبر])","v":{"v":0,"d":"ر.س.‏ 0.00"}},{"$f":"SUBTOTAL(109,التسويق_الفعلي[أكتوبر])","v":{"v":0,"d":"ر.س.‏ 0.00"}},{"$f":"SUBTOTAL(109,التسويق_الفعلي[نوفمبر])","v":{"v":0,"d":"ر.س.‏ 0.00"}},{"$f":"SUBTOTAL(109,التسويق_الفعلي[ديسمبر])","v":{"v":0,"d":"ر.س.‏ 0.00"}},{"$f":"SUBTOTAL(109,التسويق_الفعلي[السنة])","v":{"v":33159,"d":"ر.س.‏ 33,159.00"}}]
[]
["أدخل \"تكاليف التدريب أو السفر\" في الجدول \"التدريب والسفر الفعليين\" بدءاً من الخلية الموجودة على اليسار. توجد الإرشادات التالية في الخلية A35.","التدريب/السفر","يناير","فبراير","مارس","أبريل","مايو","يونيو","يوليو","أغسطس","سبتمبر","أكتوبر","نوفمبر","ديسمبر","السنة"]
[null,"صفوف التدريب",{"v":1600,"d":"ر.س.‏ 1,600.00"},{"v":2400,"d":"ر.س.‏ 2,400.00"},{"v":1400,"d":"ر.س.‏ 1,400.00"},{"v":1600,"d":"ر.س.‏ 1,600.00"},{"v":1200,"d":"ر.س.‏ 1,200.00"},{"v":2800,"d":"ر.س.‏ 2,800.00"},{"$nulls":6},{"$f":"SUM(C31:N31)","v":{"v":11000,"d":"ر.س.‏ 11,000.00"}}]
[null,"تكاليف السفر ذات الصلة بالتدريب",{"v":1200,"d":"ر.س.‏ 1,200.00"},{"v":2200,"d":"ر.س.‏ 2,200.00"},{"v":1400,"d":"ر.س.‏ 1,400.00"},{"v":1200,"d":"ر.س.‏ 1,200.00"},{"v":800,"d":"ر.س.‏ 800.00"},{"v":3500,"d":"ر.س.‏ 3,500.00"},{"$nulls":6},{"$f":"SUM(C32:N32)","v":{"v":10300,"d":"ر.س.‏ 10,300.00"}}]
[null,"الإجمالي الفرعي",{"$f":"SUBTOTAL(109,التدريب_والسفر_الفعليين[يناير])","v":{"v":2800,"d":"ر.س.‏ 2,800.00"}},{"$f":"SUBTOTAL(109,التدريب_والسفر_الفعليين[فبراير])","v":{"v":4600,"d":"ر.س.‏ 4,600.00"}},{"$f":"SUBTOTAL(109,التدريب_والسفر_الفعليين[مارس])","v":{"v":2800,"d":"ر.س.‏ 2,800.00"}},{"$f":"SUBTOTAL(109,التدريب_والسفر_الفعليين[أبريل])","v":{"v":2800,"d":"ر.س.‏ 2,800.00"}},{"$f":"SUBTOTAL(109,التدريب_والسفر_الفعليين[مايو])","v":{"v":2000,"d":"ر.س.‏ 2,000.00"}},{"$f":"SUBTOTAL(109,التدريب_والسفر_الفعليين[يونيو])","v":{"v":6300,"d":"ر.س.‏ 6,300.00"}},{"$f":"SUBTOTAL(109,التدريب_والسفر_الفعليين[يوليو])","v":{"v":0,"d":"ر.س.‏ 0.00"}},{"$f":"SUBTOTAL(109,التدريب_والسفر_الفعليين[أغسطس])","v":{"v":0,"d":"ر.س.‏ 0.00"}},{"$f":"SUBTOTAL(109,التدريب_والسفر_الفعليين[سبتمبر])","v":{"v":0,"d":"ر.س.‏ 0.00"}},{"$f":"SUBTOTAL(109,التدريب_والسفر_الفعليين[أكتوبر])","v":{"v":0,"d":"ر.س.‏ 0.00"}},{"$f":"SUBTOTAL(109,التدريب_والسفر_الفعليين[نوفمبر])","v":{"v":0,"d":"ر.س.‏ 0.00"}},{"$f":"SUBTOTAL(109,التدريب_والسفر_الفعليين[ديسمبر])","v":{"v":0,"d":"ر.س.‏ 0.00"}},{"$f":"SUBTOTAL(109,التدريب_والسفر_الفعليين[السنة])","v":{"v":21300,"d":"ر.س.‏ 21,300.00"}}]
[]
["يتم حساب \"إجمالي المصروفات الفعلية\" تلقائياً في الجدول \"الإجمالي الفعلي\" بدءاً من الخلية الموجودة على اليسار.","إجمالي المصروفات المخططة","يناير","فبراير","مارس","أبريل","مايو","يونيو","يوليو","أغسطس","سبتمبر","أكتوبر","نوفمبر","ديسمبر","السنة"]
[null,"المصروفات الفعلية الشهرية",{"$f":"التدريب_والسفر_الفعليين[[#Totals],[يناير]]+التسويق_الفعلي[[#Totals],[يناير]]+المكتب_الفعلي[[#Totals],[يناير]]+تكاليف_الموظفين_الفعلية[[#Totals],[يناير]]","v":{"v":129682,"d":"ر.س.‏ 129,682.00"}},{"$f":"التدريب_والسفر_الفعليين[[#Totals],[فبراير]]+التسويق_الفعلي[[#Totals],[فبراير]]+المكتب_الفعلي[[#Totals],[فبراير]]+تكاليف_الموظفين_الفعلية[[#Totals],[فبراير]]","v":{"v":127804,"d":"ر.س.‏ 127,804.00"}},{"$f":"التدريب_والسفر_الفعليين[[#Totals],[مارس]]+التسويق_الفعلي[[#Totals],[مارس]]+المكتب_الفعلي[[#Totals],[مارس]]+تكاليف_الموظفين_الفعلية[[#Totals],[مارس]]","v":{"v":125565,"d":"ر.س.‏ 125,565.00"}},{"$f":"التدريب_والسفر_الفعليين[[#Totals],[أبريل]]+التسويق_الفعلي[[#Totals],[أبريل]]+المكتب_الفعلي[[#Totals],[أبريل]]+تكاليف_الموظفين_الفعلية[[#Totals],[أبريل]]","v":{"v":137394,"d":"ر.س.‏ 137,394.00"}},{"$f":"التدريب_والسفر_الفعليين[[#Totals],[مايو]]+التسويق_الفعلي[[#Totals],[مايو]]+المكتب_الفعلي[[#Totals],[مايو]]+تكاليف_الموظفين_الفعلية[[#Totals],[مايو]]","v":{"v":128255,"d":"ر.س.‏ 128,255.00"}},{"$f":"التدريب_والسفر_الفعليين[[#Totals],[يونيو]]+التسويق_الفعلي[[#Totals],[يونيو]]+المكتب_الفعلي[[#Totals],[يونيو]]+تكاليف_الموظفين_الفعلية[[#Totals],[يونيو]]","v":{"v":134239,"d":"ر.س.‏ 134,239.00"}},{"$f":"التدريب_والسفر_الفعليين[[#Totals],[يوليو]]+التسويق_الفعلي[[#Totals],[يوليو]]+المكتب_الفعلي[[#Totals],[يوليو]]+تكاليف_الموظفين_الفعلية[[#Totals],[يوليو]]","v":{"v":0,"d":"ر.س.‏ 0.00"}},{"$f":"التدريب_والسفر_الفعليين[[#Totals],[أغسطس]]+التسويق_الفعلي[[#Totals],[أغسطس]]+المكتب_الفعلي[[#Totals],[أغسطس]]+تكاليف_الموظفين_الفعلية[[#Totals],[أغسطس]]","v":{"v":0,"d":"ر.س.‏ 0.00"}},{"$f":"التدريب_والسفر_الفعليين[[#Totals],[سبتمبر]]+التسويق_الفعلي[[#Totals],[سبتمبر]]+المكتب_الفعلي[[#Totals],[سبتمبر]]+تكاليف_الموظفين_الفعلية[[#Totals],[سبتمبر]]","v":{"v":0,"d":"ر.س.‏ 0.00"}},{"$f":"التدريب_والسفر_الفعليين[[#Totals],[أكتوبر]]+التسويق_الفعلي[[#Totals],[أكتوبر]]+المكتب_الفعلي[[#Totals],[أكتوبر]]+تكاليف_الموظفين_الفعلية[[#Totals],[أكتوبر]]","v":{"v":0,"d":"ر.س.‏ 0.00"}},{"$f":"التدريب_والسفر_الفعليين[[#Totals],[نوفمبر]]+التسويق_الفعلي[[#Totals],[نوفمبر]]+المكتب_الفعلي[[#Totals],[نوفمبر]]+تكاليف_الموظفين_الفعلية[[#Totals],[نوفمبر]]","v":{"v":0,"d":"ر.س.‏ 0.00"}},{"$f":"التدريب_والسفر_الفعليين[[#Totals],[ديسمبر]]+التسويق_الفعلي[[#Totals],[ديسمبر]]+المكتب_الفعلي[[#Totals],[ديسمبر]]+تكاليف_الموظفين_الفعلية[[#Totals],[ديسمبر]]","v":{"v":0,"d":"ر.س.‏ 0.00"}},{"$f":"التدريب_والسفر_الفعليين[[#Totals],[السنة]]+التسويق_الفعلي[[#Totals],[السنة]]+المكتب_الفعلي[[#Totals],[السنة]]+تكاليف_الموظفين_الفعلية[[#Totals],[السنة]]","v":{"v":782939,"d":"ر.س.‏ 782,939.00"}}]
[null,"إجمالي المصروفات الفعلية",{"$f":"SUM($C$36:C36)","v":{"v":129682,"d":"ر.س.‏ 129,682.00"}},{"$f":"SUM($C$36:D36)","v":{"v":257486,"d":"ر.س.‏ 257,486.00"}},{"$f":"SUM($C$36:E36)","v":{"v":383051,"d":"ر.س.‏ 383,051.00"}},{"$f":"SUM($C$36:F36)","v":{"v":520445,"d":"ر.س.‏ 520,445.00"}},{"$f":"SUM($C$36:G36)","v":{"v":648700,"d":"ر.س.‏ 648,700.00"}},{"$f":"SUM($C$36:H36)","v":{"v":782939,"d":"ر.س.‏ 782,939.00"}},{"$f":"SUM($C$36:I36)","v":{"v":782939,"d":"ر.س.‏ 782,939.00"}},{"$f":"SUM($C$36:J36)","v":{"v":782939,"d":"ر.س.‏ 782,939.00"}},{"$f":"SUM($C$36:K36)","v":{"v":782939,"d":"ر.س.‏ 782,939.00"}},{"$f":"SUM($C$36:L36)","v":{"v":782939,"d":"ر.س.‏ 782,939.00"}},{"$f":"SUM($C$36:M36)","v":{"v":782939,"d":"ر.س.‏ 782,939.00"}},{"$f":"SUM($C$36:N36)","v":{"v":782939,"d":"ر.س.‏ 782,939.00"}}]

{"sheet":"فروق المصروفات","index":3,"n_rows":37,"n_cols":16,"rows_kept":37,"merged":[[1,1,2,3],[1,10,1,12],[1,13,2,14],[2,10,2,12],[8,1,8,2],[19,1,19,2],[28,1,28,2],[33,1,33,2]]}
["يتم حساب \"فرق المصروفات\" في ورقة العمل هذه لـ \"تكاليف الموظفين\" و\"تكاليف المكاتب\" و\"تكاليف التسويق\" و\"تكاليف التدريب أو السفر\" في الجداول ذات الصلة في ورقة العمل هذه. توجد تعليمات مفيدة حول كيفية استخدام ورقة العمل هذه في الخلايا الموجودة في هذا العمود. السهم لأسفل لبدء الاستخدام.",{"$nulls":14}," "]
["يتم تحديث اسم الشركة تلقائياً في الخلية الموجودة على اليسار. يوجد عنوان ورقة العمل في الخلية K2. أدخل \"الشعار\" في الخلية N2.",{"$f":"'المصروفات المخططة'!B2:D3","v":"اسم الشركة"},{"$nulls":8},{"$f":"عنوان_ورقة_العمل","v":"تقديرات المصروفات التفصيلية"},null,null,"يوجد شعار العنصر النائب في هذه الخلية."]
["يوجد تلميح في الخلية K3.",{"$nulls":9},"الخلايا المظللة هي العمليات الحسابية."]
["توجد التسمية \"فروق المصروفات\" في الخلية الموجودة على اليسار، وتوجد الأشهر في الخلايا من C4 إلى N4، والتسمية \"السنة\" في O4.","فروق المصروفات","يناير","فبراير","مارس","أبريل","مايو","يونيو","يوليو","أغسطس","سبتمبر","أكتوبر","نوفمبر","ديسمبر","السنة"]
["يتم حساب الفرق في \"تكاليف الموظفين\" تلقائياً في الجدول \"فروق الموظفين\" بدءاً من الخلية الموجودة على اليسار. توجد الإرشادات التالية في الخلية A10.","تكاليف الموظفين","يناير","فبراير","مارس","أبريل","مايو","يونيو","يوليو","أغسطس","سبتمبر","أكتوبر","نوفمبر","ديسمبر","السنة"]
[null,"الأجور",{"$f":"INDEX(خطة_الموظفين[],MATCH(INDEX(فروق_المصروفات[],ROW()-ROW(فروق_المصروفات[[#Headers],[يناير]]),1),INDEX(خطة_الموظفين[],,1),0),MATCH(فروق_المصروفات[[#Headers],[يناير]],خطة_الموظفين[#Headers],0))-INDEX(تكاليف_الموظفين_الفعلية[],MATCH(INDEX(فروق_المصروفات[],ROW()-ROW(فروق_المصروفات[[#Headers],[يناير]]),1),INDEX(خطة_الموظفين[],,1),0),MATCH(فروق_المصروفات[[#Headers],[يناير]],تكاليف_الموظفين_الفعلية[#Headers],0))","v":{"v":0,"d":"ر.س.‏ 0.00"}},{"$f":"INDEX(خطة_الموظفين[],MATCH(INDEX(فروق_المصروفات[],ROW()-ROW(فروق_المصروفات[[#Headers],[فبراير]]),1),INDEX(خطة_الموظفين[],,1),0),MATCH(فروق_المصروفات[[#Headers],[فبراير]],خطة_الموظفين[#Headers],0))-INDEX(تكاليف_الموظفين_الفعلية[],MATCH(INDEX(فروق_المصروفات[],ROW()-ROW(فروق_المصروفات[[#Headers],[فبراير]]),1),INDEX(خطة_الموظفين[],,1),0),MATCH(فروق_المصروفات[[#Headers],[فبراير]],تكاليف_الموظفين_الفعلية[#Headers],0))","v":{"v":0,"d":"ر.س.‏ 0.00"}},{"$f":"INDEX(خطة_الموظفين[],MATCH(INDEX(فروق_المصروفات[],ROW()-ROW(فروق_المصروفات[[#Headers],[مارس]]),1),INDEX(خطة_الموظفين[],,1),0),MATCH(فروق_المصروفات[[#Headers],[مارس]],خطة_الموظفين[#Headers],0))-INDEX(تكاليف_الموظفين_الفعلية[],MATCH(INDEX(فروق_المصروفات[],ROW()-ROW(فروق_المصروفات[[#Headers],[مارس]]),1),INDEX(خطة_الموظفين[],,1),0),MATCH(فروق_المصروفات[[#Headers],[مارس]],تكاليف_الموظفين_الفعلية[#Headers],0))","v":{"v":0,"d":"ر.س.‏ 0.00"}},{"$f":"INDEX(خطة_الموظفين[],MATCH(INDEX(فروق_المصروفات[],ROW()-ROW(فروق_المصروفات[[#Headers],[أبريل]]),1),INDEX(خطة_الموظفين[],,1),0),MATCH(فروق_المصروفات[[#Headers],[أبريل]],خطة_الموظفين[#Headers],0))-INDEX(تكاليف_الموظفين_الفعلية[],MATCH(INDEX(فروق_المصروفات[],ROW()-ROW(فروق_المصروفات[[#Headers],[أبريل]]),1),INDEX(خطة_الموظفين[],,1),0),MATCH(فروق_المصروفات[[#Headers],[أبريل]],تكاليف_الموظفين_الفعلية[#Headers],0))","v":{"v":-500,"d":"ر.س.‏ 500.00-"}},{"$f":"INDEX(خطة_الموظفين[],MATCH(INDEX(فروق_المصروفات[],ROW()-ROW(فروق_المصروفات[[#Headers],[مايو]]),1),INDEX(خطة_الموظفين[],,1),0),MATCH(فروق_المصروفات[[#Headers],[مايو]],خطة_الموظفين[#Headers],0))-INDEX(تكاليف_الموظفين_الفعلية[],MATCH(INDEX(فروق_المصروفات[],ROW()-ROW(فروق_المصروفات[[#Headers],[مايو]]),1),INDEX(خطة_الموظفين[],,1),0),MATCH(فروق_المصروفات[[#Headers],[مايو]],تكاليف_الموظفين_الفعلية[#Headers],0))","v":{"v":-500,"d":"ر.س.‏ 500.00-"}},{"$f":"INDEX(خطة_الموظفين[],MATCH(INDEX(فروق_المصروفات[],ROW()-ROW(فروق_المصروفات[[#Headers],[يونيو]]),1),INDEX(خطة_الموظفين[],,1),0),MATCH(فروق_المصروفات[[#Headers],[يونيو]],خطة_الموظفين[#Headers],0))-INDEX(تكاليف_الموظفين_الفعلية[],MATCH(INDEX(فروق_المصروفات[],ROW()-ROW(فروق_المصروفات[[#Headers],[يونيو]]),1),INDEX(خطة_الموظفين[],,1),0),MATCH(فروق_المصروفات[[#Headers],[يونيو]],تكاليف_الموظفين_الفعلية[#Headers],0))","v":{"v":-500,"d":"ر.س.‏ 500.00-"}},{"$f":"INDEX(خطة_الموظفين[],MATCH(INDEX(فروق_المصروفات[],ROW()-ROW(فروق_المصروفات[[#Headers],[يوليو]]),1),INDEX(خطة_الموظفين[],,1),0),MATCH(فروق_المصروفات[[#Headers],[يوليو]],خطة_الموظفين[#Headers],0))-INDEX(تكاليف_الموظفين_الفعلية[],MATCH(INDEX(فروق_المصروفات[],ROW()-ROW(فروق_المصروفات[[#Headers],[يوليو]]),1),INDEX(خطة_الموظفين[],,1),0),MATCH(فروق_المصروفات[[#Headers],[يوليو]],تكاليف_الموظفين_الفعلية[#Headers],0))","v":{"v":87500,"d":"ر.س.‏ 87,500.00"}},{"$f":"INDEX(خطة_الموظفين[],MATCH(INDEX(فروق_المصروفات[],ROW()-ROW(فروق_المصروفات[[#Headers],[أغسطس]]),1),INDEX(خطة_الموظفين[],,1),0),MATCH(فروق_المصروفات[[#Headers],[أغسطس]],خطة_الموظفين[#Headers],0))-INDEX(تكاليف_الموظفين_الفعلية[],MATCH(INDEX(فروق_المصروفات[],ROW()-ROW(فروق_المصروفات[[#Headers],[أغسطس]]),1),INDEX(خطة_الموظفين[],,1),0),MATCH(فروق_المصروفات[[#Headers],[أغسطس]],تكاليف_الموظفين_الفعلية[#Headers],0))","v":{"v":92400,"d":"ر.س.‏ 92,400.00"}},{"$f":"INDEX(خطة_الموظفين[],MATCH(INDEX(فروق_المصروفات[],ROW()-ROW(فروق_المصروفات[[#Headers],[سبتمبر]]),1),INDEX(خطة_الموظفين[],,1),0),MATCH(فروق_المصروفات[[#Headers],[سبتمبر]],خطة_الموظفين[#Headers],0))-INDEX(تكاليف_الموظفين_الفعلية[],MATCH(INDEX(فروق_المصروفات[],ROW()-ROW(فروق_المصروفات[[#Headers],[سبتمبر]]),1),INDEX(خطة_الموظفين[],,1),0),MATCH(فروق_المصروفات[[#Headers],[سبتمبر]],تكاليف_الموظفين_الفعلية[#Headers],0))","v":{"v":92400,"d":"ر.س.‏ 92,400.00"}},{"$f":"INDEX(خطة_الموظفين[],MATCH(INDEX(فروق_المصروفات[],ROW()-ROW(فروق_المصروفات[[#Headers],[أكتوبر]]),1),INDEX(خطة_الموظفين[],,1),0),MATCH(فروق_المصروفات[[#Headers],[أكتوبر]],خطة_الموظفين[#Headers],0))-INDEX(تكاليف_الموظفين_الفعلية[],MATCH(INDEX(فروق_المصروفات[],ROW()-ROW(فروق_المصروفات[[#Headers],[أكتوبر]]),1),INDEX(خطة_الموظفين[],,1),0),MATCH(فروق_المصروفات[[#Headers],[أكتوبر]],تكاليف_الموظفين_الفعلية[#Headers],0))","v":{"v":92400,"d":"ر.س.‏ 92,400.00"}},{"$f":"INDEX(خطة_الموظفين[],MATCH(INDEX(فروق_المصروفات[],ROW()-ROW(فروق_المصروفات[[#Headers],[نوفمبر]]),1),INDEX(خطة_الموظفين[],,1),0),MATCH(فروق_المصروفات[[#Headers],[نوفمبر]],خطة_الموظفين[#Headers],0))-INDEX(تكاليف_الموظفين_الفعلية[],MATCH(INDEX(فروق_المصروفات[],ROW()-ROW(فروق_المصروفات[[#Headers],[نوفمبر]]),1),INDEX(خطة_الموظفين[],,1),0),MATCH(فروق_المصروفات[[#Headers],[نوفمبر]],تكاليف_الموظفين_الفعلية[#Headers],0))","v":{"v":92400,"d":"ر.س.‏ 92,400.00"}},{"$f":"INDEX(خطة_الموظفين[],MATCH(INDEX(فروق_المصروفات[],ROW()-ROW(فروق_المصروفات[[#Headers],[ديسمبر]]),1),INDEX(خطة_الموظفين[],,1),0),MATCH(فروق_المصروفات[[#Headers],[ديسمبر]],خطة_الموظفين[#Headers],0))-INDEX(تكاليف_الموظفين_الفعلية[],MATCH(INDEX(فروق_المصروفات[],ROW()-ROW(فروق_المصروفات[[#Headers],[ديسمبر]]),1),INDEX(خطة_الموظفين[],,1),0),MATCH(فروق_المصروفات[[#Headers],[ديسمبر]],تكاليف_الموظفين_الفعلية[#Headers],0))","v":{"v":92400,"d":"ر.س.‏ 92,400.00"}},{"$f":"SUM(فروق_المصروفات[[#This Row],[يناير]:[ديسمبر]])","v":{"v":548000,"d":"ر.س.‏ 548,000.00"}}]
[null,"الفوائد",{"$f":"INDEX(خطة_الموظفين[],MATCH(INDEX(فروق_المصروفات[],ROW()-ROW(فروق_المصروفات[[#Headers],[يناير]]),1),INDEX(خطة_الموظفين[],,1),0),MATCH(فروق_المصروفات[[#Headers],[يناير]],خطة_الموظفين[#Headers],0))-INDEX(تكاليف_الموظفين_الفعلية[],MATCH(INDEX(فروق_المصروفات[],ROW()-ROW(فروق_المصروفات[[#Headers],[يناير]]),1),INDEX(خطة_الموظفين[],,1),0),MATCH(فروق_المصروفات[[#Headers],[يناير]],تكاليف_الموظفين_الفعلية[#Headers],0))","v":{"v":0,"d":"ر.س.‏ 0.00"}},{"$f":"INDEX(خطة_الموظفين[],MATCH(INDEX(فروق_المصروفات[],ROW()-ROW(فروق_المصروفات[[#Headers],[فبراير]]),1),INDEX(خطة_الموظفين[],,1),0),MATCH(فروق_المصروفات[[#Headers],[فبراير]],خطة_الموظفين[#Headers],0))-INDEX(تكاليف_الموظفين_الفعلية[],MATCH(INDEX(فروق_المصروفات[],ROW()-ROW(فروق_المصروفات[[#Headers],[فبراير]]),1),INDEX(خطة_الموظفين[],,1),0),MATCH(فروق_المصروفات[[#Headers],[فبراير]],تكاليف_الموظفين_الفعلية[#Headers],0))","v":{"v":0,"d":"ر.س.‏ 0.00"}},{"$f":"INDEX(خطة_الموظفين[],MATCH(INDEX(فروق_المصروفات[],ROW()-ROW(فروق_المصروفات[[#Headers],[مارس]]),1),INDEX(خطة_الموظفين[],,1),0),MATCH(فروق_المصروفات[[#Headers],[مارس]],خطة_الموظفين[#Headers],0))-INDEX(تكاليف_الموظفين_الفعلية[],MATCH(INDEX(فروق_المصروفات[],ROW()-ROW(فروق_المصروفات[[#Headers],[مارس]]),1),INDEX(خطة_الموظفين[],,1),0),MATCH(فروق_المصروفات[[#Headers],[مارس]],تكاليف_الموظفين_الفعلية[#Headers],0))","v":{"v":0,"d":"ر.س.‏ 0.00"}},{"$f":"INDEX(خطة_الموظفين[],MATCH(INDEX(فروق_المصروفات[],ROW()-ROW(فروق_المصروفات[[#Headers],[أبريل]]),1),INDEX(خطة_الموظفين[],,1),0),MATCH(فروق_المصروفات[[#Headers],[أبريل]],خطة_الموظفين[#Headers],0))-INDEX(تكاليف_الموظفين_الفعلية[],MATCH(INDEX(فروق_المصروفات[],ROW()-ROW(فروق_المصروفات[[#Headers],[أبريل]]),1),INDEX(خطة_الموظفين[],,1),0),MATCH(فروق_المصروفات[[#Headers],[أبريل]],تكاليف_الموظفين_الفعلية[#Headers],0))","v":{"v":-135,"d":"ر.س.‏ 135.00-"}},{"$f":"INDEX(خطة_الموظفين[],MATCH(INDEX(فروق_المصروفات[],ROW()-ROW(فروق_المصروفات[[#Headers],[مايو]]),1),INDEX(خطة_الموظفين[],,1),0),MATCH(فروق_المصروفات[[#Headers],[مايو]],خطة_الموظفين[#Headers],0))-INDEX(تكاليف_الموظفين_الفعلية[],MATCH(INDEX(فروق_المصروفات[],ROW()-ROW(فروق_المصروفات[[#Headers],[مايو]]),1),INDEX(خطة_الموظفين[],,1),0),MATCH(فروق_المصروفات[[#Headers],[مايو]],تكاليف_الموظفين_الفعلية[#Headers],0))","v":{"v":-135,"d":"ر.س.‏ 135.00-"}},{"$f":"INDEX(خطة_الموظفين[],MATCH(INDEX(فروق_المصروفات[],ROW()-ROW(فروق_المصروفات[[#Headers],[يونيو]]),1),INDEX(خطة_الموظفين[],,1),0),MATCH(فروق_المصروفات[[#Headers],[يونيو]],خطة_الموظفين[#Headers],0))-INDEX(تكاليف_الموظفين_الفعلية[],MATCH(INDEX(فروق_المصروفات[],ROW()-ROW(فروق_المصروفات[[#Headers],[يونيو]]),1),INDEX(خطة_الموظفين[],,1),0),MATCH(فروق_المصروفات[[#Headers],[يونيو]],تكاليف_الموظفين_الفعلية[#Headers],0))","v":{"v":-135,"d":"ر.س.‏ 135.00-"}},{"$f":"INDEX(خطة_الموظفين[],MATCH(INDEX(فروق_المصروفات[],ROW()-ROW(فروق_المصروفات[[#Headers],[يوليو]]),1),INDEX(خطة_الموظفين[],,1),0),MATCH(فروق_المصروفات[[#Headers],[يوليو]],خطة_الموظفين[#Headers],0))-INDEX(تكاليف_الموظفين_الفعلية[],MATCH(INDEX(فروق_المصروفات[],ROW()-ROW(فروق_المصروفات[[#Headers],[يوليو]]),1),INDEX(خطة_الموظفين[],,1),0),MATCH(فروق_المصروفات[[#Headers],[يوليو]],تكاليف_الموظفين_الفعلية[#Headers],0))","v":{"v":23625,"d":"ر.س.‏ 23,625.00"}},{"$f":"INDEX(خطة_الموظفين[],MATCH(INDEX(فروق_المصروفات[],ROW()-ROW(فروق_المصروفات[[#Headers],[أغسطس]]),1),INDEX(خطة_الموظفين[],,1),0),MATCH(فروق_المصروفات[[#Headers],[أغسطس]],خطة_الموظفين[#Headers],0))-INDEX(تكاليف_الموظفين_الفعلية[],MATCH(INDEX(فروق_المصروفات[],ROW()-ROW(فروق_المصروفات[[#Headers],[أغسطس]]),1),INDEX(خطة_الموظفين[],,1),0),MATCH(فروق_المصروفات[[#Headers],[أغسطس]],تكاليف_الموظفين_الفعلية[#Headers],0))","v":{"v":24948,"d":"ر.س.‏ 24,948.00"}},{"$f":"INDEX(خطة_الموظفين[],MATCH(INDEX(فروق_المصروفات[],ROW()-ROW(فروق_المصروفات[[#Headers],[سبتمبر]]),1),INDEX(خطة_الموظفين[],,1),0),MATCH(فروق_المصروفات[[#Headers],[سبتمبر]],خطة_الموظفين[#Headers],0))-INDEX(تكاليف_الموظفين_الفعلية[],MATCH(INDEX(فروق_المصروفات[],ROW()-ROW(فروق_المصروفات[[#Headers],[سبتمبر]]),1),INDEX(خطة_الموظفين[],,1),0),MATCH(فروق_المصروفات[[#Headers],[سبتمبر]],تكاليف_الموظفين_الفعلية[#Headers],0))","v":{"v":24948,"d":"ر.س.‏ 24,948.00"}},{"$f":"INDEX(خطة_الموظفين[],MATCH(INDEX(فروق_المصروفات[],ROW()-ROW(فروق_المصروفات[[#Headers],[أكتوبر]]),1),INDEX(خطة_الموظفين[],,1),0),MATCH(فروق_المصروفات[[#Headers],[أكتوبر]],خطة_الموظفين[#Headers],0))-INDEX(تكاليف_الموظفين_الفعلية[],MATCH(INDEX(فروق_المصروفات[],ROW()-ROW(فروق_المصروفات[[#Headers],[أكتوبر]]),1),INDEX(خطة_الموظفين[],,1),0),MATCH(فروق_المصروفات[[#Headers],[أكتوبر]],تكاليف_الموظفين_الفعلية[#Headers],0))","v":{"v":24948,"d":"ر.س.‏ 24,948.00"}},{"$f":"INDEX(خطة_الموظفين[],MATCH(INDEX(فروق_المصروفات[],ROW()-ROW(فروق_المصروفات[[#Headers],[نوفمبر]]),1),INDEX(خطة_الموظفين[],,1),0),MATCH(فروق_المصروفات[[#Headers],[نوفمبر]],خطة_الموظفين[#Headers],0))-INDEX(تكاليف_الموظفين_الفعلية[],MATCH(INDEX(فروق_المصروفات[],ROW()-ROW(فروق_المصروفات[[#Headers],[نوفمبر]]),1),INDEX(خطة_الموظفين[],,1),0),MATCH(فروق_المصروفات[[#Headers],[نوفمبر]],تكاليف_الموظفين_الفعلية[#Headers],0))","v":{"v":24948,"d":"ر.س.‏ 24,948.00"}},{"$f":"INDEX(خطة_الموظفين[],MATCH(INDEX(فروق_المصروفات[],ROW()-ROW(فروق_المصروفات[[#Headers],[ديسمبر]]),1),INDEX(خطة_الموظفين[],,1),0),MATCH(فروق_المصروفات[[#Headers],[ديسمبر]],خطة_الموظفين[#Headers],0))-INDEX(تكاليف_الموظفين_الفعلية[],MATCH(INDEX(فروق_المصروفات[],ROW()-ROW(فروق_المصروفات[[#Headers],[ديسمبر]]),1),INDEX(خطة_الموظفين[],,1),0),MATCH(فروق_المصروفات[[#Headers],[ديسمبر]],تكاليف_الموظفين_الفعلية[#Headers],0))","v":{"v":24948,"d":"ر.س.‏ 24,948.00"}},{"$f":"SUM(فروق_المصروفات[[#This Row],[يناير]:[ديسمبر]])","v":{"v":147960,"d":"ر.س.‏ 147,960.00"}}]
[null,"الإجمالي الفرعي",{"$f":"SUBTOTAL(109,فروق_المصروفات[يناير])","v":{"v":0,"d":"ر.س.‏ 0.00"}},{"$f":"SUBTOTAL(109,فروق_المصروفات[فبراير])","v":{"v":0,"d":"ر.س.‏ 0.00"}},{"$f":"SUBTOTAL(109,فروق_المصروفات[مارس])","v":{"v":0,"d":"ر.س.‏ 0.00"}},{"$f":"SUBTOTAL(109,فروق_المصروفات[أبريل])","v":{"v":-635,"d":"ر.س.‏ 635.00-"}},{"$f":"SUBTOTAL(109,فروق_المصروفات[مايو])","v":{"v":-635,"d":"ر.س.‏ 635.00-"}},{"$f":"SUBTOTAL(109,فروق_المصروفات[يونيو])","v":{"v":-635,"d":"ر.س.‏ 635.00-"}},{"$f":"SUBTOTAL(109,فروق_المصروفات[يوليو])","v":{"v":111125,"d":"ر.س.‏ 111,125.00"}},{"$f":"SUBTOTAL(109,فروق_المصروفات[أغسطس])","v":{"v":117348,"d":"ر.س.‏ 117,348.00"}},{"$f":"SUBTOTAL(109,فروق_المصروفات[سبتمبر])","v":{"v":117348,"d":"ر.س.‏ 117,348.00"}},{"$f":"SUBTOTAL(109,فروق_المصروفات[أكتوبر])","v":{"v":117348,"d":"ر.س.‏ 117,348.00"}},{"$f":"SUBTOTAL(109,فروق_المصروفات[نوفمبر])","v":{"v":117348,"d":"ر.س.‏ 117,348.00"}},{"$f":"SUBTOTAL(109,فروق_المصروفات[ديسمبر])","v":{"v":117348,"d":"ر.س.‏ 117,348.00"}},{"$f":"SUBTOTAL(109,فروق_المصروفات[السنة])","v":{"v":695960,"d":"ر.س.‏ 695,960.00"}}]
[]
["يتم حساب الفرق في \"تكاليف المكتب\" تلقائياً في الجدول \"فروق المكتب\" بدءاً من الخلية الموجودة على اليسار. توجد الإرشادات التالية في الخلية A21.","تكاليف المكتب","يناير","فبراير","مارس","أبريل","مايو","يونيو","يوليو","أغسطس","سبتمبر","أكتوبر","نوفمبر","ديسمبر","السنة"]
[null,"تأجير المكتب",{"$f":"INDEX(خطة_المكتب[],MATCH(INDEX(فروق_المكتب[],ROW()-ROW(فروق_المكتب[[#Headers],[يناير]]),1),INDEX(خطة_المكتب[],,1),0),MATCH(فروق_المكتب[[#Headers],[يناير]],خطة_المكتب[#Headers],0))-INDEX(المكتب_الفعلي[],MATCH(INDEX(فروق_المكتب[],ROW()-ROW(فروق_المكتب[[#Headers],[يناير]]),1),INDEX(خطة_المكتب[],,1),0),MATCH(فروق_المكتب[[#Headers],[يناير]],المكتب_الفعلي[#Headers],0))","v":{"v":0,"d":"ر.س.‏ 0.00"}},{"$f":"INDEX(خطة_المكتب[],MATCH(INDEX(فروق_المكتب[],ROW()-ROW(فروق_المكتب[[#Headers],[فبراير]]),1),INDEX(خطة_المكتب[],,1),0),MATCH(فروق_المكتب[[#Headers],[فبراير]],خطة_المكتب[#Headers],0))-INDEX(المكتب_الفعلي[],MATCH(INDEX(فروق_المكتب[],ROW()-ROW(فروق_المكتب[[#Headers],[فبراير]]),1),INDEX(خطة_المكتب[],,1),0),MATCH(فروق_المكتب[[#Headers],[فبراير]],المكتب_الفعلي[#Headers],0))","v":{"v":0,"d":"ر.س.‏ 0.00"}},{"$f":"INDEX(خطة_المكتب[],MATCH(INDEX(فروق_المكتب[],ROW()-ROW(فروق_المكتب[[#Headers],[مارس]]),1),INDEX(خطة_المكتب[],,1),0),MATCH(فروق_المكتب[[#Headers],[مارس]],خطة_المكتب[#Headers],0))-INDEX(المكتب_الفعلي[],MATCH(INDEX(فروق_المكتب[],ROW()-ROW(فروق_المكتب[[#Headers],[مارس]]),1),INDEX(خطة_المكتب[],,1),0),MATCH(فروق_المكتب[[#Headers],[مارس]],المكتب_الفعلي[#Headers],0))","v":{"v":0,"d":"ر.س.‏ 0.00"}},{"$f":"INDEX(خطة_المكتب[],MATCH(INDEX(فروق_المكتب[],ROW()-ROW(فروق_المكتب[[#Headers],[أبريل]]),1),INDEX(خطة_المكتب[],,1),0),MATCH(فروق_المكتب[[#Headers],[أبريل]],خطة_المكتب[#Headers],0))-INDEX(المكتب_الفعلي[],MATCH(INDEX(فروق_المكتب[],ROW()-ROW(فروق_المكتب[[#Headers],[أبريل]]),1),INDEX(خطة_المكتب[],,1),0),MATCH(فروق_المكتب[[#Headers],[أبريل]],المكتب_الفعلي[#Headers],0))","v":{"v":0,"d":"ر.س.‏ 0.00"}},{"$f":"INDEX(خطة_المكتب[],MATCH(INDEX(فروق_المكتب[],ROW()-ROW(فروق_المكتب[[#Headers],[مايو]]),1),INDEX(خطة_المكتب[],,1),0),MATCH(فروق_المكتب[[#Headers],[مايو]],خطة_المكتب[#Headers],0))-INDEX(المكتب_الفعلي[],MATCH(INDEX(فروق_المكتب[],ROW()-ROW(فروق_المكتب[[#Headers],[مايو]]),1),INDEX(خطة_المكتب[],,1),0),MATCH(فروق_المكتب[[#Headers],[مايو]],المكتب_الفعلي[#Headers],0))","v":{"v":0,"d":"ر.س.‏ 0.00"}},{"$f":"INDEX(خطة_المكتب[],MATCH(INDEX(فروق_المكتب[],ROW()-ROW(فروق_المكتب[[#Headers],[يونيو]]),1),INDEX(خطة_المكتب[],,1),0),MATCH(فروق_المكتب[[#Headers],[يونيو]],خطة_المكتب[#Headers],0))-INDEX(المكتب_الفعلي[],MATCH(INDEX(فروق_المكتب[],ROW()-ROW(فروق_المكتب[[#Headers],[يونيو]]),1),INDEX(خطة_المكتب[],,1),0),MATCH(فروق_المكتب[[#Headers],[يونيو]],المكتب_الفعلي[#Headers],0))","v":{"v":0,"d":"ر.س.‏ 0.00"}},{"$f":"INDEX(خطة_المكتب[],MATCH(INDEX(فروق_المكتب[],ROW()-ROW(فروق_المكتب[[#Headers],[يوليو]]),1),INDEX(خطة_المكتب[],,1),0),MATCH(فروق_المكتب[[#Headers],[يوليو]],خطة_المكتب[#Headers],0))-INDEX(المكتب_الفعلي[],MATCH(INDEX(فروق_المكتب[],ROW()-ROW(فروق_المكتب[[#Headers],[يوليو]]),1),INDEX(خطة_المكتب[],,1),0),MATCH(فروق_المكتب[[#Headers],[يوليو]],المكتب_الفعلي[#Headers],0))","v":{"v":9800,"d":"ر.س.‏ 9,800.00"}},{"$f":"INDEX(خطة_المكتب[],MATCH(INDEX(فروق_المكتب[],ROW()-ROW(فروق_المكتب[[#Headers],[أغسطس]]),1),INDEX(خطة_المكتب[],,1),0),MATCH(فروق_المكتب[[#Headers],[أغسطس]],خطة_المكتب[#Headers],0))-INDEX(المكتب_الفعلي[],MATCH(INDEX(فروق_المكتب[],ROW()-ROW(فروق_المكتب[[#Headers],[أغسطس]]),1),INDEX(خطة_المكتب[],,1),0),MATCH(فروق_المكتب[[#Headers],[أغسطس]],المكتب_الفعلي[#Headers],0))","v":{"v":9800,"d":"ر.س.‏ 9,800.00"}},{"$f":"INDEX(خطة_المكتب[],MATCH(INDEX(فروق_المكتب[],ROW()-ROW(فروق_المكتب[[#Headers],[سبتمبر]]),1),INDEX(خطة_المكتب[],,1),0),MATCH(فروق_المكتب[[#Headers],[سبتمبر]],خطة_المكتب[#Headers],0))-INDEX(المكتب_الفعلي[],MATCH(INDEX(فروق_المكتب[],ROW()-ROW(فروق_المكتب[[#Headers],[سبتمبر]]),1),INDEX(خطة_المكتب[],,1),0),MATCH(فروق_المكتب[[#Headers],[سبتمبر]],المكتب_الفعلي[#Headers],0))","v":{"v":9800,"d":"ر.س.‏ 9,800.00"}},{"$f":"INDEX(خطة_المكتب[],MATCH(INDEX(فروق_المكتب[],ROW()-ROW(فروق_المكتب[[#Headers],[أكتوبر]]),1),INDEX(خطة_المكتب[],,1),0),MATCH(فروق_المكتب[[#Headers],[أكتوبر]],خطة_المكتب[#Headers],0))-INDEX(المكتب_الفعلي[],MATCH(INDEX(فروق_المكتب[],ROW()-ROW(فروق_المكتب[[#Headers],[أكتوبر]]),1),INDEX(خطة_المكتب[],,1),0),MATCH(فروق_المكتب[[#Headers],[أكتوبر]],المكتب_الفعلي[#Headers],0))","v":{"v":9800,"d":"ر.س.‏ 9,800.00"}},{"$f":"INDEX(خطة_المكتب[],MATCH(INDEX(فروق_المكتب[],ROW()-ROW(فروق_المكتب[[#Headers],[نوفمبر]]),1),INDEX(خطة_المكتب[],,1),0),MATCH(فروق_المكتب[[#Headers],[نوفمبر]],خطة_المكتب[#Headers],0))-INDEX(المكتب_الفعلي[],MATCH(INDEX(فروق_المكتب[],ROW()-ROW(فروق_المكتب[[#Headers],[نوفمبر]]),1),INDEX(خطة_المكتب[],,1),0),MATCH(فروق_المكتب[[#Headers],[نوفمبر]],المكتب_الفعلي[#Headers],0))","v":{"v":9800,"d":"ر.س.‏ 9,800.00"}},{"$f":"INDEX(خطة_المكتب[],MATCH(INDEX(فروق_المكتب[],ROW()-ROW(فروق_المكتب[[#Headers],[ديسمبر]]),1),INDEX(خطة_المكتب[],,1),0),MATCH(فروق_المكتب[[#Headers],[ديسمبر]],خطة_المكتب[#Headers],0))-INDEX(المكتب_الفعلي[],MATCH(INDEX(فروق_المكتب[],ROW()-ROW(فروق_المكتب[[#Headers],[ديسمبر]]),1),INDEX(خطة_المكتب[],,1),0),MATCH(فروق_المكتب[[#Headers],[ديسمبر]],المكتب_الفعلي[#Headers],0))","v":{"v":9800,"d":"ر.س.‏ 9,800.00"}},{"$f":"SUM(فروق_المكتب[[#This Row],[يناير]:[ديسمبر]])","v":{"v":58800,"d":"ر.س.‏ 58,800.00"}}]
[null,"وقود",{"$f":"INDEX(خطة_المكتب[],MATCH(INDEX(فروق_المكتب[],ROW()-ROW(فروق_المكتب[[#Headers],[يناير]]),1),INDEX(خطة_المكتب[],,1),0),MATCH(فروق_المكتب[[#Headers],[يناير]],خطة_المكتب[#Headers],0))-INDEX(المكتب_الفعلي[],MATCH(INDEX(فروق_المكتب[],ROW()-ROW(فروق_المكتب[[#Headers],[يناير]]),1),INDEX(خطة_المكتب[],,1),0),MATCH(فروق_المكتب[[#Headers],[يناير]],المكتب_الفعلي[#Headers],0))","v":{"v":-4,"d":"ر.س.‏ 4.00-"}},{"$f":"INDEX(خطة_المكتب[],MATCH(INDEX(فروق_المكتب[],ROW()-ROW(فروق_المكتب[[#Headers],[فبراير]]),1),INDEX(خطة_المكتب[],,1),0),MATCH(فروق_المكتب[[#Headers],[فبراير]],خطة_المكتب[#Headers],0))-INDEX(المكتب_الفعلي[],MATCH(INDEX(فروق_المكتب[],ROW()-ROW(فروق_المكتب[[#Headers],[فبراير]]),1),INDEX(خطة_المكتب[],,1),0),MATCH(فروق_المكتب[[#Headers],[فبراير]],المكتب_الفعلي[#Headers],0))","v":{"v":-30,"d":"ر.س.‏ 30.00-"}},{"$f":"INDEX(خطة_المكتب[],MATCH(INDEX(فروق_المكتب[],ROW()-ROW(فروق_المكتب[[#Headers],[مارس]]),1),INDEX(خطة_المكتب[],,1),0),MATCH(فروق_المكتب[[#Headers],[مارس]],خطة_المكتب[#Headers],0))-INDEX(المكتب_الفعلي[],MATCH(INDEX(فروق_المكتب[],ROW()-ROW(فروق_المكتب[[#Headers],[مارس]]),1),INDEX(خطة_المكتب[],,1),0),MATCH(فروق_المكتب[[#Headers],[مارس]],المكتب_الفعلي[#Headers],0))","v":{"v":15,"d":"ر.س.‏ 15.00"}},{"$f":"INDEX(خطة_المكتب[],MATCH(INDEX(فروق_المكتب[],ROW()-ROW(فروق_المكتب[[#Headers],[أبريل]]),1),INDEX(خطة_المكتب[],,1),0),MATCH(فروق_المكتب[[#Headers],[أبريل]],خطة_المكتب[#Headers],0))-INDEX(المكتب_الفعلي[],MATCH(INDEX(فروق_المكتب[],ROW()-ROW(فروق_المكتب[[#Headers],[أبريل]]),1),INDEX(خطة_المكتب[],,1),0),MATCH(فروق_المكتب[[#Headers],[أبريل]],المكتب_الفعلي[#Headers],0))","v":{"v":-130,"d":"ر.س.‏ 130.00-"}},{"$f":"INDEX(خطة_المكتب[],MATCH(INDEX(فروق_المكتب[],ROW()-ROW(فروق_المكتب[[#Headers],[مايو]]),1),INDEX(خطة_المكتب[],,1),0),MATCH(فروق_المكتب[[#Headers],[مايو]],خطة_المكتب[#Headers],0))-INDEX(المكتب_الفعلي[],MATCH(INDEX(فروق_المكتب[],ROW()-ROW(فروق_المكتب[[#Headers],[مايو]]),1),INDEX(خطة_المكتب[],,1),0),MATCH(فروق_المكتب[[#Headers],[مايو]],المكتب_الفعلي[#Headers],0))","v":{"v":13,"d":"ر.س.‏ 13.00"}},{"$f":"INDEX(خطة_المكتب[],MATCH(INDEX(فروق_المكتب[],ROW()-ROW(فروق_المكتب[[#Headers],[يونيو]]),1),INDEX(خطة_المكتب[],,1),0),MATCH(فروق_المكتب[[#Headers],[يونيو]],خطة_المكتب[#Headers],0))-INDEX(المكتب_الفعلي[],MATCH(INDEX(فروق_المكتب[],ROW()-ROW(فروق_المكتب[[#Headers],[يونيو]]),1),INDEX(خطة_المكتب[],,1),0),MATCH(فروق_المكتب[[#Headers],[يونيو]],المكتب_الفعلي[#Headers],0))","v":{"v":12,"d":"ر.س.‏ 12.00"}},{"$f":"INDEX(خطة_المكتب[],MATCH(INDEX(فروق_المكتب[],ROW()-ROW(فروق_المكتب[[#Headers],[يوليو]]),1),INDEX(خطة_المكتب[],,1),0),MATCH(فروق_المكتب[[#Headers],[يوليو]],خطة_المكتب[#Headers],0))-INDEX(المكتب_الفعلي[],MATCH(INDEX(فروق_المكتب[],ROW()-ROW(فروق_المكتب[[#Headers],[يوليو]]),1),INDEX(خطة_المكتب[],,1),0),MATCH(فروق_المكتب[[#Headers],[يوليو]],المكتب_الفعلي[#Headers],0))","v":{"v":100,"d":"ر.س.‏ 100.00"}},{"$f":"INDEX(خطة_المكتب[],MATCH(INDEX(فروق_المكتب[],ROW()-ROW(فروق_المكتب[[#Headers],[أغسطس]]),1),INDEX(خطة_المكتب[],,1),0),MATCH(فروق_المكتب[[#Headers],[أغسطس]],خطة_المكتب[#Headers],0))-INDEX(المكتب_الفعلي[],MATCH(INDEX(فروق_المكتب[],ROW()-ROW(فروق_المكتب[[#Headers],[أغسطس]]),1),INDEX(خطة_المكتب[],,1),0),MATCH(فروق_المكتب[[#Headers],[أغسطس]],المكتب_الفعلي[#Headers],0))","v":{"v":100,"d":"ر.س.‏ 100.00"}},{"$f":"INDEX(خطة_المكتب[],MATCH(INDEX(فروق_المكتب[],ROW()-ROW(فروق_المكتب[[#Headers],[سبتمبر]]),1),INDEX(خطة_المكتب[],,1),0),MATCH(فروق_المكتب[[#Headers],[سبتمبر]],خطة_المكتب[#Headers],0))-INDEX(المكتب_الفعلي[],MATCH(INDEX(فروق_المكتب[],ROW()-ROW(فروق_المكتب[[#Headers],[سبتمبر]]),1),INDEX(خطة_المكتب[],,1),0),MATCH(فروق_المكتب[[#Headers],[سبتمبر]],المكتب_الفعلي[#Headers],0))","v":{"v":100,"d":"ر.س.‏ 100.00"}},{"$f":"INDEX(خطة_المكتب[],MATCH(INDEX(فروق_المكتب[],ROW()-ROW(فروق_المكتب[[#Headers],[أكتوبر]]),1),INDEX(خطة_المكتب[],,1),0),MATCH(فروق_المكتب[[#Headers],[أكتوبر]],خطة_المكتب[#Headers],0))-INDEX(المكتب_الفعلي[],MATCH(INDEX(فروق_المكتب[],ROW()-ROW(فروق_المكتب[[#Headers],[أكتوبر]]),1),INDEX(خطة_المكتب[],,1),0),MATCH(فروق_المكتب[[#Headers],[أكتوبر]],المكتب_الفعلي[#Headers],0))","v":{"v":100,"d":"ر.س.‏ 100.00"}},{"$f":"INDEX(خطة_المكتب[],MATCH(INDEX(فروق_المكتب[],ROW()-ROW(فروق_المكتب[[#Headers],[نوفمبر]]),1),INDEX(خطة_المكتب[],,1),0),MATCH(فروق_المكتب[[#Headers],[نوفمبر]],خطة_المكتب[#Headers],0))-INDEX(المكتب_الفعلي[],MATCH(INDEX(فروق_المكتب[],ROW()-ROW(فروق_المكتب[[#Headers],[نوفمبر]]),1),INDEX(خطة_المكتب[],,1),0),MATCH(فروق_المكتب[[#Headers],[نوفمبر]],المكتب_الفعلي[#Headers],0))","v":{"v":400,"d":"ر.س.‏ 400.00"}},{"$f":"INDEX(خطة_المكتب[],MATCH(INDEX(فروق_المكتب[],ROW()-ROW(فروق_المكتب[[#Headers],[ديسمبر]]),1),INDEX(خطة_المكتب[],,1),0),MATCH(فروق_المكتب[[#Headers],[ديسمبر]],خطة_المكتب[#Headers],0))-INDEX(المكتب_الفعلي[],MATCH(INDEX(فروق_المكتب[],ROW()-ROW(فروق_المكتب[[#Headers],[ديسمبر]]),1),INDEX(خطة_المكتب[],,1),0),MATCH(فروق_المكتب[[#Headers],[ديسمبر]],المكتب_الفعلي[#Headers],0))","v":{"v":400,"d":"ر.س.‏ 400.00"}},{"$f":"SUM(فروق_المكتب[[#This Row],[يناير]:[ديسمبر]])","v":{"v":1076,"d":"ر.س.‏ 1,076.00"}}]
[null,"كهرباء",{"$f":"INDEX(خطة_المكتب[],MATCH(INDEX(فروق_المكتب[],ROW()-ROW(فروق_المكتب[[#Headers],[يناير]]),1),INDEX(خطة_المكتب[],,1),0),MATCH(فروق_المكتب[[#Headers],[يناير]],خطة_المكتب[#Headers],0))-INDEX(المكتب_الفعلي[],MATCH(INDEX(فروق_المكتب[],ROW()-ROW(فروق_المكتب[[#Headers],[يناير]]),1),INDEX(خطة_المكتب[],,1),0),MATCH(فروق_المكتب[[#Headers],[يناير]],المكتب_الفعلي[#Headers],0))","v":{"v":12,"d":"ر.س.‏ 12.00"}},{"$f":"INDEX(خطة_المكتب[],MATCH(INDEX(فروق_المكتب[],ROW()-ROW(فروق_المكتب[[#Headers],[فبراير]]),1),INDEX(خطة_المكتب[],,1),0),MATCH(فروق_المكتب[[#Headers],[فبراير]],خطة_المكتب[#Headers],0))-INDEX(المكتب_الفعلي[],MATCH(INDEX(فروق_المكتب[],ROW()-ROW(فروق_المكتب[[#Headers],[فبراير]]),1),INDEX(خطة_المكتب[],,1),0),MATCH(فروق_المكتب[[#Headers],[فبراير]],المكتب_الفعلي[#Headers],0))","v":{"v":22,"d":"ر.س.‏ 22.00"}},{"$f":"INDEX(خطة_المكتب[],MATCH(INDEX(فروق_المكتب[],ROW()-ROW(فروق_المكتب[[#Headers],[مارس]]),1),INDEX(خطة_المكتب[],,1),0),MATCH(فروق_المكتب[[#Headers],[مارس]],خطة_المكتب[#Headers],0))-INDEX(المكتب_الفعلي[],MATCH(INDEX(فروق_المكتب[],ROW()-ROW(فروق_المكتب[[#Headers],[مارس]]),1),INDEX(خطة_المكتب[],,1),0),MATCH(فروق_المكتب[[#Headers],[مارس]],المكتب_الفعلي[#Headers],0))","v":{"v":32,"d":"ر.س.‏ 32.00"}},{"$f":"INDEX(خطة_المكتب[],MATCH(INDEX(فروق_المكتب[],ROW()-ROW(فروق_المكتب[[#Headers],[أبريل]]),1),INDEX(خطة_المكتب[],,1),0),MATCH(فروق_المكتب[[#Headers],[أبريل]],خطة_المكتب[#Headers],0))-INDEX(المكتب_الفعلي[],MATCH(INDEX(فروق_المكتب[],ROW()-ROW(فروق_المكتب[[#Headers],[أبريل]]),1),INDEX(خطة_المكتب[],,1),0),MATCH(فروق_المكتب[[#Headers],[أبريل]],المكتب_الفعلي[#Headers],0))","v":{"v":1,"d":"ر.س.‏ 1.00"}},{"$f":"INDEX(خطة_المكتب[],MATCH(INDEX(فروق_المكتب[],ROW()-ROW(فروق_المكتب[[#Headers],[مايو]]),1),INDEX(خطة_المكتب[],,1),0),MATCH(فروق_المكتب[[#Headers],[مايو]],خطة_المكتب[#Headers],0))-INDEX(المكتب_الفعلي[],MATCH(INDEX(فروق_المكتب[],ROW()-ROW(فروق_المكتب[[#Headers],[مايو]]),1),INDEX(خطة_المكتب[],,1),0),MATCH(فروق_المكتب[[#Headers],[مايو]],المكتب_الفعلي[#Headers],0))","v":{"v":-6,"d":"ر.س.‏ 6.00-"}},{"$f":"INDEX(خطة_المكتب[],MATCH(INDEX(فروق_المكتب[],ROW()-ROW(فروق_المكتب[[#Headers],[يونيو]]),1),INDEX(خطة_المكتب[],,1),0),MATCH(فروق_المكتب[[#Headers],[يونيو]],خطة_المكتب[#Headers],0))-INDEX(المكتب_الفعلي[],MATCH(INDEX(فروق_المكتب[],ROW()-ROW(فروق_المكتب[[#Headers],[يونيو]]),1),INDEX(خطة_المكتب[],,1),0),MATCH(فروق_المكتب[[#Headers],[يونيو]],المكتب_الفعلي[#Headers],0))","v":{"v":10,"d":"ر.س.‏ 10.00"}},{"$f":"INDEX(خطة_المكتب[],MATCH(INDEX(فروق_المكتب[],ROW()-ROW(فروق_المكتب[[#Headers],[يوليو]]),1),INDEX(خطة_المكتب[],,1),0),MATCH(فروق_المكتب[[#Headers],[يوليو]],خطة_المكتب[#Headers],0))-INDEX(المكتب_الفعلي[],MATCH(INDEX(فروق_المكتب[],ROW()-ROW(فروق_المكتب[[#Headers],[يوليو]]),1),INDEX(خطة_المكتب[],,1),0),MATCH(فروق_المكتب[[#Headers],[يوليو]],المكتب_الفعلي[#Headers],0))","v":{"v":300,"d":"ر.س.‏ 300.00"}},{"$f":"INDEX(خطة_المكتب[],MATCH(INDEX(فروق_المكتب[],ROW()-ROW(فروق_المكتب[[#Headers],[أغسطس]]),1),INDEX(خطة_المكتب[],,1),0),MATCH(فروق_المكتب[[#Headers],[أغسطس]],خطة_المكتب[#Headers],0))-INDEX(المكتب_الفعلي[],MATCH(INDEX(فروق_المكتب[],ROW()-ROW(فروق_المكتب[[#Headers],[أغسطس]]),1),INDEX(خطة_المكتب[],,1),0),MATCH(فروق_المكتب[[#Headers],[أغسطس]],المكتب_الفعلي[#Headers],0))","v":{"v":300,"d":"ر.س.‏ 300.00"}},{"$f":"INDEX(خطة_المكتب[],MATCH(INDEX(فروق_المكتب[],ROW()-ROW(فروق_المكتب[[#Headers],[سبتمبر]]),1),INDEX(خطة_المكتب[],,1),0),MATCH(فروق_المكتب[[#Headers],[سبتمبر]],خطة_المكتب[#Headers],0))-INDEX(المكتب_الفعلي[],MATCH(INDEX(فروق_المكتب[],ROW()-ROW(فروق_المكتب[[#Headers],[سبتمبر]]),1),INDEX(خطة_المكتب[],,1),0),MATCH(فروق_المكتب[[#Headers],[سبتمبر]],المكتب_الفعلي[#Headers],0))","v":{"v":300,"d":"ر.س.‏ 300.00"}},{"$f":"INDEX(خطة_المكتب[],MATCH(INDEX(فروق_المكتب[],ROW()-ROW(فروق_المكتب[[#Headers],[أكتوبر]]),1),INDEX(خطة_المكتب[],,1),0),MATCH(فروق_المكتب[[#Headers],[أكتوبر]],خطة_المكتب[#Headers],0))-INDEX(المكتب_الفعلي[],MATCH(INDEX(فروق_المكتب[],ROW()-ROW(فروق_المكتب[[#Headers],[أكتوبر]]),1),INDEX(خطة_المكتب[],,1),0),MATCH(فروق_المكتب[[#Headers],[أكتوبر]],المكتب_الفعلي[#Headers],0))","v":{"v":300,"d":"ر.س.‏ 300.00"}},{"$f":"INDEX(خطة_المكتب[],MATCH(INDEX(فروق_المكتب[],ROW()-ROW(فروق_المكتب[[#Headers],[نوفمبر]]),1),INDEX(خطة_المكتب[],,1),0),MATCH(فروق_المكتب[[#Headers],[نوفمبر]],خطة_المكتب[#Headers],0))-INDEX(المكتب_الفعلي[],MATCH(INDEX(فروق_المكتب[],ROW()-ROW(فروق_المكتب[[#Headers],[نوفمبر]]),1),INDEX(خطة_المكتب[],,1),0),MATCH(فروق_المكتب[[#Headers],[نوفمبر]],المكتب_الفعلي[#Headers],0))","v":{"v":300,"d":"ر.س.‏ 300.00"}},{"$f":"INDEX(خطة_المكتب[],MATCH(INDEX(فروق_المكتب[],ROW()-ROW(فروق_المكتب[[#Headers],[ديسمبر]]),1),INDEX(خطة_المكتب[],,1),0),MATCH(فروق_المكتب[[#Headers],[ديسمبر]],خطة_المكتب[#Headers],0))-INDEX(المكتب_الفعلي[],MATCH(INDEX(فروق_المكتب[],ROW()-ROW(فروق_المكتب[[#Headers],[ديسمبر]]),1),INDEX(خطة_المكتب[],,1),0),MATCH(فروق_المكتب[[#Headers],[ديسمبر]],المكتب_الفعلي[#Headers],0))","v":{"v":300,"d":"ر.س.‏ 300.00"}},{"$f":"SUM(فروق_المكتب[[#This Row],[يناير]:[ديسمبر]])","v":{"v":1871,"d":"ر.س.‏ 1,871.00"}}]
[null,"ماء",{"$f":"INDEX(خطة_المكتب[],MATCH(INDEX(فروق_المكتب[],ROW()-ROW(فروق_المكتب[[#Headers],[يناير]]),1),INDEX(خطة_المكتب[],,1),0),MATCH(فروق_المكتب[[#Headers],[يناير]],خطة_المكتب[#Headers],0))-INDEX(المكتب_الفعلي[],MATCH(INDEX(فروق_المكتب[],ROW()-ROW(فروق_المكتب[[#Headers],[يناير]]),1),INDEX(خطة_المكتب[],,1),0),MATCH(فروق_المكتب[[#Headers],[يناير]],المكتب_الفعلي[#Headers],0))","v":{"v":5,"d":"ر.س.‏ 5.00"}},{"$f":"INDEX(خطة_المكتب[],MATCH(INDEX(فروق_المكتب[],ROW()-ROW(فروق_المكتب[[#Headers],[فبراير]]),1),INDEX(خطة_المكتب[],,1),0),MATCH(فروق_المكتب[[#Headers],[فبراير]],خطة_المكتب[#Headers],0))-INDEX(المكتب_الفعلي[],MATCH(INDEX(فروق_المكتب[],ROW()-ROW(فروق_المكتب[[#Headers],[فبراير]]),1),INDEX(خطة_المكتب[],,1),0),MATCH(فروق_المكتب[[#Headers],[فبراير]],المكتب_الفعلي[#Headers],0))","v":{"v":7,"d":"ر.س.‏ 7.00"}},{"$f":"INDEX(خطة_المكتب[],MATCH(INDEX(فروق_المكتب[],ROW()-ROW(فروق_المكتب[[#Headers],[مارس]]),1),INDEX(خطة_المكتب[],,1),0),MATCH(فروق_المكتب[[#Headers],[مارس]],خطة_المكتب[#Headers],0))-INDEX(المكتب_الفعلي[],MATCH(INDEX(فروق_المكتب[],ROW()-ROW(فروق_المكتب[[#Headers],[مارس]]),1),INDEX(خطة_المكتب[],,1),0),MATCH(فروق_المكتب[[#Headers],[مارس]],المكتب_الفعلي[#Headers],0))","v":{"v":6,"d":"ر.س.‏ 6.00"}},{"$f":"INDEX(خطة_المكتب[],MATCH(INDEX(فروق_المكتب[],ROW()-ROW(فروق_المكتب[[#Headers],[أبريل]]),1),INDEX(خطة_المكتب[],,1),0),MATCH(فروق_المكتب[[#Headers],[أبريل]],خطة_المكتب[#Headers],0))-INDEX(المكتب_الفعلي[],MATCH(INDEX(فروق_المكتب[],ROW()-ROW(فروق_المكتب[[#Headers],[أبريل]]),1),INDEX(خطة_المكتب[],,1),0),MATCH(فروق_المكتب[[#Headers],[أبريل]],المكتب_الفعلي[#Headers],0))","v":{"v":4,"d":"ر.س.‏ 4.00"}},{"$f":"INDEX(خطة_المكتب[],MATCH(INDEX(فروق_المكتب[],ROW()-ROW(فروق_المكتب[[#Headers],[مايو]]),1),INDEX(خطة_المكتب[],,1),0),MATCH(فروق_المكتب[[#Headers],[مايو]],خطة_المكتب[#Headers],0))-INDEX(المكتب_الفعلي[],MATCH(INDEX(فروق_المكتب[],ROW()-ROW(فروق_المكتب[[#Headers],[مايو]]),1),INDEX(خطة_المكتب[],,1),0),MATCH(فروق_المكتب[[#Headers],[مايو]],المكتب_الفعلي[#Headers],0))","v":{"v":6,"d":"ر.س.‏ 6.00"}},{"$f":"INDEX(خطة_المكتب[],MATCH(INDEX(فروق_المكتب[],ROW()-ROW(فروق_المكتب[[#Headers],[يونيو]]),1),INDEX(خطة_المكتب[],,1),0),MATCH(فروق_المكتب[[#Headers],[يونيو]],خطة_المكتب[#Headers],0))-INDEX(المكتب_الفعلي[],MATCH(INDEX(فروق_المكتب[],ROW()-ROW(فروق_المكتب[[#Headers],[يونيو]]),1),INDEX(خطة_المكتب[],,1),0),MATCH(فروق_المكتب[[#Headers],[يونيو]],المكتب_الفعلي[#Headers],0))","v":{"v":4,"d":"ر.س.‏ 4.00"}},{"$f":"INDEX(خطة_المكتب[],MATCH(INDEX(فروق_المكتب[],ROW()-ROW(فروق_المكتب[[#Headers],[يوليو]]),1),INDEX(خطة_المكتب[],,1),0),MATCH(فروق_المكتب[[#Headers],[يوليو]],خطة_المكتب[#Headers],0))-INDEX(المكتب_الفعلي[],MATCH(INDEX(فروق_المكتب[],ROW()-ROW(فروق_المكتب[[#Headers],[يوليو]]),1),INDEX(خطة_المكتب[],,1),0),MATCH(فروق_المكتب[[#Headers],[يوليو]],المكتب_الفعلي[#Headers],0))","v":{"v":40,"d":"ر.س.‏ 40.00"}},{"$f":"INDEX(خطة_المكتب[],MATCH(INDEX(فروق_المكتب[],ROW()-ROW(فروق_المكتب[[#Headers],[أغسطس]]),1),INDEX(خطة_المكتب[],,1),0),MATCH(فروق_المكتب[[#Headers],[أغسطس]],خطة_المكتب[#Headers],0))-INDEX(المكتب_الفعلي[],MATCH(INDEX(فروق_المكتب[],ROW()-ROW(فروق_المكتب[[#Headers],[أغسطس]]),1),INDEX(خطة_المكتب[],,1),0),MATCH(فروق_المكتب[[#Headers],[أغسطس]],المكتب_الفعلي[#Headers],0))","v":{"v":40,"d":"ر.س.‏ 40.00"}},{"$f":"INDEX(خطة_المكتب[],MATCH(INDEX(فروق_المكتب[],ROW()-ROW(فروق_المكتب[[#Headers],[سبتمبر]]),1),INDEX(خطة_المكتب[],,1),0),MATCH(فروق_المكتب[[#Headers],[سبتمبر]],خطة_المكتب[#Headers],0))-INDEX(المكتب_الفعلي[],MATCH(INDEX(فروق_المكتب[],ROW()-ROW(فروق_المكتب[[#Headers],[سبتمبر]]),1),INDEX(خطة_المكتب[],,1),0),MATCH(فروق_المكتب[[#Headers],[سبتمبر]],المكتب_الفعلي[#Headers],0))","v":{"v":40,"d":"ر.س.‏ 40.00"}},{"$f":"INDEX(خطة_المكتب[],MATCH(INDEX(فروق_المكتب[],ROW()-ROW(فروق_المكتب[[#Headers],[أكتوبر]]),1),INDEX(خطة_المكتب[],,1),0),MATCH(فروق_المكتب[[#Headers],[أكتوبر]],خطة_المكتب[#Headers],0))-INDEX(المكتب_الفعلي[],MATCH(INDEX(فروق_المكتب[],ROW()-ROW(فروق_المكتب[[#Headers],[أكتوبر]]),1),INDEX(خطة_المكتب[],,1),0),MATCH(فروق_المكتب[[#Headers],[أكتوبر]],المكتب_الفعلي[#Headers],0))","v":{"v":40,"d":"ر.س.‏ 40.00"}},{"$f":"INDEX(خطة_المكتب[],MATCH(INDEX(فروق_المكتب[],ROW()-ROW(فروق_المكتب[[#Headers],[نوفمبر]]),1),INDEX(خطة_المكتب[],,1),0),MATCH(فروق_المكتب[[#Headers],[نوفمبر]],خطة_المكتب[#Headers],0))-INDEX(المكتب_الفعلي[],MATCH(INDEX(فروق_المكتب[],ROW()-ROW(فروق_المكتب[[#Headers],[نوفمبر]]),1),INDEX(خطة_المكتب[],,1),0),MATCH(فروق_المكتب[[#Headers],[نوفمبر]],المكتب_الفعلي[#Headers],0))","v":{"v":40,"d":"ر.س.‏ 40.00"}},{"$f":"INDEX(خطة_المكتب[],MATCH(INDEX(فروق_المكتب[],ROW()-ROW(فروق_المكتب[[#Headers],[ديسمبر]]),1),INDEX(خطة_المكتب[],,1),0),MATCH(فروق_المكتب[[#Headers],[ديسمبر]],خطة_المكتب[#Headers],0))-INDEX(المكتب_الفعلي[],MATCH(INDEX(فروق_المكتب[],ROW()-ROW(فروق_المكتب[[#Headers],[ديسمبر]]),1),INDEX(خطة_المكتب[],,1),0),MATCH(فروق_المكتب[[#Headers],[ديسمبر]],المكتب_الفعلي[#Headers],0))","v":{"v":40,"d":"ر.س.‏ 40.00"}},{"$f":"SUM(فروق_المكتب[[#This Row],[يناير]:[ديسمبر]])","v":{"v":272,"d":"ر.س.‏ 272.00"}}]
[null,"رقم الهاتف",{"$f":"INDEX(خطة_المكتب[],MATCH(INDEX(فروق_المكتب[],ROW()-ROW(فروق_المكتب[[#Headers],[يناير]]),1),INDEX(خطة_المكتب[],,1),0),MATCH(فروق_المكتب[[#Headers],[يناير]],خطة_المكتب[#Headers],0))-INDEX(المكتب_الفعلي[],MATCH(INDEX(فروق_المكتب[],ROW()-ROW(فروق_المكتب[[#Headers],[يناير]]),1),INDEX(خطة_المكتب[],,1),0),MATCH(فروق_المكتب[[#Headers],[يناير]],المكتب_الفعلي[#Headers],0))","v":{"v":26,"d":"ر.س.‏ 26.00"}},{"$f":"INDEX(خطة_المكتب[],MATCH(INDEX(فروق_المكتب[],ROW()-ROW(فروق_المكتب[[#Headers],[فبراير]]),1),INDEX(خطة_المكتب[],,1),0),MATCH(فروق_المكتب[[#Headers],[فبراير]],خطة_المكتب[#Headers],0))-INDEX(المكتب_الفعلي[],MATCH(INDEX(فروق_المكتب[],ROW()-ROW(فروق_المكتب[[#Headers],[فبراير]]),1),INDEX(خطة_المكتب[],,1),0),MATCH(فروق_المكتب[[#Headers],[فبراير]],المكتب_الفعلي[#Headers],0))","v":{"v":15,"d":"ر.س.‏ 15.00"}},{"$f":"INDEX(خطة_المكتب[],MATCH(INDEX(فروق_المكتب[],ROW()-ROW(فروق_المكتب[[#Headers],[مارس]]),1),INDEX(خطة_المكتب[],,1),0),MATCH(فروق_المكتب[[#Headers],[مارس]],خطة_المكتب[#Headers],0))-INDEX(المكتب_الفعلي[],MATCH(INDEX(فروق_المكتب[],ROW()-ROW(فروق_المكتب[[#Headers],[مارس]]),1),INDEX(خطة_المكتب[],,1),0),MATCH(فروق_المكتب[[#Headers],[مارس]],المكتب_الفعلي[#Headers],0))","v":{"v":-15,"d":"ر.س.‏ 15.00-"}},{"$f":"INDEX(خطة_المكتب[],MATCH(INDEX(فروق_المكتب[],ROW()-ROW(فروق_المكتب[[#Headers],[أبريل]]),1),INDEX(خطة_المكتب[],,1),0),MATCH(فروق_المكتب[[#Headers],[أبريل]],خطة_المكتب[#Headers],0))-INDEX(المكتب_الفعلي[],MATCH(INDEX(فروق_المكتب[],ROW()-ROW(فروق_المكتب[[#Headers],[أبريل]]),1),INDEX(خطة_المكتب[],,1),0),MATCH(فروق_المكتب[[#Headers],[أبريل]],المكتب_الفعلي[#Headers],0))","v":{"v":5,"d":"ر.س.‏ 5.00"}},{"$f":"INDEX(خطة_المكتب[],MATCH(INDEX(فروق_المكتب[],ROW()-ROW(فروق_المكتب[[#Headers],[مايو]]),1),INDEX(خطة_المكتب[],,1),0),MATCH(فروق_المكتب[[#Headers],[مايو]],خطة_المكتب[#Headers],0))-INDEX(المكتب_الفعلي[],MATCH(INDEX(فروق_المكتب[],ROW()-ROW(فروق_المكتب[[#Headers],[مايو]]),1),INDEX(خطة_المكتب[],,1),0),MATCH(فروق_المكتب[[#Headers],[مايو]],المكتب_الفعلي[#Headers],0))","v":{"v":5,"d":"ر.س.‏ 5.00"}},{"$f":"INDEX(خطة_المكتب[],MATCH(INDEX(فروق_المكتب[],ROW()-ROW(فروق_المكتب[[#Headers],[يونيو]]),1),INDEX(خطة_المكتب[],,1),0),MATCH(فروق_المكتب[[#Headers],[يونيو]],خطة_المكتب[#Headers],0))-INDEX(المكتب_الفعلي[],MATCH(INDEX(فروق_المكتب[],ROW()-ROW(فروق_المكتب[[#Headers],[يونيو]]),1),INDEX(خطة_المكتب[],,1),0),MATCH(فروق_المكتب[[#Headers],[يونيو]],المكتب_الفعلي[#Headers],0))","v":{"v":30,"d":"ر.س.‏ 30.00"}},{"$f":"INDEX(خطة_المكتب[],MATCH(INDEX(فروق_المكتب[],ROW()-ROW(فروق_المكتب[[#Headers],[يوليو]]),1),INDEX(خطة_المكتب[],,1),0),MATCH(فروق_المكتب[[#Headers],[يوليو]],خطة_المكتب[#Headers],0))-INDEX(المكتب_الفعلي[],MATCH(INDEX(فروق_المكتب[],ROW()-ROW(فروق_المكتب[[#Headers],[يوليو]]),1),INDEX(خطة_المكتب[],,1),0),MATCH(فروق_المكتب[[#Headers],[يوليو]],المكتب_الفعلي[#Headers],0))","v":{"v":250,"d":"ر.س.‏ 250.00"}},{"$f":"INDEX(خطة_المكتب[],MATCH(INDEX(فروق_المكتب[],ROW()-ROW(فروق_المكتب[[#Headers],[أغسطس]]),1),INDEX(خطة_المكتب[],,1),0),MATCH(فروق_المكتب[[#Headers],[أغسطس]],خطة_المكتب[#Headers],0))-INDEX(المكتب_الفعلي[],MATCH(INDEX(فروق_المكتب[],ROW()-ROW(فروق_المكتب[[#Headers],[أغسطس]]),1),INDEX(خطة_المكتب[],,1),0),MATCH(فروق_المكتب[[#Headers],[أغسطس]],المكتب_الفعلي[#Headers],0))","v":{"v":250,"d":"ر.س.‏ 250.00"}},{"$f":"INDEX(خطة_المكتب[],MATCH(INDEX(فروق_المكتب[],ROW()-ROW(فروق_المكتب[[#Headers],[سبتمبر]]),1),INDEX(خطة_المكتب[],,1),0),MATCH(فروق_المكتب[[#Headers],[سبتمبر]],خطة_المكتب[#Headers],0))-INDEX(المكتب_الفعلي[],MATCH(INDEX(فروق_المكتب[],ROW()-ROW(فروق_المكتب[[#Headers],[سبتمبر]]),1),INDEX(خطة_المكتب[],,1),0),MATCH(فروق_المكتب[[#Headers],[سبتمبر]],المكتب_الفعلي[#Headers],0))","v":{"v":250,"d":"ر.س.‏ 250.00"}},{"$f":"INDEX(خطة_المكتب[],MATCH(INDEX(فروق_المكتب[],ROW()-ROW(فروق_المكتب[[#Headers],[أكتوبر]]),1),INDEX(خطة_المكتب[],,1),0),MATCH(فروق_المكتب[[#Headers],[أكتوبر]],خطة_المكتب[#Headers],0))-INDEX(المكتب_الفعلي[],MATCH(INDEX(فروق_المكتب[],ROW()-ROW(فروق_المكتب[[#Headers],[أكتوبر]]),1),INDEX(خطة_المكتب[],,1),0),MATCH(فروق_المكتب[[#Headers],[أكتوبر]],المكتب_الفعلي[#Headers],0))","v":{"v":250,"d":"ر.س.‏ 250.00"}},{"$f":"INDEX(خطة_المكتب[],MATCH(INDEX(فروق_المكتب[],ROW()-ROW(فروق_المكتب[[#Headers],[نوفمبر]]),1),INDEX(خطة_المكتب[],,1),0),MATCH(فروق_المكتب[[#Headers],[نوفمبر]],خطة_المكتب[#Headers],0))-INDEX(المكتب_الفعلي[],MATCH(INDEX(فروق_المكتب[],ROW()-ROW(فروق_المكتب[[#Headers],[نوفمبر]]),1),INDEX(خطة_المكتب[],,1),0),MATCH(فروق_المكتب[[#Headers],[نوفمبر]],المكتب_الفعلي[#Headers],0))","v":{"v":250,"d":"ر.س.‏ 250.00"}},{"$f":"INDEX(خطة_المكتب[],MATCH(INDEX(فروق_المكتب[],ROW()-ROW(فروق_المكتب[[#Headers],[ديسمبر]]),1),INDEX(خطة_المكتب[],,1),0),MATCH(فروق_المكتب[[#Headers],[ديسمبر]],خطة_المكتب[#Headers],0))-INDEX(المكتب_الفعلي[],MATCH(INDEX(فروق_المكتب[],ROW()-ROW(فروق_المكتب[[#Headers],[ديسمبر]]),1),INDEX(خطة_المكتب[],,1),0),MATCH(فروق_المكتب[[#Headers],[ديسمبر]],المكتب_الفعلي[#Headers],0))","v":{"v":250,"d":"ر.س.‏ 250.00"}},{"$f":"SUM(فروق_المكتب[[#This Row],[يناير]:[ديسمبر]])","v":{"v":1566,"d":"ر.س.‏ 1,566.00"}}]
[null,"الوصول للإنترنت",{"$f":"INDEX(خطة_المكتب[],MATCH(INDEX(فروق_المكتب[],ROW()-ROW(فروق_المكتب[[#Headers],[يناير]]),1),INDEX(خطة_المكتب[],,1),0),MATCH(فروق_المكتب[[#Headers],[يناير]],خطة_المكتب[#Headers],0))-INDEX(المكتب_الفعلي[],MATCH(INDEX(فروق_المكتب[],ROW()-ROW(فروق_المكتب[[#Headers],[يناير]]),1),INDEX(خطة_المكتب[],,1),0),MATCH(فروق_المكتب[[#Headers],[يناير]],المكتب_الفعلي[#Headers],0))","v":{"v":0,"d":"ر.س.‏ 0.00"}},{"$f":"INDEX(خطة_المكتب[],MATCH(INDEX(فروق_المكتب[],ROW()-ROW(فروق_المكتب[[#Headers],[فبراير]]),1),INDEX(خطة_المكتب[],,1),0),MATCH(فروق_المكتب[[#Headers],[فبراير]],خطة_المكتب[#Headers],0))-INDEX(المكتب_الفعلي[],MATCH(INDEX(فروق_المكتب[],ROW()-ROW(فروق_المكتب[[#Headers],[فبراير]]),1),INDEX(خطة_المكتب[],,1),0),MATCH(فروق_المكتب[[#Headers],[فبراير]],المكتب_الفعلي[#Headers],0))","v":{"v":0,"d":"ر.س.‏ 0.00"}},{"$f":"INDEX(خطة_المكتب[],MATCH(INDEX(فروق_المكتب[],ROW()-ROW(فروق_المكتب[[#Headers],[مارس]]),1),INDEX(خطة_المكتب[],,1),0),MATCH(فروق_المكتب[[#Headers],[مارس]],خطة_المكتب[#Headers],0))-INDEX(المكتب_الفعلي[],MATCH(INDEX(فروق_المكتب[],ROW()-ROW(فروق_المكتب[[#Headers],[مارس]]),1),INDEX(خطة_المكتب[],,1),0),MATCH(فروق_المكتب[[#Headers],[مارس]],المكتب_الفعلي[#Headers],0))","v":{"v":0,"d":"ر.س.‏ 0.00"}},{"$f":"INDEX(خطة_المكتب[],MATCH(INDEX(فروق_المكتب[],ROW()-ROW(فروق_المكتب[[#Headers],[أبريل]]),1),INDEX(خطة_المكتب[],,1),0),MATCH(فروق_المكتب[[#Headers],[أبريل]],خطة_المكتب[#Headers],0))-INDEX(المكتب_الفعلي[],MATCH(INDEX(فروق_المكتب[],ROW()-ROW(فروق_المكتب[[#Headers],[أبريل]]),1),INDEX(خطة_المكتب[],,1),0),MATCH(فروق_المكتب[[#Headers],[أبريل]],المكتب_الفعلي[#Headers],0))","v":{"v":0,"d":"ر.س.‏ 0.00"}},{"$f":"INDEX(خطة_المكتب[],MATCH(INDEX(فروق_المكتب[],ROW()-ROW(فروق_المكتب[[#Headers],[مايو]]),1),INDEX(خطة_المكتب[],,1),0),MATCH(فروق_المكتب[[#Headers],[مايو]],خطة_المكتب[#Headers],0))-INDEX(المكتب_الفعلي[],MATCH(INDEX(فروق_المكتب[],ROW()-ROW(فروق_المكتب[[#Headers],[مايو]]),1),INDEX(خطة_المكتب[],,1),0),MATCH(فروق_المكتب[[#Headers],[مايو]],المكتب_الفعلي[#Headers],0))","v":{"v":0,"d":"ر.س.‏ 0.00"}},{"$f":"INDEX(خطة_المكتب[],MATCH(INDEX(فروق_المكتب[],ROW()-ROW(فروق_المكتب[[#Headers],[يونيو]]),1),INDEX(خطة_المكتب[],,1),0),MATCH(فروق_المكتب[[#Headers],[يونيو]],خطة_المكتب[#Headers],0))-INDEX(المكتب_الفعلي[],MATCH(INDEX(فروق_المكتب[],ROW()-ROW(فروق_المكتب[[#Headers],[يونيو]]),1),INDEX(خطة_المكتب[],,1),0),MATCH(فروق_المكتب[[#Headers],[يونيو]],المكتب_الفعلي[#Headers],0))","v":{"v":0,"d":"ر.س.‏ 0.00"}},{"$f":"INDEX(خطة_المكتب[],MATCH(INDEX(فروق_المكتب[],ROW()-ROW(فروق_المكتب[[#Headers],[يوليو]]),1),INDEX(خطة_المكتب[],,1),0),MATCH(فروق_المكتب[[#Headers],[يوليو]],خطة_المكتب[#Headers],0))-INDEX(المكتب_الفعلي[],MATCH(INDEX(فروق_المكتب[],ROW()-ROW(فروق_المكتب[[#Headers],[يوليو]]),1),INDEX(خطة_المكتب[],,1),0),MATCH(فروق_المكتب[[#Headers],[يوليو]],المكتب_الفعلي[#Headers],0))","v":{"v":180,"d":"ر.س.‏ 180.00"}},{"$f":"INDEX(خطة_المكتب[],MATCH(INDEX(فروق_المكتب[],ROW()-ROW(فروق_المكتب[[#Headers],[أغسطس]]),1),INDEX(خطة_المكتب[],,1),0),MATCH(فروق_المكتب[[#Headers],[أغسطس]],خطة_المكتب[#Headers],0))-INDEX(المكتب_الفعلي[],MATCH(INDEX(فروق_المكتب[],ROW()-ROW(فروق_المكتب[[#Headers],[أغسطس]]),1),INDEX(خطة_المكتب[],,1),0),MATCH(فروق_المكتب[[#Headers],[أغسطس]],المكتب_الفعلي[#Headers],0))","v":{"v":180,"d":"ر.س.‏ 180.00"}},{"$f":"INDEX(خطة_المكتب[],MATCH(INDEX(فروق_المكتب[],ROW()-ROW(فروق_المكتب[[#Headers],[سبتمبر]]),1),INDEX(خطة_المكتب[],,1),0),MATCH(فروق_المكتب[[#Headers],[سبتمبر]],خطة_المكتب[#Headers],0))-INDEX(المكتب_الفعلي[],MATCH(INDEX(فروق_المكتب[],ROW()-ROW(فروق_المكتب[[#Headers],[سبتمبر]]),1),INDEX(خطة_المكتب[],,1),0),MATCH(فروق_المكتب[[#Headers],[سبتمبر]],المكتب_الفعلي[#Headers],0))","v":{"v":180,"d":"ر.س.‏ 180.00"}},{"$f":"INDEX(خطة_المكتب[],MATCH(INDEX(فروق_المكتب[],ROW()-ROW(فروق_المكتب[[#Headers],[أكتوبر]]),1),INDEX(خطة_المكتب[],,1),0),MATCH(فروق_المكتب[[#Headers],[أكتوبر]],خطة_المكتب[#Headers],0))-INDEX(المكتب_الفعلي[],MATCH(INDEX(فروق_المكتب[],ROW()-ROW(فروق_المكتب[[#Headers],[أكتوبر]]),1),INDEX(خطة_المكتب[],,1),0),MATCH(فروق_المكتب[[#Headers],[أكتوبر]],المكتب_الفعلي[#Headers],0))","v":{"v":180,"d":"ر.س.‏ 180.00"}},{"$f":"INDEX(خطة_المكتب[],MATCH(INDEX(فروق_المكتب[],ROW()-ROW(فروق_المكتب[[#Headers],[نوفمبر]]),1),INDEX(خطة_المكتب[],,1),0),MATCH(فروق_المكتب[[#Headers],[نوفمبر]],خطة_المكتب[#Headers],0))-INDEX(المكتب_الفعلي[],MATCH(INDEX(فروق_المكتب[],ROW()-ROW(فروق_المكتب[[#Headers],[نوفمبر]]),1),INDEX(خطة_المكتب[],,1),0),MATCH(فروق_المكتب[[#Headers],[نوفمبر]],المكتب_الفعلي[#Headers],0))","v":{"v":180,"d":"ر.س.‏ 180.00"}},{"$f":"INDEX(خطة_المكتب[],MATCH(INDEX(فروق_المكتب[],ROW()-ROW(فروق_المكتب[[#Headers],[ديسمبر]]),1),INDEX(خطة_المكتب[],,1),0),MATCH(فروق_المكتب[[#Headers],[ديسمبر]],خطة_المكتب[#Headers],0))-INDEX(المكتب_الفعلي[],MATCH(INDEX(فروق_المكتب[],ROW()-ROW(فروق_المكتب[[#Headers],[ديسمبر]]),1),INDEX(خطة_المكتب[],,1),0),MATCH(فروق_المكتب[[#Headers],[ديسمبر]],المكتب_الفعلي[#Headers],0))","v":{"v":180,"d":"ر.س.‏ 180.00"}},{"$f":"SUM(فروق_المكتب[[#This Row],[يناير]:[ديسمبر]])","v":{"v":1080,"d":"ر.س.‏ 1,080.00"}}]
[null,"مستلزمات المكتب",{"$f":"INDEX(خطة_المكتب[],MATCH(INDEX(فروق_المكتب[],ROW()-ROW(فروق_المكتب[[#Headers],[يناير]]),1),INDEX(خطة_المكتب[],,1),0),MATCH(فروق_المكتب[[#Headers],[يناير]],خطة_المكتب[#Headers],0))-INDEX(المكتب_الفعلي[],MATCH(INDEX(فروق_المكتب[],ROW()-ROW(فروق_المكتب[[#Headers],[يناير]]),1),INDEX(خطة_المكتب[],,1),0),MATCH(فروق_المكتب[[#Headers],[يناير]],المكتب_الفعلي[#Headers],0))","v":{"v":-56,"d":"ر.س.‏ 56.00-"}},{"$f":"INDEX(خطة_المكتب[],MATCH(INDEX(فروق_المكتب[],ROW()-ROW(فروق_المكتب[[#Headers],[فبراير]]),1),INDEX(خطة_المكتب[],,1),0),MATCH(فروق_المكتب[[#Headers],[فبراير]],خطة_المكتب[#Headers],0))-INDEX(المكتب_الفعلي[],MATCH(INDEX(فروق_المكتب[],ROW()-ROW(فروق_المكتب[[#Headers],[فبراير]]),1),INDEX(خطة_المكتب[],,1),0),MATCH(فروق_المكتب[[#Headers],[فبراير]],المكتب_الفعلي[#Headers],0))","v":{"v":58,"d":"ر.س.‏ 58.00"}},{"$f":"INDEX(خطة_المكتب[],MATCH(INDEX(فروق_المكتب[],ROW()-ROW(فروق_المكتب[[#Headers],[مارس]]),1),INDEX(خطة_المكتب[],,1),0),MATCH(فروق_المكتب[[#Headers],[مارس]],خطة_المكتب[#Headers],0))-INDEX(المكتب_الفعلي[],MATCH(INDEX(فروق_المكتب[],ROW()-ROW(فروق_المكتب[[#Headers],[مارس]]),1),INDEX(خطة_المكتب[],,1),0),MATCH(فروق_المكتب[[#Headers],[مارس]],المكتب_الفعلي[#Headers],0))","v":{"v":40,"d":"ر.س.‏ 40.00"}},{"$f":"INDEX(خطة_المكتب[],MATCH(INDEX(فروق_المكتب[],ROW()-ROW(فروق_المكتب[[#Headers],[أبريل]]),1),INDEX(خطة_المكتب[],,1),0),MATCH(فروق_المكتب[[#Headers],[أبريل]],خطة_المكتب[#Headers],0))-INDEX(المكتب_الفعلي[],MATCH(INDEX(فروق_المكتب[],ROW()-ROW(فروق_المكتب[[#Headers],[أبريل]]),1),INDEX(خطة_المكتب[],,1),0),MATCH(فروق_المكتب[[#Headers],[أبريل]],المكتب_الفعلي[#Headers],0))","v":{"v":-21,"d":"ر.س.‏ 21.00-"}},{"$f":"INDEX(خطة_المكتب[],MATCH(INDEX(فروق_المكتب[],ROW()-ROW(فروق_المكتب[[#Headers],[مايو]]),1),INDEX(خطة_المكتب[],,1),0),MATCH(فروق_المكتب[[#Headers],[مايو]],خطة_المكتب[#Headers],0))-INDEX(المكتب_الفعلي[],MATCH(INDEX(فروق_المكتب[],ROW()-ROW(فروق_المكتب[[#Headers],[مايو]]),1),INDEX(خطة_المكتب[],,1),0),MATCH(فروق_المكتب[[#Headers],[مايو]],المكتب_الفعلي[#Headers],0))","v":{"v":-56,"d":"ر.س.‏ 56.00-"}},{"$f":"INDEX(خطة_المكتب[],MATCH(INDEX(فروق_المكتب[],ROW()-ROW(فروق_المكتب[[#Headers],[يونيو]]),1),INDEX(خطة_المكتب[],,1),0),MATCH(فروق_المكتب[[#Headers],[يونيو]],خطة_المكتب[#Headers],0))-INDEX(المكتب_الفعلي[],MATCH(INDEX(فروق_المكتب[],ROW()-ROW(فروق_المكتب[[#Headers],[يونيو]]),1),INDEX(خطة_المكتب[],,1),0),MATCH(فروق_المكتب[[#Headers],[يونيو]],المكتب_الفعلي[#Headers],0))","v":{"v":-40,"d":"ر.س.‏ 40.00-"}},{"$f":"INDEX(خطة_المكتب[],MATCH(INDEX(فروق_المكتب[],ROW()-ROW(فروق_المكتب[[#Headers],[يوليو]]),1),INDEX(خطة_المكتب[],,1),0),MATCH(فروق_المكتب[[#Headers],[يوليو]],خطة_المكتب[#Headers],0))-INDEX(المكتب_الفعلي[],MATCH(INDEX(فروق_المكتب[],ROW()-ROW(فروق_المكتب[[#Headers],[يوليو]]),1),INDEX(خطة_المكتب[],,1),0),MATCH(فروق_المكتب[[#Headers],[يوليو]],المكتب_الفعلي[#Headers],0))","v":{"v":200,"d":"ر.س.‏ 200.00"}},{"$f":"INDEX(خطة_المكتب[],MATCH(INDEX(فروق_المكتب[],ROW()-ROW(فروق_المكتب[[#Headers],[أغسطس]]),1),INDEX(خطة_المكتب[],,1),0),MATCH(فروق_المكتب[[#Headers],[أغسطس]],خطة_المكتب[#Headers],0))-INDEX(المكتب_الفعلي[],MATCH(INDEX(فروق_المكتب[],ROW()-ROW(فروق_المكتب[[#Headers],[أغسطس]]),1),INDEX(خطة_المكتب[],,1),0),MATCH(فروق_المكتب[[#Headers],[أغسطس]],المكتب_الفعلي[#Headers],0))","v":{"v":200,"d":"ر.س.‏ 200.00"}},{"$f":"INDEX(خطة_المكتب[],MATCH(INDEX(فروق_المكتب[],ROW()-ROW(فروق_المكتب[[#Headers],[سبتمبر]]),1),INDEX(خطة_المكتب[],,1),0),MATCH(فروق_المكتب[[#Headers],[سبتمبر]],خطة_المكتب[#Headers],0))-INDEX(المكتب_الفعلي[],MATCH(INDEX(فروق_المكتب[],ROW()-ROW(فروق_المكتب[[#Headers],[سبتمبر]]),1),INDEX(خطة_المكتب[],,1),0),MATCH(فروق_المكتب[[#Headers],[سبتمبر]],المكتب_الفعلي[#Headers],0))","v":{"v":200,"d":"ر.س.‏ 200.00"}},{"$f":"INDEX(خطة_المكتب[],MATCH(INDEX(فروق_المكتب[],ROW()-ROW(فروق_المكتب[[#Headers],[أكتوبر]]),1),INDEX(خطة_المكتب[],,1),0),MATCH(فروق_المكتب[[#Headers],[أكتوبر]],خطة_المكتب[#Headers],0))-INDEX(المكتب_الفعلي[],MATCH(INDEX(فروق_المكتب[],ROW()-ROW(فروق_المكتب[[#Headers],[أكتوبر]]),1),INDEX(خطة_المكتب[],,1),0),MATCH(فروق_المكتب[[#Headers],[أكتوبر]],المكتب_الفعلي[#Headers],0))","v":{"v":200,"d":"ر.س.‏ 200.00"}},{"$f":"INDEX(خطة_المكتب[],MATCH(INDEX(فروق_المكتب[],ROW()-ROW(فروق_المكتب[[#Headers],[نوفمبر]]),1),INDEX(خطة_المكتب[],,1),0),MATCH(فروق_المكتب[[#Headers],[نوفمبر]],خطة_المكتب[#Headers],0))-INDEX(المكتب_الفعلي[],MATCH(INDEX(فروق_المكتب[],ROW()-ROW(فروق_المكتب[[#Headers],[نوفمبر]]),1),INDEX(خطة_المكتب[],,1),0),MATCH(فروق_المكتب[[#Headers],[نوفمبر]],المكتب_الفعلي[#Headers],0))","v":{"v":200,"d":"ر.س.‏ 200.00"}},{"$f":"INDEX(خطة_المكتب[],MATCH(INDEX(فروق_المكتب[],ROW()-ROW(فروق_المكتب[[#Headers],[ديسمبر]]),1),INDEX(خطة_المكتب[],,1),0),MATCH(فروق_المكتب[[#Headers],[ديسمبر]],خطة_المكتب[#Headers],0))-INDEX(المكتب_الفعلي[],MATCH(INDEX(فروق_المكتب[],ROW()-ROW(فروق_المكتب[[#Headers],[ديسمبر]]),1),INDEX(خطة_المكتب[],,1),0),MATCH(فروق_المكتب[[#Headers],[ديسمبر]],المكتب_الفعلي[#Headers],0))","v":{"v":200,"d":"ر.س.‏ 200.00"}},{"$f":"SUM(فروق_المكتب[[#This Row],[يناير]:[ديسمبر]])","v":{"v":1125,"d":"ر.س.‏ 1,125.00"}}]
[null,"الأمان",{"$f":"INDEX(خطة_المكتب[],MATCH(INDEX(فروق_المكتب[],ROW()-ROW(فروق_المكتب[[#Headers],[يناير]]),1),INDEX(خطة_المكتب[],,1),0),MATCH(فروق_المكتب[[#Headers],[يناير]],خطة_المكتب[#Headers],0))-INDEX(المكتب_الفعلي[],MATCH(INDEX(فروق_المكتب[],ROW()-ROW(فروق_المكتب[[#Headers],[يناير]]),1),INDEX(خطة_المكتب[],,1),0),MATCH(فروق_المكتب[[#Headers],[يناير]],المكتب_الفعلي[#Headers],0))","v":{"v":0,"d":"ر.س.‏ 0.00"}},{"$f":"INDEX(خطة_المكتب[],MATCH(INDEX(فروق_المكتب[],ROW()-ROW(فروق_المكتب[[#Headers],[فبراير]]),1),INDEX(خطة_المكتب[],,1),0),MATCH(فروق_المكتب[[#Headers],[فبراير]],خطة_المكتب[#Headers],0))-INDEX(المكتب_الفعلي[],MATCH(INDEX(فروق_المكتب[],ROW()-ROW(فروق_المكتب[[#Headers],[فبراير]]),1),INDEX(خطة_المكتب[],,1),0),MATCH(فروق_المكتب[[#Headers],[فبراير]],المكتب_الفعلي[#Headers],0))","v":{"v":0,"d":"ر.س.‏ 0.00"}},{"$f":"INDEX(خطة_المكتب[],MATCH(INDEX(فروق_المكتب[],ROW()-ROW(فروق_المكتب[[#Headers],[مارس]]),1),INDEX(خطة_المكتب[],,1),0),MATCH(فروق_المكتب[[#Headers],[مارس]],خطة_المكتب[#Headers],0))-INDEX(المكتب_الفعلي[],MATCH(INDEX(فروق_المكتب[],ROW()-ROW(فروق_المكتب[[#Headers],[مارس]]),1),INDEX(خطة_المكتب[],,1),0),MATCH(فروق_المكتب[[#Headers],[مارس]],المكتب_الفعلي[#Headers],0))","v":{"v":0,"d":"ر.س.‏ 0.00"}},{"$f":"INDEX(خطة_المكتب[],MATCH(INDEX(فروق_المكتب[],ROW()-ROW(فروق_المكتب[[#Headers],[أبريل]]),1),INDEX(خطة_المكتب[],,1),0),MATCH(فروق_المكتب[[#Headers],[أبريل]],خطة_المكتب[#Headers],0))-INDEX(المكتب_الفعلي[],MATCH(INDEX(فروق_المكتب[],ROW()-ROW(فروق_المكتب[[#Headers],[أبريل]]),1),INDEX(خطة_المكتب[],,1),0),MATCH(فروق_المكتب[[#Headers],[أبريل]],المكتب_الفعلي[#Headers],0))","v":{"v":0,"d":"ر.س.‏ 0.00"}},{"$f":"INDEX(خطة_المكتب[],MATCH(INDEX(فروق_المكتب[],ROW()-ROW(فروق_المكتب[[#Headers],[مايو]]),1),INDEX(خطة_المكتب[],,1),0),MATCH(فروق_المكتب[[#Headers],[مايو]],خطة_المكتب[#Headers],0))-INDEX(المكتب_الفعلي[],MATCH(INDEX(فروق_المكتب[],ROW()-ROW(فروق_المكتب[[#Headers],[مايو]]),1),INDEX(خطة_المكتب[],,1),0),MATCH(فروق_المكتب[[#Headers],[مايو]],المكتب_الفعلي[#Headers],0))","v":{"v":0,"d":"ر.س.‏ 0.00"}},{"$f":"INDEX(خطة_المكتب[],MATCH(INDEX(فروق_المكتب[],ROW()-ROW(فروق_المكتب[[#Headers],[يونيو]]),1),INDEX(خطة_المكتب[],,1),0),MATCH(فروق_المكتب[[#Headers],[يونيو]],خطة_المكتب[#Headers],0))-INDEX(المكتب_الفعلي[],MATCH(INDEX(فروق_المكتب[],ROW()-ROW(فروق_المكتب[[#Headers],[يونيو]]),1),INDEX(خطة_المكتب[],,1),0),MATCH(فروق_المكتب[[#Headers],[يونيو]],المكتب_الفعلي[#Headers],0))","v":{"v":0,"d":"ر.س.‏ 0.00"}},{"$f":"INDEX(خطة_المكتب[],MATCH(INDEX(فروق_المكتب[],ROW()-ROW(فروق_المكتب[[#Headers],[يوليو]]),1),INDEX(خطة_المكتب[],,1),0),MATCH(فروق_المكتب[[#Headers],[يوليو]],خطة_المكتب[#Headers],0))-INDEX(المكتب_الفعلي[],MATCH(INDEX(فروق_المكتب[],ROW()-ROW(فروق_المكتب[[#Headers],[يوليو]]),1),INDEX(خطة_المكتب[],,1),0),MATCH(فروق_المكتب[[#Headers],[يوليو]],المكتب_الفعلي[#Headers],0))","v":{"v":600,"d":"ر.س.‏ 600.00"}},{"$f":"INDEX(خطة_المكتب[],MATCH(INDEX(فروق_المكتب[],ROW()-ROW(فروق_المكتب[[#Headers],[أغسطس]]),1),INDEX(خطة_المكتب[],,1),0),MATCH(فروق_المكتب[[#Headers],[أغسطس]],خطة_المكتب[#Headers],0))-INDEX(المكتب_الفعلي[],MATCH(INDEX(فروق_المكتب[],ROW()-ROW(فروق_المكتب[[#Headers],[أغسطس]]),1),INDEX(خطة_المكتب[],,1),0),MATCH(فروق_المكتب[[#Headers],[أغسطس]],المكتب_الفعلي[#Headers],0))","v":{"v":600,"d":"ر.س.‏ 600.00"}},{"$f":"INDEX(خطة_المكتب[],MATCH(INDEX(فروق_المكتب[],ROW()-ROW(فروق_المكتب[[#Headers],[سبتمبر]]),1),INDEX(خطة_المكتب[],,1),0),MATCH(فروق_المكتب[[#Headers],[سبتمبر]],خطة_المكتب[#Headers],0))-INDEX(المكتب_الفعلي[],MATCH(INDEX(فروق_المكتب[],ROW()-ROW(فروق_المكتب[[#Headers],[سبتمبر]]),1),INDEX(خطة_المكتب[],,1),0),MATCH(فروق_المكتب[[#Headers],[سبتمبر]],المكتب_الفعلي[#Headers],0))","v":{"v":600,"d":"ر.س.‏ 600.00"}},{"$f":"INDEX(خطة_المكتب[],MATCH(INDEX(فروق_المكتب[],ROW()-ROW(فروق_المكتب[[#Headers],[أكتوبر]]),1),INDEX(خطة_المكتب[],,1),0),MATCH(فروق_المكتب[[#Headers],[أكتوبر]],خطة_المكتب[#Headers],0))-INDEX(المكتب_الفعلي[],MATCH(INDEX(فروق_المكتب[],ROW()-ROW(فروق_المكتب[[#Headers],[أكتوبر]]),1),INDEX(خطة_المكتب[],,1),0),MATCH(فروق_المكتب[[#Headers],[أكتوبر]],المكتب_الفعلي[#Headers],0))","v":{"v":600,"d":"ر.س.‏ 600.00"}},{"$f":"INDEX(خطة_المكتب[],MATCH(INDEX(فروق_المكتب[],ROW()-ROW(فروق_المكتب[[#Headers],[نوفمبر]]),1),INDEX(خطة_المكتب[],,1),0),MATCH(فروق_المكتب[[#Headers],[نوفمبر]],خطة_المكتب[#Headers],0))-INDEX(المكتب_الفعلي[],MATCH(INDEX(فروق_المكتب[],ROW()-ROW(فروق_المكتب[[#Headers],[نوفمبر]]),1),INDEX(خطة_المكتب[],,1),0),MATCH(فروق_المكتب[[#Headers],[نوفمبر]],المكتب_الفعلي[#Headers],0))","v":{"v":600,"d":"ر.س.‏ 600.00"}},{"$f":"INDEX(خطة_المكتب[],MATCH(INDEX(فروق_المكتب[],ROW()-ROW(فروق_المكتب[[#Headers],[ديسمبر]]),1),INDEX(خطة_المكتب[],,1),0),MATCH(فروق_المكتب[[#Headers],[ديسمبر]],خطة_المكتب[#Headers],0))-INDEX(المكتب_الفعلي[],MATCH(INDEX(فروق_المكتب[],ROW()-ROW(فروق_المكتب[[#Headers],[ديسمبر]]),1),INDEX(خطة_المكتب[],,1),0),MATCH(فروق_المكتب[[#Headers],[ديسمبر]],المكتب_الفعلي[#Headers],0))","v":{"v":600,"d":"ر.س.‏ 600.00"}},{"$f":"SUM(فروق_المكتب[[#This Row],[يناير]:[ديسمبر]])","v":{"v":3600,"d":"ر.س.‏ 3,600.00"}}]
[null,"الإجمالي الفرعي",{"$f":"SUBTOTAL(109,فروق_المكتب[يناير])","v":{"v":-17,"d":"ر.س.‏ 17.00-"}},{"$f":"SUBTOTAL(109,فروق_المكتب[فبراير])","v":{"v":72,"d":"ر.س.‏ 72.00"}},{"$f":"SUBTOTAL(109,فروق_المكتب[مارس])","v":{"v":78,"d":"ر.س.‏ 78.00"}},{"$f":"SUBTOTAL(109,فروق_المكتب[أبريل])","v":{"v":-141,"d":"ر.س.‏ 141.00-"}},{"$f":"SUBTOTAL(109,فروق_المكتب[مايو])","v":{"v":-38,"d":"ر.س.‏ 38.00-"}},{"$f":"SUBTOTAL(109,فروق_المكتب[يونيو])","v":{"v":16,"d":"ر.س.‏ 16.00"}},{"$f":"SUBTOTAL(109,فروق_المكتب[يوليو])","v":{"v":11470,"d":"ر.س.‏ 11,470.00"}},{"$f":"SUBTOTAL(109,فروق_المكتب[أغسطس])","v":{"v":11470,"d":"ر.س.‏ 11,470.00"}},{"$f":"SUBTOTAL(109,فروق_المكتب[سبتمبر])","v":{"v":11470,"d":"ر.س.‏ 11,470.00"}},{"$f":"SUBTOTAL(109,فروق_المكتب[أكتوبر])","v":{"v":11470,"d":"ر.س.‏ 11,470.00"}},{"$f":"SUBTOTAL(109,فروق_المكتب[نوفمبر])","v":{"v":11770,"d":"ر.س.‏ 11,770.00"}},{"$f":"SUBTOTAL(109,فروق_المكتب[ديسمبر])","v":{"v":11770,"d":"ر.س.‏ 11,770.00"}},{"$f":"SUBTOTAL(109,فروق_المكتب[السنة])","v":{"v":69390,"d":"ر.س.‏ 69,390.00"}}]
[]
["يتم حساب الفرق في \"تكاليف التسويق\" تلقائياً في الجدول \"فروق التسويق\" بدءاً من الخلية الموجودة على اليسار. توجد الإرشادات التالية في الخلية A30.","تكاليف التسويق","يناير","فبراير","مارس","أبريل","مايو","يونيو","يوليو","أغسطس","سبتمبر","أكتوبر","نوفمبر","ديسمبر","السنة"]
[null,"استضافة موقع الويب",{"$f":"INDEX(خطة_التسويق[],MATCH(INDEX(فروق_التسويق[],ROW()-ROW(فروق_التسويق[[#Headers],[يناير]]),1),INDEX(خطة_التسويق[],,1),0),MATCH(فروق_التسويق[[#Headers],[يناير]],خطة_التسويق[#Headers],0))-INDEX(التسويق_الفعلي[],MATCH(INDEX(فروق_التسويق[],ROW()-ROW(فروق_التسويق[[#Headers],[يناير]]),1),INDEX(خطة_التسويق[],,1),0),MATCH(فروق_التسويق[[#Headers],[يناير]],التسويق_الفعلي[#Headers],0))","v":{"v":0,"d":"ر.س.‏ 0.00"}},{"$f":"INDEX(خطة_التسويق[],MATCH(INDEX(فروق_التسويق[],ROW()-ROW(فروق_التسويق[[#Headers],[فبراير]]),1),INDEX(خطة_التسويق[],,1),0),MATCH(فروق_التسويق[[#Headers],[فبراير]],خطة_التسويق[#Headers],0))-INDEX(التسويق_الفعلي[],MATCH(INDEX(فروق_التسويق[],ROW()-ROW(فروق_التسويق[[#Headers],[فبراير]]),1),INDEX(خطة_التسويق[],,1),0),MATCH(فروق_التسويق[[#Headers],[فبراير]],التسويق_الفعلي[#Headers],0))","v":{"v":0,"d":"ر.س.‏ 0.00"}},{"$f":"INDEX(خطة_التسويق[],MATCH(INDEX(فروق_التسويق[],ROW()-ROW(فروق_التسويق[[#Headers],[مارس]]),1),INDEX(خطة_التسويق[],,1),0),MATCH(فروق_التسويق[[#Headers],[مارس]],خطة_التسويق[#Headers],0))-INDEX(التسويق_الفعلي[],MATCH(INDEX(فروق_التسويق[],ROW()-ROW(فروق_التسويق[[#Headers],[مارس]]),1),INDEX(خطة_التسويق[],,1),0),MATCH(فروق_التسويق[[#Headers],[مارس]],التسويق_الفعلي[#Headers],0))","v":{"v":0,"d":"ر.س.‏ 0.00"}},{"$f":"INDEX(خطة_التسويق[],MATCH(INDEX(فروق_التسويق[],ROW()-ROW(فروق_التسويق[[#Headers],[أبريل]]),1),INDEX(خطة_التسويق[],,1),0),MATCH(فروق_التسويق[[#Headers],[أبريل]],خطة_التسويق[#Headers],0))-INDEX(التسويق_الفعلي[],MATCH(INDEX(فروق_التسويق[],ROW()-ROW(فروق_التسويق[[#Headers],[أبريل]]),1),INDEX(خطة_التسويق[],,1),0),MATCH(فروق_التسويق[[#Headers],[أبريل]],التسويق_الفعلي[#Headers],0))","v":{"v":0,"d":"ر.س.‏ 0.00"}},{"$f":"INDEX(خطة_التسويق[],MATCH(INDEX(فروق_التسويق[],ROW()-ROW(فروق_التسويق[[#Headers],[مايو]]),1),INDEX(خطة_التسويق[],,1),0),MATCH(فروق_التسويق[[#Headers],[مايو]],خطة_التسويق[#Headers],0))-INDEX(التسويق_الفعلي[],MATCH(INDEX(فروق_التسويق[],ROW()-ROW(فروق_التسويق[[#Headers],[مايو]]),1),INDEX(خطة_التسويق[],,1),0),MATCH(فروق_التسويق[[#Headers],[مايو]],التسويق_الفعلي[#Headers],0))","v":{"v":0,"d":"ر.س.‏ 0.00"}},{"$f":"INDEX(خطة_التسويق[],MATCH(INDEX(فروق_التسويق[],ROW()-ROW(فروق_التسويق[[#Headers],[يونيو]]),1),INDEX(خطة_التسويق[],,1),0),MATCH(فروق_التسويق[[#Headers],[يونيو]],خطة_التسويق[#Headers],0))-INDEX(التسويق_الفعلي[],MATCH(INDEX(فروق_التسويق[],ROW()-ROW(فروق_التسويق[[#Headers],[يونيو]]),1),INDEX(خطة_التسويق[],,1),0),MATCH(فروق_التسويق[[#Headers],[يونيو]],التسويق_الفعلي[#Headers],0))","v":{"v":0,"d":"ر.س.‏ 0.00"}},{"$f":"INDEX(خطة_التسويق[],MATCH(INDEX(فروق_التسويق[],ROW()-ROW(فروق_التسويق[[#Headers],[يوليو]]),1),INDEX(خطة_التسويق[],,1),0),MATCH(فروق_التسويق[[#Headers],[يوليو]],خطة_التسويق[#Headers],0))-INDEX(التسويق_الفعلي[],MATCH(INDEX(فروق_التسويق[],ROW()-ROW(فروق_التسويق[[#Headers],[يوليو]]),1),INDEX(خطة_التسويق[],,1),0),MATCH(فروق_التسويق[[#Headers],[يوليو]],التسويق_الفعلي[#Headers],0))","v":{"v":500,"d":"ر.س.‏ 500.00"}},{"$f":"INDEX(خطة_التسويق[],MATCH(INDEX(فروق_التسويق[],ROW()-ROW(فروق_التسويق[[#Headers],[أغسطس]]),1),INDEX(خطة_التسويق[],,1),0),MATCH(فروق_التسويق[[#Headers],[أغسطس]],خطة_التسويق[#Headers],0))-INDEX(التسويق_الفعلي[],MATCH(INDEX(فروق_التسويق[],ROW()-ROW(فروق_التسويق[[#Headers],[أغسطس]]),1),INDEX(خطة_التسويق[],,1),0),MATCH(فروق_التسويق[[#Headers],[أغسطس]],التسويق_الفعلي[#Headers],0))","v":{"v":500,"d":"ر.س.‏ 500.00"}},{"$f":"INDEX(خطة_التسويق[],MATCH(INDEX(فروق_التسويق[],ROW()-ROW(فروق_التسويق[[#Headers],[سبتمبر]]),1),INDEX(خطة_التسويق[],,1),0),MATCH(فروق_التسويق[[#Headers],[سبتمبر]],خطة_التسويق[#Headers],0))-INDEX(التسويق_الفعلي[],MATCH(INDEX(فروق_التسويق[],ROW()-ROW(فروق_التسويق[[#Headers],[سبتمبر]]),1),INDEX(خطة_التسويق[],,1),0),MATCH(فروق_التسويق[[#Headers],[سبتمبر]],التسويق_الفعلي[#Headers],0))","v":{"v":500,"d":"ر.س.‏ 500.00"}},{"$f":"INDEX(خطة_التسويق[],MATCH(INDEX(فروق_التسويق[],ROW()-ROW(فروق_التسويق[[#Headers],[أكتوبر]]),1),INDEX(خطة_التسويق[],,1),0),MATCH(فروق_التسويق[[#Headers],[أكتوبر]],خطة_التسويق[#Headers],0))-INDEX(التسويق_الفعلي[],MATCH(INDEX(فروق_التسويق[],ROW()-ROW(فروق_التسويق[[#Headers],[أكتوبر]]),1),INDEX(خطة_التسويق[],,1),0),MATCH(فروق_التسويق[[#Headers],[أكتوبر]],التسويق_الفعلي[#Headers],0))","v":{"v":500,"d":"ر.س.‏ 500.00"}},{"$f":"INDEX(خطة_التسويق[],MATCH(INDEX(فروق_التسويق[],ROW()-ROW(فروق_التسويق[[#Headers],[نوفمبر]]),1),INDEX(خطة_التسويق[],,1),0),MATCH(فروق_التسويق[[#Headers],[نوفمبر]],خطة_التسويق[#Headers],0))-INDEX(التسويق_الفعلي[],MATCH(INDEX(فروق_التسويق[],ROW()-ROW(فروق_التسويق[[#Headers],[نوفمبر]]),1),INDEX(خطة_التسويق[],,1),0),MATCH(فروق_التسويق[[#Headers],[نوفمبر]],التسويق_الفعلي[#Headers],0))","v":{"v":500,"d":"ر.س.‏ 500.00"}},{"$f":"INDEX(خطة_التسويق[],MATCH(INDEX(فروق_التسويق[],ROW()-ROW(فروق_التسويق[[#Headers],[ديسمبر]]),1),INDEX(خطة_التسويق[],,1),0),MATCH(فروق_التسويق[[#Headers],[ديسمبر]],خطة_التسويق[#Headers],0))-INDEX(التسويق_الفعلي[],MATCH(INDEX(فروق_التسويق[],ROW()-ROW(فروق_التسويق[[#Headers],[ديسمبر]]),1),INDEX(خطة_التسويق[],,1),0),MATCH(فروق_التسويق[[#Headers],[ديسمبر]],التسويق_الفعلي[#Headers],0))","v":{"v":500,"d":"ر.س.‏ 500.00"}},{"$f":"SUM(فروق_التسويق[[#This Row],[يناير]:[ديسمبر]])","v":{"v":3000,"d":"ر.س.‏ 3,000.00"}}]
[null,"تحديثات موقع الويب",{"$f":"INDEX(خطة_التسويق[],MATCH(INDEX(فروق_التسويق[],ROW()-ROW(فروق_التسويق[[#Headers],[يناير]]),1),INDEX(خطة_التسويق[],,1),0),MATCH(فروق_التسويق[[#Headers],[يناير]],خطة_التسويق[#Headers],0))-INDEX(التسويق_الفعلي[],MATCH(INDEX(فروق_التسويق[],ROW()-ROW(فروق_التسويق[[#Headers],[يناير]]),1),INDEX(خطة_التسويق[],,1),0),MATCH(فروق_التسويق[[#Headers],[يناير]],التسويق_الفعلي[#Headers],0))","v":{"v":0,"d":"ر.س.‏ 0.00"}},{"$f":"INDEX(خطة_التسويق[],MATCH(INDEX(فروق_التسويق[],ROW()-ROW(فروق_التسويق[[#Headers],[فبراير]]),1),INDEX(خطة_التسويق[],,1),0),MATCH(فروق_التسويق[[#Headers],[فبراير]],خطة_التسويق[#Headers],0))-INDEX(التسويق_الفعلي[],MATCH(INDEX(فروق_التسويق[],ROW()-ROW(فروق_التسويق[[#Headers],[فبراير]]),1),INDEX(خطة_التسويق[],,1),0),MATCH(فروق_التسويق[[#Headers],[فبراير]],التسويق_الفعلي[#Headers],0))","v":{"v":0,"d":"ر.س.‏ 0.00"}},{"$f":"INDEX(خطة_التسويق[],MATCH(INDEX(فروق_التسويق[],ROW()-ROW(فروق_التسويق[[#Headers],[مارس]]),1),INDEX(خطة_التسويق[],,1),0),MATCH(فروق_التسويق[[#Headers],[مارس]],خطة_التسويق[#Headers],0))-INDEX(التسويق_الفعلي[],MATCH(INDEX(فروق_التسويق[],ROW()-ROW(فروق_التسويق[[#Headers],[مارس]]),1),INDEX(خطة_التسويق[],,1),0),MATCH(فروق_التسويق[[#Headers],[مارس]],التسويق_الفعلي[#Headers],0))","v":{"v":0,"d":"ر.س.‏ 0.00"}},{"$f":"INDEX(خطة_التسويق[],MATCH(INDEX(فروق_التسويق[],ROW()-ROW(فروق_التسويق[[#Headers],[أبريل]]),1),INDEX(خطة_التسويق[],,1),0),MATCH(فروق_التسويق[[#Headers],[أبريل]],خطة_التسويق[#Headers],0))-INDEX(التسويق_الفعلي[],MATCH(INDEX(فروق_التسويق[],ROW()-ROW(فروق_التسويق[[#Headers],[أبريل]]),1),INDEX(خطة_التسويق[],,1),0),MATCH(فروق_التسويق[[#Headers],[أبريل]],التسويق_الفعلي[#Headers],0))","v":{"v":0,"d":"ر.س.‏ 0.00"}},{"$f":"INDEX(خطة_التسويق[],MATCH(INDEX(فروق_التسويق[],ROW()-ROW(فروق_التسويق[[#Headers],[مايو]]),1),INDEX(خطة_التسويق[],,1),0),MATCH(فروق_التسويق[[#Headers],[مايو]],خطة_التسويق[#Headers],0))-INDEX(التسويق_الفعلي[],MATCH(INDEX(فروق_التسويق[],ROW()-ROW(فروق_التسويق[[#Headers],[مايو]]),1),INDEX(خطة_التسويق[],,1),0),MATCH(فروق_التسويق[[#Headers],[مايو]],التسويق_الفعلي[#Headers],0))","v":{"v":0,"d":"ر.س.‏ 0.00"}},{"$f":"INDEX(خطة_التسويق[],MATCH(INDEX(فروق_التسويق[],ROW()-ROW(فروق_التسويق[[#Headers],[يونيو]]),1),INDEX(خطة_التسويق[],,1),0),MATCH(فروق_التسويق[[#Headers],[يونيو]],خطة_التسويق[#Headers],0))-INDEX(التسويق_الفعلي[],MATCH(INDEX(فروق_التسويق[],ROW()-ROW(فروق_التسويق[[#Headers],[يونيو]]),1),INDEX(خطة_التسويق[],,1),0),MATCH(فروق_التسويق[[#Headers],[يونيو]],التسويق_الفعلي[#Headers],0))","v":{"v":-500,"d":"ر.س.‏ 500.00-"}},{"$f":"INDEX(خطة_التسويق[],MATCH(INDEX(فروق_التسويق[],ROW()-ROW(فروق_التسويق[[#Headers],[يوليو]]),1),INDEX(خطة_التسويق[],,1),0),MATCH(فروق_التسويق[[#Headers],[يوليو]],خطة_التسويق[#Headers],0))-INDEX(التسويق_الفعلي[],MATCH(INDEX(فروق_التسويق[],ROW()-ROW(فروق_التسويق[[#Headers],[يوليو]]),1),INDEX(خطة_التسويق[],,1),0),MATCH(فروق_التسويق[[#Headers],[يوليو]],التسويق_الفعلي[#Headers],0))","v":{"v":200,"d":"ر.س.‏ 200.00"}},{"$f":"INDEX(خطة_التسويق[],MATCH(INDEX(فروق_التسويق[],ROW()-ROW(فروق_التسويق[[#Headers],[أغسطس]]),1),INDEX(خطة_التسويق[],,1),0),MATCH(فروق_التسويق[[#Headers],[أغسطس]],خطة_التسويق[#Headers],0))-INDEX(التسويق_الفعلي[],MATCH(INDEX(فروق_التسويق[],ROW()-ROW(فروق_التسويق[[#Headers],[أغسطس]]),1),INDEX(خطة_التسويق[],,1),0),MATCH(فروق_التسويق[[#Headers],[أغسطس]],التسويق_الفعلي[#Headers],0))","v":{"v":200,"d":"ر.س.‏ 200.00"}},{"$f":"INDEX(خطة_التسويق[],MATCH(INDEX(فروق_التسويق[],ROW()-ROW(فروق_التسويق[[#Headers],[سبتمبر]]),1),INDEX(خطة_التسويق[],,1),0),MATCH(فروق_التسويق[[#Headers],[سبتمبر]],خطة_التسويق[#Headers],0))-INDEX(التسويق_الفعلي[],MATCH(INDEX(فروق_التسويق[],ROW()-ROW(فروق_التسويق[[#Headers],[سبتمبر]]),1),INDEX(خطة_التسويق[],,1),0),MATCH(فروق_التسويق[[#Headers],[سبتمبر]],التسويق_الفعلي[#Headers],0))","v":{"v":200,"d":"ر.س.‏ 200.00"}},{"$f":"INDEX(خطة_التسويق[],MATCH(INDEX(فروق_التسويق[],ROW()-ROW(فروق_التسويق[[#Headers],[أكتوبر]]),1),INDEX(خطة_التسويق[],,1),0),MATCH(فروق_التسويق[[#Headers],[أكتوبر]],خطة_التسويق[#Headers],0))-INDEX(التسويق_الفعلي[],MATCH(INDEX(فروق_التسويق[],ROW()-ROW(فروق_التسويق[[#Headers],[أكتوبر]]),1),INDEX(خطة_التسويق[],,1),0),MATCH(فروق_التسويق[[#Headers],[أكتوبر]],التسويق_الفعلي[#Headers],0))","v":{"v":200,"d":"ر.س.‏ 200.00"}},{"$f":"INDEX(خطة_التسويق[],MATCH(INDEX(فروق_التسويق[],ROW()-ROW(فروق_التسويق[[#Headers],[نوفمبر]]),1),INDEX(خطة_التسويق[],,1),0),MATCH(فروق_التسويق[[#Headers],[نوفمبر]],خطة_التسويق[#Headers],0))-INDEX(التسويق_الفعلي[],MATCH(INDEX(فروق_التسويق[],ROW()-ROW(فروق_التسويق[[#Headers],[نوفمبر]]),1),INDEX(خطة_التسويق[],,1),0),MATCH(فروق_التسويق[[#Headers],[نوفمبر]],التسويق_الفعلي[#Headers],0))","v":{"v":200,"d":"ر.س.‏ 200.00"}},{"$f":"INDEX(خطة_التسويق[],MATCH(INDEX(فروق_التسويق[],ROW()-ROW(فروق_التسويق[[#Headers],[ديسمبر]]),1),INDEX(خطة_التسويق[],,1),0),MATCH(فروق_التسويق[[#Headers],[ديسمبر]],خطة_التسويق[#Headers],0))-INDEX(التسويق_الفعلي[],MATCH(INDEX(فروق_التسويق[],ROW()-ROW(فروق_التسويق[[#Headers],[ديسمبر]]),1),INDEX(خطة_التسويق[],,1),0),MATCH(فروق_التسويق[[#Headers],[ديسمبر]],التسويق_الفعلي[#Headers],0))","v":{"v":1000,"d":"ر.س.‏ 1,000.00"}},{"$f":"SUM(فروق_التسويق[[#This Row],[يناير]:[ديسمبر]])","v":{"v":1500,"d":"ر.س.‏ 1,500.00"}}]
[null,"إعداد الضمانات",{"$f":"INDEX(خطة_التسويق[],MATCH(INDEX(فروق_التسويق[],ROW()-ROW(فروق_التسويق[[#Headers],[يناير]]),1),INDEX(خطة_التسويق[],,1),0),MATCH(فروق_التسويق[[#Headers],[يناير]],خطة_التسويق[#Headers],0))-INDEX(التسويق_الفعلي[],MATCH(INDEX(فروق_التسويق[],ROW()-ROW(فروق_التسويق[[#Headers],[يناير]]),1),INDEX(خطة_التسويق[],,1),0),MATCH(فروق_التسويق[[#Headers],[يناير]],التسويق_الفعلي[#Headers],0))","v":{"v":200,"d":"ر.س.‏ 200.00"}},{"$f":"INDEX(خطة_التسويق[],MATCH(INDEX(فروق_التسويق[],ROW()-ROW(فروق_التسويق[[#Headers],[فبراير]]),1),INDEX(خطة_التسويق[],,1),0),MATCH(فروق_التسويق[[#Headers],[فبراير]],خطة_التسويق[#Headers],0))-INDEX(التسويق_الفعلي[],MATCH(INDEX(فروق_التسويق[],ROW()-ROW(فروق_التسويق[[#Headers],[فبراير]]),1),INDEX(خطة_التسويق[],,1),0),MATCH(فروق_التسويق[[#Headers],[فبراير]],التسويق_الفعلي[#Headers],0))","v":{"v":0,"d":"ر.س.‏ 0.00"}},{"$f":"INDEX(خطة_التسويق[],MATCH(INDEX(فروق_التسويق[],ROW()-ROW(فروق_التسويق[[#Headers],[مارس]]),1),INDEX(خطة_التسويق[],,1),0),MATCH(فروق_التسويق[[#Headers],[مارس]],خطة_التسويق[#Headers],0))-INDEX(التسويق_الفعلي[],MATCH(INDEX(فروق_التسويق[],ROW()-ROW(فروق_التسويق[[#Headers],[مارس]]),1),INDEX(خطة_التسويق[],,1),0),MATCH(فروق_التسويق[[#Headers],[مارس]],التسويق_الفعلي[#Headers],0))","v":{"v":0,"d":"ر.س.‏ 0.00"}},{"$f":"INDEX(خطة_التسويق[],MATCH(INDEX(فروق_التسويق[],ROW()-ROW(فروق_التسويق[[#Headers],[أبريل]]),1),INDEX(خطة_التسويق[],,1),0),MATCH(فروق_التسويق[[#Headers],[أبريل]],خطة_التسويق[#Headers],0))-INDEX(التسويق_الفعلي[],MATCH(INDEX(فروق_التسويق[],ROW()-ROW(فروق_التسويق[[#Headers],[أبريل]]),1),INDEX(خطة_التسويق[],,1),0),MATCH(فروق_التسويق[[#Headers],[أبريل]],التسويق_الفعلي[#Headers],0))","v":{"v":-500,"d":"ر.س.‏ 500.00-"}},{"$f":"INDEX(خطة_التسويق[],MATCH(INDEX(فروق_التسويق[],ROW()-ROW(فروق_التسويق[[#Headers],[مايو]]),1),INDEX(خطة_التسويق[],,1),0),MATCH(فروق_التسويق[[#Headers],[مايو]],خطة_التسويق[#Headers],0))-INDEX(التسويق_الفعلي[],MATCH(INDEX(فروق_التسويق[],ROW()-ROW(فروق_التسويق[[#Headers],[مايو]]),1),INDEX(خطة_التسويق[],,1),0),MATCH(فروق_التسويق[[#Headers],[مايو]],التسويق_الفعلي[#Headers],0))","v":{"v":0,"d":"ر.س.‏ 0.00"}},{"$f":"INDEX(خطة_التسويق[],MATCH(INDEX(فروق_التسويق[],ROW()-ROW(فروق_التسويق[[#Headers],[يونيو]]),1),INDEX(خطة_التسويق[],,1),0),MATCH(فروق_التسويق[[#Headers],[يونيو]],خطة_التسويق[#Headers],0))-INDEX(التسويق_الفعلي[],MATCH(INDEX(فروق_التسويق[],ROW()-ROW(فروق_التسويق[[#Headers],[يونيو]]),1),INDEX(خطة_التسويق[],,1),0),MATCH(فروق_التسويق[[#Headers],[يونيو]],التسويق_الفعلي[#Headers],0))","v":{"v":0,"d":"ر.س.‏ 0.00"}},{"$f":"INDEX(خطة_التسويق[],MATCH(INDEX(فروق_التسويق[],ROW()-ROW(فروق_التسويق[[#Headers],[يوليو]]),1),INDEX(خطة_التسويق[],,1),0),MATCH(فروق_التسويق[[#Headers],[يوليو]],خطة_التسويق[#Headers],0))-INDEX(التسويق_الفعلي[],MATCH(INDEX(فروق_التسويق[],ROW()-ROW(فروق_التسويق[[#Headers],[يوليو]]),1),INDEX(خطة_التسويق[],,1),0),MATCH(فروق_التسويق[[#Headers],[يوليو]],التسويق_الفعلي[#Headers],0))","v":{"v":5000,"d":"ر.س.‏ 5,000.00"}},{"$f":"INDEX(خطة_التسويق[],MATCH(INDEX(فروق_التسويق[],ROW()-ROW(فروق_التسويق[[#Headers],[أغسطس]]),1),INDEX(خطة_التسويق[],,1),0),MATCH(فروق_التسويق[[#Headers],[أغسطس]],خطة_التسويق[#Headers],0))-INDEX(التسويق_الفعلي[],MATCH(INDEX(فروق_التسويق[],ROW()-ROW(فروق_التسويق[[#Headers],[أغسطس]]),1),INDEX(خطة_التسويق[],,1),0),MATCH(فروق_التسويق[[#Headers],[أغسطس]],التسويق_الفعلي[#Headers],0))","v":{"v":0,"d":"ر.س.‏ 0.00"}},{"$f":"INDEX(خطة_التسويق[],MATCH(INDEX(فروق_التسويق[],ROW()-ROW(فروق_التسويق[[#Headers],[سبتمبر]]),1),INDEX(خطة_التسويق[],,1),0),MATCH(فروق_التسويق[[#Headers],[سبتمبر]],خطة_التسويق[#Headers],0))-INDEX(التسويق_الفعلي[],MATCH(INDEX(فروق_التسويق[],ROW()-ROW(فروق_التسويق[[#Headers],[سبتمبر]]),1),INDEX(خطة_التسويق[],,1),0),MATCH(فروق_التسويق[[#Headers],[سبتمبر]],التسويق_الفعلي[#Headers],0))","v":{"v":0,"d":"ر.س.‏ 0.00"}},{"$f":"INDEX(خطة_التسويق[],MATCH(INDEX(فروق_التسويق[],ROW()-ROW(فروق_التسويق[[#Headers],[أكتوبر]]),1),INDEX(خطة_التسويق[],,1),0),MATCH(فروق_التسويق[[#Headers],[أكتوبر]],خطة_التسويق[#Headers],0))-INDEX(التسويق_الفعلي[],MATCH(INDEX(فروق_التسويق[],ROW()-ROW(فروق_التسويق[[#Headers],[أكتوبر]]),1),INDEX(خطة_التسويق[],,1),0),MATCH(فروق_التسويق[[#Headers],[أكتوبر]],التسويق_الفعلي[#Headers],0))","v":{"v":5000,"d":"ر.س.‏ 5,000.00"}},{"$f":"INDEX(خطة_التسويق[],MATCH(INDEX(فروق_التسويق[],ROW()-ROW(فروق_التسويق[[#Headers],[نوفمبر]]),1),INDEX(خطة_التسويق[],,1),0),MATCH(فروق_التسويق[[#Headers],[نوفمبر]],خطة_التسويق[#Headers],0))-INDEX(التسويق_الفعلي[],MATCH(INDEX(فروق_التسويق[],ROW()-ROW(فروق_التسويق[[#Headers],[نوفمبر]]),1),INDEX(خطة_التسويق[],,1),0),MATCH(فروق_التسويق[[#Headers],[نوفمبر]],التسويق_الفعلي[#Headers],0))","v":{"v":0,"d":"ر.س.‏ 0.00"}},{"$f":"INDEX(خطة_التسويق[],MATCH(INDEX(فروق_التسويق[],ROW()-ROW(فروق_التسويق[[#Headers],[ديسمبر]]),1),INDEX(خطة_التسويق[],,1),0),MATCH(فروق_التسويق[[#Headers],[ديسمبر]],خطة_التسويق[#Headers],0))-INDEX(التسويق_الفعلي[],MATCH(INDEX(فروق_التسويق[],ROW()-ROW(فروق_التسويق[[#Headers],[ديسمبر]]),1),INDEX(خطة_التسويق[],,1),0),MATCH(فروق_التسويق[[#Headers],[ديسمبر]],التسويق_الفعلي[#Headers],0))","v":{"v":0,"d":"ر.س.‏ 0.00"}},{"$f":"SUM(فروق_التسويق[[#This Row],[يناير]:[ديسمبر]])","v":{"v":9700,"d":"ر.س.‏ 9,700.00"}}]
[null,"طباعة الضمانات",{"$f":"INDEX(خطة_التسويق[],MATCH(INDEX(فروق_التسويق[],ROW()-ROW(فروق_التسويق[[#Headers],[يناير]]),1),INDEX(خطة_التسويق[],,1),0),MATCH(فروق_التسويق[[#Headers],[يناير]],خطة_التسويق[#Headers],0))-INDEX(التسويق_الفعلي[],MATCH(INDEX(فروق_التسويق[],ROW()-ROW(فروق_التسويق[[#Headers],[يناير]]),1),INDEX(خطة_التسويق[],,1),0),MATCH(فروق_التسويق[[#Headers],[يناير]],التسويق_الفعلي[#Headers],0))","v":{"v":100,"d":"ر.س.‏ 100.00"}},{"$f":"INDEX(خطة_التسويق[],MATCH(INDEX(فروق_التسويق[],ROW()-ROW(فروق_التسويق[[#Headers],[فبراير]]),1),INDEX(خطة_التسويق[],,1),0),MATCH(فروق_التسويق[[#Headers],[فبراير]],خطة_التسويق[#Headers],0))-INDEX(التسويق_الفعلي[],MATCH(INDEX(فروق_التسويق[],ROW()-ROW(فروق_التسويق[[#Headers],[فبراير]]),1),INDEX(خطة_التسويق[],,1),0),MATCH(فروق_التسويق[[#Headers],[فبراير]],التسويق_الفعلي[#Headers],0))","v":{"v":-300,"d":"ر.س.‏ 300.00-"}},{"$f":"INDEX(خطة_التسويق[],MATCH(INDEX(فروق_التسويق[],ROW()-ROW(فروق_التسويق[[#Headers],[مارس]]),1),INDEX(خطة_التسويق[],,1),0),MATCH(فروق_التسويق[[#Headers],[مارس]],خطة_التسويق[#Headers],0))-INDEX(التسويق_الفعلي[],MATCH(INDEX(فروق_التسويق[],ROW()-ROW(فروق_التسويق[[#Headers],[مارس]]),1),INDEX(خطة_التسويق[],,1),0),MATCH(فروق_التسويق[[#Headers],[مارس]],التسويق_الفعلي[#Headers],0))","v":{"v":100,"d":"ر.س.‏ 100.00"}},{"$f":"INDEX(خطة_التسويق[],MATCH(INDEX(فروق_التسويق[],ROW()-ROW(فروق_التسويق[[#Headers],[أبريل]]),1),INDEX(خطة_التسويق[],,1),0),MATCH(فروق_التسويق[[#Headers],[أبريل]],خطة_التسويق[#Headers],0))-INDEX(التسويق_الفعلي[],MATCH(INDEX(فروق_التسويق[],ROW()-ROW(فروق_التسويق[[#Headers],[أبريل]]),1),INDEX(خطة_التسويق[],,1),0),MATCH(فروق_التسويق[[#Headers],[أبريل]],التسويق_الفعلي[#Headers],0))","v":{"v":100,"d":"ر.س.‏ 100.00"}},{"$f":"INDEX(خطة_التسويق[],MATCH(INDEX(فروق_التسويق[],ROW()-ROW(فروق_التسويق[[#Headers],[مايو]]),1),INDEX(خطة_التسويق[],,1),0),MATCH(فروق_التسويق[[#Headers],[مايو]],خطة_التسويق[#Headers],0))-INDEX(التسويق_الفعلي[],MATCH(INDEX(فروق_التسويق[],ROW()-ROW(فروق_التسويق[[#Headers],[مايو]]),1),INDEX(خطة_التسويق[],,1),0),MATCH(فروق_التسويق[[#Headers],[مايو]],التسويق_الفعلي[#Headers],0))","v":{"v":-400,"d":"ر.س.‏ 400.00-"}},{"$f":"INDEX(خطة_التسويق[],MATCH(INDEX(فروق_التسويق[],ROW()-ROW(فروق_التسويق[[#Headers],[يونيو]]),1),INDEX(خطة_التسويق[],,1),0),MATCH(فروق_التسويق[[#Headers],[يونيو]],خطة_التسويق[#Headers],0))-INDEX(التسويق_الفعلي[],MATCH(INDEX(فروق_التسويق[],ROW()-ROW(فروق_التسويق[[#Headers],[يونيو]]),1),INDEX(خطة_التسويق[],,1),0),MATCH(فروق_التسويق[[#Headers],[يونيو]],التسويق_الفعلي[#Headers],0))","v":{"v":20,"d":"ر.س.‏ 20.00"}},{"$f":"INDEX(خطة_التسويق[],MATCH(INDEX(فروق_التسويق[],ROW()-ROW(فروق_التسويق[[#Headers],[يوليو]]),1),INDEX(خطة_التسويق[],,1),0),MATCH(فروق_التسويق[[#Headers],[يوليو]],خطة_التسويق[#Headers],0))-INDEX(التسويق_الفعلي[],MATCH(INDEX(فروق_التسويق[],ROW()-ROW(فروق_التسويق[[#Headers],[يوليو]]),1),INDEX(خطة_التسويق[],,1),0),MATCH(فروق_التسويق[[#Headers],[يوليو]],التسويق_الفعلي[#Headers],0))","v":{"v":200,"d":"ر.س.‏ 200.00"}},{"$f":"INDEX(خطة_التسويق[],MATCH(INDEX(فروق_التسويق[],ROW()-ROW(فروق_التسويق[[#Headers],[أغسطس]]),1),INDEX(خطة_التسويق[],,1),0),MATCH(فروق_التسويق[[#Headers],[أغسطس]],خطة_التسويق[#Headers],0))-INDEX(التسويق_الفعلي[],MATCH(INDEX(فروق_التسويق[],ROW()-ROW(فروق_التسويق[[#Headers],[أغسطس]]),1),INDEX(خطة_التسويق[],,1),0),MATCH(فروق_التسويق[[#Headers],[أغسطس]],التسويق_الفعلي[#Headers],0))","v":{"v":200,"d":"ر.س.‏ 200.00"}},{"$f":"INDEX(خطة_التسويق[],MATCH(INDEX(فروق_التسويق[],ROW()-ROW(فروق_التسويق[[#Headers],[سبتمبر]]),1),INDEX(خطة_التسويق[],,1),0),MATCH(فروق_التسويق[[#Headers],[سبتمبر]],خطة_التسويق[#Headers],0))-INDEX(التسويق_الفعلي[],MATCH(INDEX(فروق_التسويق[],ROW()-ROW(فروق_التسويق[[#Headers],[سبتمبر]]),1),INDEX(خطة_التسويق[],,1),0),MATCH(فروق_التسويق[[#Headers],[سبتمبر]],التسويق_الفعلي[#Headers],0))","v":{"v":200,"d":"ر.س.‏ 200.00"}},{"$f":"INDEX(خطة_التسويق[],MATCH(INDEX(فروق_التسويق[],ROW()-ROW(فروق_التسويق[[#Headers],[أكتوبر]]),1),INDEX(خطة_التسويق[],,1),0),MATCH(فروق_التسويق[[#Headers],[أكتوبر]],خطة_التسويق[#Headers],0))-INDEX(التسويق_الفعلي[],MATCH(INDEX(فروق_التسويق[],ROW()-ROW(فروق_التسويق[[#Headers],[أكتوبر]]),1),INDEX(خطة_التسويق[],,1),0),MATCH(فروق_التسويق[[#Headers],[أكتوبر]],التسويق_الفعلي[#Headers],0))","v":{"v":200,"d":"ر.س.‏ 200.00"}},{"$f":"INDEX(خطة_التسويق[],MATCH(INDEX(فروق_التسويق[],ROW()-ROW(فروق_التسويق[[#Headers],[نوفمبر]]),1),INDEX(خطة_التسويق[],,1),0),MATCH(فروق_التسويق[[#Headers],[نوفمبر]],خطة_التسويق[#Headers],0))-INDEX(التسويق_الفعلي[],MATCH(INDEX(فروق_التسويق[],ROW()-ROW(فروق_التسويق[[#Headers],[نوفمبر]]),1),INDEX(خطة_التسويق[],,1),0),MATCH(فروق_التسويق[[#Headers],[نوفمبر]],التسويق_الفعلي[#Headers],0))","v":{"v":200,"d":"ر.س.‏ 200.00"}},{"$f":"INDEX(خطة_التسويق[],MATCH(INDEX(فروق_التسويق[],ROW()-ROW(فروق_التسويق[[#Headers],[ديسمبر]]),1),INDEX(خطة_التسويق[],,1),0),MATCH(فروق_التسويق[[#Headers],[ديسمبر]],خطة_التسويق[#Headers],0))-INDEX(التسويق_الفعلي[],MATCH(INDEX(فروق_التسويق[],ROW()-ROW(فروق_التسويق[[#Headers],[ديسمبر]]),1),INDEX(خطة_التسويق[],,1),0),MATCH(فروق_التسويق[[#Headers],[ديسمبر]],التسويق_الفعلي[#Headers],0))","v":{"v":200,"d":"ر.س.‏ 200.00"}},{"$f":"SUM(فروق_التسويق[[#This Row],[يناير]:[ديسمبر]])","v":{"v":820,"d":"ر.س.‏ 820.00"}}]
[null,"أحداث التسويق",{"$f":"INDEX(خطة_التسويق[],MATCH(INDEX(فروق_التسويق[],ROW()-ROW(فروق_التسويق[[#Headers],[يناير]]),1),INDEX(خطة_التسويق[],,1),0),MATCH(فروق_التسويق[[#Headers],[يناير]],خطة_التسويق[#Headers],0))-INDEX(التسويق_الفعلي[],MATCH(INDEX(فروق_التسويق[],ROW()-ROW(فروق_التسويق[[#Headers],[يناير]]),1),INDEX(خطة_التسويق[],,1),0),MATCH(فروق_التسويق[[#Headers],[يناير]],التسويق_الفعلي[#Headers],0))","v":{"v":200,"d":"ر.س.‏ 200.00"}},{"$f":"INDEX(خطة_التسويق[],MATCH(INDEX(فروق_التسويق[],ROW()-ROW(فروق_التسويق[[#Headers],[فبراير]]),1),INDEX(خطة_التسويق[],,1),0),MATCH(فروق_التسويق[[#Headers],[فبراير]],خطة_التسويق[#Headers],0))-INDEX(التسويق_الفعلي[],MATCH(INDEX(فروق_التسويق[],ROW()-ROW(فروق_التسويق[[#Headers],[فبراير]]),1),INDEX(خطة_التسويق[],,1),0),MATCH(فروق_التسويق[[#Headers],[فبراير]],التسويق_الفعلي[#Headers],0))","v":{"v":-200,"d":"ر.س.‏ 200.00-"}},{"$f":"INDEX(خطة_التسويق[],MATCH(INDEX(فروق_التسويق[],ROW()-ROW(فروق_التسويق[[#Headers],[مارس]]),1),INDEX(خطة_التسويق[],,1),0),MATCH(فروق_التسويق[[#Headers],[مارس]],خطة_التسويق[#Headers],0))-INDEX(التسويق_الفعلي[],MATCH(INDEX(فروق_التسويق[],ROW()-ROW(فروق_التسويق[[#Headers],[مارس]]),1),INDEX(خطة_التسويق[],,1),0),MATCH(فروق_التسويق[[#Headers],[مارس]],التسويق_الفعلي[#Headers],0))","v":{"v":-200,"d":"ر.س.‏ 200.00-"}},{"$f":"INDEX(خطة_التسويق[],MATCH(INDEX(فروق_التسويق[],ROW()-ROW(فروق_التسويق[[#Headers],[أبريل]]),1),INDEX(خطة_التسويق[],,1),0),MATCH(فروق_التسويق[[#Headers],[أبريل]],خطة_التسويق[#Headers],0))-INDEX(التسويق_الفعلي[],MATCH(INDEX(فروق_التسويق[],ROW()-ROW(فروق_التسويق[[#Headers],[أبريل]]),1),INDEX(خطة_التسويق[],,1),0),MATCH(فروق_التسويق[[#Headers],[أبريل]],التسويق_الفعلي[#Headers],0))","v":{"v":300,"d":"ر.س.‏ 300.00"}},{"$f":"INDEX(خطة_التسويق[],MATCH(INDEX(فروق_التسويق[],ROW()-ROW(فروق_التسويق[[#Headers],[مايو]]),1),INDEX(خطة_التسويق[],,1),0),MATCH(فروق_التسويق[[#Headers],[مايو]],خطة_التسويق[#Headers],0))-INDEX(التسويق_الفعلي[],MATCH(INDEX(فروق_التسويق[],ROW()-ROW(فروق_التسويق[[#Headers],[مايو]]),1),INDEX(خطة_التسويق[],,1),0),MATCH(فروق_التسويق[[#Headers],[مايو]],التسويق_الفعلي[#Headers],0))","v":{"v":500,"d":"ر.س.‏ 500.00"}},{"$f":"INDEX(خطة_التسويق[],MATCH(INDEX(فروق_التسويق[],ROW()-ROW(فروق_التسويق[[#Headers],[يونيو]]),1),INDEX(خطة_التسويق[],,1),0),MATCH(فروق_التسويق[[#Headers],[يونيو]],خطة_التسويق[#Headers],0))-INDEX(التسويق_الفعلي[],MATCH(INDEX(فروق_التسويق[],ROW()-ROW(فروق_التسويق[[#Headers],[يونيو]]),1),INDEX(خطة_التسويق[],,1),0),MATCH(فروق_التسويق[[#Headers],[يونيو]],التسويق_الفعلي[#Headers],0))","v":{"v":-300,"d":"ر.س.‏ 300.00-"}},{"$f":"INDEX(خطة_التسويق[],MATCH(INDEX(فروق_التسويق[],ROW()-ROW(فروق_التسويق[[#Headers],[يوليو]]),1),INDEX(خطة_التسويق[],,1),0),MATCH(فروق_التسويق[[#Headers],[يوليو]],خطة_التسويق[#Headers],0))-INDEX(التسويق_الفعلي[],MATCH(INDEX(فروق_التسويق[],ROW()-ROW(فروق_التسويق[[#Headers],[يوليو]]),1),INDEX(خطة_التسويق[],,1),0),MATCH(فروق_التسويق[[#Headers],[يوليو]],التسويق_الفعلي[#Headers],0))","v":{"v":2000,"d":"ر.س.‏ 2,000.00"}},{"$f":"INDEX(خطة_التسويق[],MATCH(INDEX(فروق_التسويق[],ROW()-ROW(فروق_التسويق[[#Headers],[أغسطس]]),1),INDEX(خطة_التسويق[],,1),0),MATCH(فروق_التسويق[[#Headers],[أغسطس]],خطة_التسويق[#Headers],0))-INDEX(التسويق_الفعلي[],MATCH(INDEX(فروق_التسويق[],ROW()-ROW(فروق_التسويق[[#Headers],[أغسطس]]),1),INDEX(خطة_التسويق[],,1),0),MATCH(فروق_التسويق[[#Headers],[أغسطس]],التسويق_الفعلي[#Headers],0))","v":{"v":5000,"d":"ر.س.‏ 5,000.00"}},{"$f":"INDEX(خطة_التسويق[],MATCH(INDEX(فروق_التسويق[],ROW()-ROW(فروق_التسويق[[#Headers],[سبتمبر]]),1),INDEX(خطة_التسويق[],,1),0),MATCH(فروق_التسويق[[#Headers],[سبتمبر]],خطة_التسويق[#Headers],0))-INDEX(التسويق_الفعلي[],MATCH(INDEX(فروق_التسويق[],ROW()-ROW(فروق_التسويق[[#Headers],[سبتمبر]]),1),INDEX(خطة_التسويق[],,1),0),MATCH(فروق_التسويق[[#Headers],[سبتمبر]],التسويق_الفعلي[#Headers],0))","v":{"v":2000,"d":"ر.س.‏ 2,000.00"}},{"$f":"INDEX(خطة_التسويق[],MATCH(INDEX(فروق_التسويق[],ROW()-ROW(فروق_التسويق[[#Headers],[أكتوبر]]),1),INDEX(خطة_التسويق[],,1),0),MATCH(فروق_التسويق[[#Headers],[أكتوبر]],خطة_التسويق[#Headers],0))-INDEX(التسويق_الفعلي[],MATCH(INDEX(فروق_التسويق[],ROW()-ROW(فروق_التسويق[[#Headers],[أكتوبر]]),1),INDEX(خطة_التسويق[],,1),0),MATCH(فروق_التسويق[[#Headers],[أكتوبر]],التسويق_الفعلي[#Headers],0))","v":{"v":2000,"d":"ر.س.‏ 2,000.00"}},{"$f":"INDEX(خطة_التسويق[],MATCH(INDEX(فروق_التسويق[],ROW()-ROW(فروق_التسويق[[#Headers],[نوفمبر]]),1),INDEX(خطة_التسويق[],,1),0),MATCH(فروق_التسويق[[#Headers],[نوفمبر]],خطة_التسويق[#Headers],0))-INDEX(التسويق_الفعلي[],MATCH(INDEX(فروق_التسويق[],ROW()-ROW(فروق_التسويق[[#Headers],[نوفمبر]]),1),INDEX(خطة_التسويق[],,1),0),MATCH(فروق_التسويق[[#Headers],[نوفمبر]],التسويق_الفعلي[#Headers],0))","v":{"v":2000,"d":"ر.س.‏ 2,000.00"}},{"$f":"INDEX(خطة_التسويق[],MATCH(INDEX(فروق_التسويق[],ROW()-ROW(فروق_التسويق[[#Headers],[ديسمبر]]),1),INDEX(خطة_التسويق[],,1),0),MATCH(فروق_التسويق[[#Headers],[ديسمبر]],خطة_التسويق[#Headers],0))-INDEX(التسويق_الفعلي[],MATCH(INDEX(فروق_التسويق[],ROW()-ROW(فروق_التسويق[[#Headers],[ديسمبر]]),1),INDEX(خطة_التسويق[],,1),0),MATCH(فروق_التسويق[[#Headers],[ديسمبر]],التسويق_الفعلي[#Headers],0))","v":{"v":5000,"d":"ر.س.‏ 5,000.00"}},{"$f":"SUM(فروق_التسويق[[#This Row],[يناير]:[ديسمبر]])","v":{"v":18300,"d":"ر.س.‏ 18,300.00"}}]
[null,"المصروفات المتنوعة",{"$f":"INDEX(خطة_التسويق[],MATCH(INDEX(فروق_التسويق[],ROW()-ROW(فروق_التسويق[[#Headers],[يناير]]),1),INDEX(خطة_التسويق[],,1),0),MATCH(فروق_التسويق[[#Headers],[يناير]],خطة_التسويق[#Headers],0))-INDEX(التسويق_الفعلي[],MATCH(INDEX(فروق_التسويق[],ROW()-ROW(فروق_التسويق[[#Headers],[يناير]]),1),INDEX(خطة_التسويق[],,1),0),MATCH(فروق_التسويق[[#Headers],[يناير]],التسويق_الفعلي[#Headers],0))","v":{"v":55,"d":"ر.س.‏ 55.00"}},{"$f":"INDEX(خطة_التسويق[],MATCH(INDEX(فروق_التسويق[],ROW()-ROW(فروق_التسويق[[#Headers],[فبراير]]),1),INDEX(خطة_التسويق[],,1),0),MATCH(فروق_التسويق[[#Headers],[فبراير]],خطة_التسويق[#Headers],0))-INDEX(التسويق_الفعلي[],MATCH(INDEX(فروق_التسويق[],ROW()-ROW(فروق_التسويق[[#Headers],[فبراير]]),1),INDEX(خطة_التسويق[],,1),0),MATCH(فروق_التسويق[[#Headers],[فبراير]],التسويق_الفعلي[#Headers],0))","v":{"v":44,"d":"ر.س.‏ 44.00"}},{"$f":"INDEX(خطة_التسويق[],MATCH(INDEX(فروق_التسويق[],ROW()-ROW(فروق_التسويق[[#Headers],[مارس]]),1),INDEX(خطة_التسويق[],,1),0),MATCH(فروق_التسويق[[#Headers],[مارس]],خطة_التسويق[#Headers],0))-INDEX(التسويق_الفعلي[],MATCH(INDEX(فروق_التسويق[],ROW()-ROW(فروق_التسويق[[#Headers],[مارس]]),1),INDEX(خطة_التسويق[],,1),0),MATCH(فروق_التسويق[[#Headers],[مارس]],التسويق_الفعلي[#Headers],0))","v":{"v":77,"d":"ر.س.‏ 77.00"}},{"$f":"INDEX(خطة_التسويق[],MATCH(INDEX(فروق_التسويق[],ROW()-ROW(فروق_التسويق[[#Headers],[أبريل]]),1),INDEX(خطة_التسويق[],,1),0),MATCH(فروق_التسويق[[#Headers],[أبريل]],خطة_التسويق[#Headers],0))-INDEX(التسويق_الفعلي[],MATCH(INDEX(فروق_التسويق[],ROW()-ROW(فروق_التسويق[[#Headers],[أبريل]]),1),INDEX(خطة_التسويق[],,1),0),MATCH(فروق_التسويق[[#Headers],[أبريل]],التسويق_الفعلي[#Headers],0))","v":{"v":-23,"d":"ر.س.‏ 23.00-"}},{"$f":"INDEX(خطة_التسويق[],MATCH(INDEX(فروق_التسويق[],ROW()-ROW(فروق_التسويق[[#Headers],[مايو]]),1),INDEX(خطة_التسويق[],,1),0),MATCH(فروق_التسويق[[#Headers],[مايو]],خطة_التسويق[#Headers],0))-INDEX(التسويق_الفعلي[],MATCH(INDEX(فروق_التسويق[],ROW()-ROW(فروق_التسويق[[#Headers],[مايو]]),1),INDEX(خطة_التسويق[],,1),0),MATCH(فروق_التسويق[[#Headers],[مايو]],التسويق_الفعلي[#Headers],0))","v":{"v":13,"d":"ر.س.‏ 13.00"}},{"$f":"INDEX(خطة_التسويق[],MATCH(INDEX(فروق_التسويق[],ROW()-ROW(فروق_التسويق[[#Headers],[يونيو]]),1),INDEX(خطة_التسويق[],,1),0),MATCH(فروق_التسويق[[#Headers],[يونيو]],خطة_التسويق[#Headers],0))-INDEX(التسويق_الفعلي[],MATCH(INDEX(فروق_التسويق[],ROW()-ROW(فروق_التسويق[[#Headers],[يونيو]]),1),INDEX(خطة_التسويق[],,1),0),MATCH(فروق_التسويق[[#Headers],[يونيو]],التسويق_الفعلي[#Headers],0))","v":{"v":-45,"d":"ر.س.‏ 45.00-"}},{"$f":"INDEX(خطة_التسويق[],MATCH(INDEX(فروق_التسويق[],ROW()-ROW(فروق_التسويق[[#Headers],[يوليو]]),1),INDEX(خطة_التسويق[],,1),0),MATCH(فروق_التسويق[[#Headers],[يوليو]],خطة_التسويق[#Headers],0))-INDEX(التسويق_الفعلي[],MATCH(INDEX(فروق_التسويق[],ROW()-ROW(فروق_التسويق[[#Headers],[يوليو]]),1),INDEX(خطة_التسويق[],,1),0),MATCH(فروق_التسويق[[#Headers],[يوليو]],التسويق_الفعلي[#Headers],0))","v":{"v":200,"d":"ر.س.‏ 200.00"}},{"$f":"INDEX(خطة_التسويق[],MATCH(INDEX(فروق_التسويق[],ROW()-ROW(فروق_التسويق[[#Headers],[أغسطس]]),1),INDEX(خطة_التسويق[],,1),0),MATCH(فروق_التسويق[[#Headers],[أغسطس]],خطة_التسويق[#Headers],0))-INDEX(التسويق_الفعلي[],MATCH(INDEX(فروق_التسويق[],ROW()-ROW(فروق_التسويق[[#Headers],[أغسطس]]),1),INDEX(خطة_التسويق[],,1),0),MATCH(فروق_التسويق[[#Headers],[أغسطس]],التسويق_الفعلي[#Headers],0))","v":{"v":200,"d":"ر.س.‏ 200.00"}},{"$f":"INDEX(خطة_التسويق[],MATCH(INDEX(فروق_التسويق[],ROW()-ROW(فروق_التسويق[[#Headers],[سبتمبر]]),1),INDEX(خطة_التسويق[],,1),0),MATCH(فروق_التسويق[[#Headers],[سبتمبر]],خطة_التسويق[#Headers],0))-INDEX(التسويق_الفعلي[],MATCH(INDEX(فروق_التسويق[],ROW()-ROW(فروق_التسويق[[#Headers],[سبتمبر]]),1),INDEX(خطة_التسويق[],,1),0),MATCH(فروق_التسويق[[#Headers],[سبتمبر]],التسويق_الفعلي[#Headers],0))","v":{"v":200,"d":"ر.س.‏ 200.00"}},{"$f":"INDEX(خطة_التسويق[],MATCH(INDEX(فروق_التسويق[],ROW()-ROW(فروق_التسويق[[#Headers],[أكتوبر]]),1),INDEX(خطة_التسويق[],,1),0),MATCH(فروق_التسويق[[#Headers],[أكتوبر]],خطة_التسويق[#Headers],0))-INDEX(التسويق_الفعلي[],MATCH(INDEX(فروق_التسويق[],ROW()-ROW(فروق_التسويق[[#Headers],[أكتوبر]]),1),INDEX(خطة_التسويق[],,1),0),MATCH(فروق_التسويق[[#Headers],[أكتوبر]],التسويق_الفعلي[#Headers],0))","v":{"v":200,"d":"ر.س.‏ 200.00"}},{"$f":"INDEX(خطة_التسويق[],MATCH(INDEX(فروق_التسويق[],ROW()-ROW(فروق_التسويق[[#Headers],[نوفمبر]]),1),INDEX(خطة_التسويق[],,1),0),MATCH(فروق_التسويق[[#Headers],[نوفمبر]],خطة_التسويق[#Headers],0))-INDEX(التسويق_الفعلي[],MATCH(INDEX(فروق_التسويق[],ROW()-ROW(فروق_التسويق[[#Headers],[نوفمبر]]),1),INDEX(خطة_التسويق[],,1),0),MATCH(فروق_التسويق[[#Headers],[نوفمبر]],التسويق_الفعلي[#Headers],0))","v":{"v":200,"d":"ر.س.‏ 200.00"}},{"$f":"INDEX(خطة_التسويق[],MATCH(INDEX(فروق_التسويق[],ROW()-ROW(فروق_التسويق[[#Headers],[ديسمبر]]),1),INDEX(خطة_التسويق[],,1),0),MATCH(فروق_التسويق[[#Headers],[ديسمبر]],خطة_التسويق[#Headers],0))-INDEX(التسويق_الفعلي[],MATCH(INDEX(فروق_التسويق[],ROW()-ROW(فروق_التسويق[[#Headers],[ديسمبر]]),1),INDEX(خطة_التسويق[],,1),0),MATCH(فروق_التسويق[[#Headers],[ديسمبر]],التسويق_الفعلي[#Headers],0))","v":{"v":200,"d":"ر.س.‏ 200.00"}},{"$f":"SUM(فروق_التسويق[[#This Row],[يناير]:[ديسمبر]])","v":{"v":1321,"d":"ر.س.‏ 1,321.00"}}]
[null,"الإجمالي الفرعي",{"$f":"SUBTOTAL(109,فروق_التسويق[يناير])","v":{"v":555,"d":"ر.س.‏ 555.00"}},{"$f":"SUBTOTAL(109,فروق_التسويق[فبراير])","v":{"v":-456,"d":"ر.س.‏ 456.00-"}},{"$f":"SUBTOTAL(109,فروق_التسويق[مارس])","v":{"v":-23,"d":"ر.س.‏ 23.00-"}},{"$f":"SUBTOTAL(109,فروق_التسويق[أبريل])","v":{"v":-123,"d":"ر.س.‏ 123.00-"}},{"$f":"SUBTOTAL(109,فروق_التسويق[مايو])","v":{"v":113,"d":"ر.س.‏ 113.00"}},{"$f":"SUBTOTAL(109,فروق_التسويق[يونيو])","v":{"v":-825,"d":"ر.س.‏ 825.00-"}},{"$f":"SUBTOTAL(109,فروق_التسويق[يوليو])","v":{"v":8100,"d":"ر.س.‏ 8,100.00"}},{"$f":"SUBTOTAL(109,فروق_التسويق[أغسطس])","v":{"v":6100,"d":"ر.س.‏ 6,100.00"}},{"$f":"SUBTOTAL(109,فروق_التسويق[سبتمبر])","v":{"v":3100,"d":"ر.س.‏ 3,100.00"}},{"$f":"SUBTOTAL(109,فروق_التسويق[أكتوبر])","v":{"v":8100,"d":"ر.س.‏ 8,100.00"}},{"$f":"SUBTOTAL(109,فروق_التسويق[نوفمبر])","v":{"v":3100,"d":"ر.س.‏ 3,100.00"}},{"$f":"SUBTOTAL(109,فروق_التسويق[ديسمبر])","v":{"v":6900,"d":"ر.س.‏ 6,900.00"}},{"$f":"SUBTOTAL(109,فروق_التسويق[السنة])","v":{"v":34641,"d":"ر.س.‏ 34,641.00"}}]
[]
["يتم حساب الفرق في \"تكاليف التدريب أو السفر\" تلقائياً في الجدول \"فروق التدريب والسفر\" بدءاً من الخلية الموجودة على اليسار. توجد الإرشادات التالية في الخلية A35.","التدريب/السفر","يناير","فبراير","مارس","أبريل","مايو","يونيو","يوليو","أغسطس","سبتمبر","أكتوبر","نوفمبر","ديسمبر","السنة"]
[null,"صفوف التدريب",{"$f":"INDEX(خطة_السفر_والتدريب[],MATCH(INDEX(فروق_السفر_والتدريب[],ROW()-ROW(فروق_السفر_والتدريب[[#Headers],[يناير]]),1),INDEX(خطة_السفر_والتدريب[],,1),0),MATCH(فروق_السفر_والتدريب[[#Headers],[يناير]],خطة_السفر_والتدريب[#Headers],0))-INDEX(التدريب_والسفر_الفعليين[],MATCH(INDEX(فروق_السفر_والتدريب[],ROW()-ROW(فروق_السفر_والتدريب[[#Headers],[يناير]]),1),INDEX(خطة_السفر_والتدريب[],,1),0),MATCH(فروق_السفر_والتدريب[[#Headers],[يناير]],التدريب_والسفر_الفعليين[#Headers],0))","v":{"v":400,"d":"ر.س.‏ 400.00"}},{"$f":"INDEX(خطة_السفر_والتدريب[],MATCH(INDEX(فروق_السفر_والتدريب[],ROW()-ROW(فروق_السفر_والتدريب[[#Headers],[فبراير]]),1),INDEX(خطة_السفر_والتدريب[],,1),0),MATCH(فروق_السفر_والتدريب[[#Headers],[فبراير]],خطة_السفر_والتدريب[#Headers],0))-INDEX(التدريب_والسفر_الفعليين[],MATCH(INDEX(فروق_السفر_والتدريب[],ROW()-ROW(فروق_السفر_والتدريب[[#Headers],[فبراير]]),1),INDEX(خطة_السفر_والتدريب[],,1),0),MATCH(فروق_السفر_والتدريب[[#Headers],[فبراير]],التدريب_والسفر_الفعليين[#Headers],0))","v":{"v":-400,"d":"ر.س.‏ 400.00-"}},{"$f":"INDEX(خطة_السفر_والتدريب[],MATCH(INDEX(فروق_السفر_والتدريب[],ROW()-ROW(فروق_السفر_والتدريب[[#Headers],[مارس]]),1),INDEX(خطة_السفر_والتدريب[],,1),0),MATCH(فروق_السفر_والتدريب[[#Headers],[مارس]],خطة_السفر_والتدريب[#Headers],0))-INDEX(التدريب_والسفر_الفعليين[],MATCH(INDEX(فروق_السفر_والتدريب[],ROW()-ROW(فروق_السفر_والتدريب[[#Headers],[مارس]]),1),INDEX(خطة_السفر_والتدريب[],,1),0),MATCH(فروق_السفر_والتدريب[[#Headers],[مارس]],التدريب_والسفر_الفعليين[#Headers],0))","v":{"v":600,"d":"ر.س.‏ 600.00"}},{"$f":"INDEX(خطة_السفر_والتدريب[],MATCH(INDEX(فروق_السفر_والتدريب[],ROW()-ROW(فروق_السفر_والتدريب[[#Headers],[أبريل]]),1),INDEX(خطة_السفر_والتدريب[],,1),0),MATCH(فروق_السفر_والتدريب[[#Headers],[أبريل]],خطة_السفر_والتدريب[#Headers],0))-INDEX(التدريب_والسفر_الفعليين[],MATCH(INDEX(فروق_السفر_والتدريب[],ROW()-ROW(فروق_السفر_والتدريب[[#Headers],[أبريل]]),1),INDEX(خطة_السفر_والتدريب[],,1),0),MATCH(فروق_السفر_والتدريب[[#Headers],[أبريل]],التدريب_والسفر_الفعليين[#Headers],0))","v":{"v":400,"d":"ر.س.‏ 400.00"}},{"$f":"INDEX(خطة_السفر_والتدريب[],MATCH(INDEX(فروق_السفر_والتدريب[],ROW()-ROW(فروق_السفر_والتدريب[[#Headers],[مايو]]),1),INDEX(خطة_السفر_والتدريب[],,1),0),MATCH(فروق_السفر_والتدريب[[#Headers],[مايو]],خطة_السفر_والتدريب[#Headers],0))-INDEX(التدريب_والسفر_الفعليين[],MATCH(INDEX(فروق_السفر_والتدريب[],ROW()-ROW(فروق_السفر_والتدريب[[#Headers],[مايو]]),1),INDEX(خطة_السفر_والتدريب[],,1),0),MATCH(فروق_السفر_والتدريب[[#Headers],[مايو]],التدريب_والسفر_الفعليين[#Headers],0))","v":{"v":800,"d":"ر.س.‏ 800.00"}},{"$f":"INDEX(خطة_السفر_والتدريب[],MATCH(INDEX(فروق_السفر_والتدريب[],ROW()-ROW(فروق_السفر_والتدريب[[#Headers],[يونيو]]),1),INDEX(خطة_السفر_والتدريب[],,1),0),MATCH(فروق_السفر_والتدريب[[#Headers],[يونيو]],خطة_السفر_والتدريب[#Headers],0))-INDEX(التدريب_والسفر_الفعليين[],MATCH(INDEX(فروق_السفر_والتدريب[],ROW()-ROW(فروق_السفر_والتدريب[[#Headers],[يونيو]]),1),INDEX(خطة_السفر_والتدريب[],,1),0),MATCH(فروق_السفر_والتدريب[[#Headers],[يونيو]],التدريب_والسفر_الفعليين[#Headers],0))","v":{"v":-800,"d":"ر.س.‏ 800.00-"}},{"$f":"INDEX(خطة_السفر_والتدريب[],MATCH(INDEX(فروق_السفر_والتدريب[],ROW()-ROW(فروق_السفر_والتدريب[[#Headers],[يوليو]]),1),INDEX(خطة_السفر_والتدريب[],,1),0),MATCH(فروق_السفر_والتدريب[[#Headers],[يوليو]],خطة_السفر_والتدريب[#Headers],0))-INDEX(التدريب_والسفر_الفعليين[],MATCH(INDEX(فروق_السفر_والتدريب[],ROW()-ROW(فروق_السفر_والتدريب[[#Headers],[يوليو]]),1),INDEX(خطة_السفر_والتدريب[],,1),0),MATCH(فروق_السفر_والتدريب[[#Headers],[يوليو]],التدريب_والسفر_الفعليين[#Headers],0))","v":{"v":2000,"d":"ر.س.‏ 2,000.00"}},{"$f":"INDEX(خطة_السفر_والتدريب[],MATCH(INDEX(فروق_السفر_والتدريب[],ROW()-ROW(فروق_السفر_والتدريب[[#Headers],[أغسطس]]),1),INDEX(خطة_السفر_والتدريب[],,1),0),MATCH(فروق_السفر_والتدريب[[#Headers],[أغسطس]],خطة_السفر_والتدريب[#Headers],0))-INDEX(التدريب_والسفر_الفعليين[],MATCH(INDEX(فروق_السفر_والتدريب[],ROW()-ROW(فروق_السفر_والتدريب[[#Headers],[أغسطس]]),1),INDEX(خطة_السفر_والتدريب[],,1),0),MATCH(فروق_السفر_والتدريب[[#Headers],[أغسطس]],التدريب_والسفر_الفعليين[#Headers],0))","v":{"v":2000,"d":"ر.س.‏ 2,000.00"}},{"$f":"INDEX(خطة_السفر_والتدريب[],MATCH(INDEX(فروق_السفر_والتدريب[],ROW()-ROW(فروق_السفر_والتدريب[[#Headers],[سبتمبر]]),1),INDEX(خطة_السفر_والتدريب[],,1),0),MATCH(فروق_السفر_والتدريب[[#Headers],[سبتمبر]],خطة_السفر_والتدريب[#Headers],0))-INDEX(التدريب_والسفر_الفعليين[],MATCH(INDEX(فروق_السفر_والتدريب[],ROW()-ROW(فروق_السفر_والتدريب[[#Headers],[سبتمبر]]),1),INDEX(خطة_السفر_والتدريب[],,1),0),MATCH(فروق_السفر_والتدريب[[#Headers],[سبتمبر]],التدريب_والسفر_الفعليين[#Headers],0))","v":{"v":2000,"d":"ر.س.‏ 2,000.00"}},{"$f":"INDEX(خطة_السفر_والتدريب[],MATCH(INDEX(فروق_السفر_والتدريب[],ROW()-ROW(فروق_السفر_والتدريب[[#Headers],[أكتوبر]]),1),INDEX(خطة_السفر_والتدريب[],,1),0),MATCH(فروق_السفر_والتدريب[[#Headers],[أكتوبر]],خطة_السفر_والتدريب[#Headers],0))-INDEX(التدريب_والسفر_الفعليين[],MATCH(INDEX(فروق_السفر_والتدريب[],ROW()-ROW(فروق_السفر_والتدريب[[#Headers],[أكتوبر]]),1),INDEX(خطة_السفر_والتدريب[],,1),0),MATCH(فروق_السفر_والتدريب[[#Headers],[أكتوبر]],التدريب_والسفر_الفعليين[#Headers],0))","v":{"v":2000,"d":"ر.س.‏ 2,000.00"}},{"$f":"INDEX(خطة_السفر_والتدريب[],MATCH(INDEX(فروق_السفر_والتدريب[],ROW()-ROW(فروق_السفر_والتدريب[[#Headers],[نوفمبر]]),1),INDEX(خطة_السفر_والتدريب[],,1),0),MATCH(فروق_السفر_والتدريب[[#Headers],[نوفمبر]],خطة_السفر_والتدريب[#Headers],0))-INDEX(التدريب_والسفر_الفعليين[],MATCH(INDEX(فروق_السفر_والتدريب[],ROW()-ROW(فروق_السفر_والتدريب[[#Headers],[نوفمبر]]),1),INDEX(خطة_السفر_والتدريب[],,1),0),MATCH(فروق_السفر_والتدريب[[#Headers],[نوفمبر]],التدريب_والسفر_الفعليين[#Headers],0))","v":{"v":2000,"d":"ر.س.‏ 2,000.00"}},{"$f":"INDEX(خطة_السفر_والتدريب[],MATCH(INDEX(فروق_السفر_والتدريب[],ROW()-ROW(فروق_السفر_والتدريب[[#Headers],[ديسمبر]]),1),INDEX(خطة_السفر_والتدريب[],,1),0),MATCH(فروق_السفر_والتدريب[[#Headers],[ديسمبر]],خطة_السفر_والتدريب[#Headers],0))-INDEX(التدريب_والسفر_الفعليين[],MATCH(INDEX(فروق_السفر_والتدريب[],ROW()-ROW(فروق_السفر_والتدريب[[#Headers],[ديسمبر]]),1),INDEX(خطة_السفر_والتدريب[],,1),0),MATCH(فروق_السفر_والتدريب[[#Headers],[ديسمبر]],التدريب_والسفر_الفعليين[#Headers],0))","v":{"v":2000,"d":"ر.س.‏ 2,000.00"}},{"$f":"SUM(فروق_السفر_والتدريب[[#This Row],[يناير]:[ديسمبر]])","v":{"v":13000,"d":"ر.س.‏ 13,000.00"}}]
[null,"تكاليف السفر ذات الصلة بالتدريب",{"$f":"INDEX(خطة_السفر_والتدريب[],MATCH(INDEX(فروق_السفر_والتدريب[],ROW()-ROW(فروق_السفر_والتدريب[[#Headers],[يناير]]),1),INDEX(خطة_السفر_والتدريب[],,1),0),MATCH(فروق_السفر_والتدريب[[#Headers],[يناير]],خطة_السفر_والتدريب[#Headers],0))-INDEX(التدريب_والسفر_الفعليين[],MATCH(INDEX(فروق_السفر_والتدريب[],ROW()-ROW(فروق_السفر_والتدريب[[#Headers],[يناير]]),1),INDEX(خطة_السفر_والتدريب[],,1),0),MATCH(فروق_السفر_والتدريب[[#Headers],[يناير]],التدريب_والسفر_الفعليين[#Headers],0))","v":{"v":800,"d":"ر.س.‏ 800.00"}},{"$f":"INDEX(خطة_السفر_والتدريب[],MATCH(INDEX(فروق_السفر_والتدريب[],ROW()-ROW(فروق_السفر_والتدريب[[#Headers],[فبراير]]),1),INDEX(خطة_السفر_والتدريب[],,1),0),MATCH(فروق_السفر_والتدريب[[#Headers],[فبراير]],خطة_السفر_والتدريب[#Headers],0))-INDEX(التدريب_والسفر_الفعليين[],MATCH(INDEX(فروق_السفر_والتدريب[],ROW()-ROW(فروق_السفر_والتدريب[[#Headers],[فبراير]]),1),INDEX(خطة_السفر_والتدريب[],,1),0),MATCH(فروق_السفر_والتدريب[[#Headers],[فبراير]],التدريب_والسفر_الفعليين[#Headers],0))","v":{"v":-200,"d":"ر.س.‏ 200.00-"}},{"$f":"INDEX(خطة_السفر_والتدريب[],MATCH(INDEX(فروق_السفر_والتدريب[],ROW()-ROW(فروق_السفر_والتدريب[[#Headers],[مارس]]),1),INDEX(خطة_السفر_والتدريب[],,1),0),MATCH(فروق_السفر_والتدريب[[#Headers],[مارس]],خطة_السفر_والتدريب[#Headers],0))-INDEX(التدريب_والسفر_الفعليين[],MATCH(INDEX(فروق_السفر_والتدريب[],ROW()-ROW(فروق_السفر_والتدريب[[#Headers],[مارس]]),1),INDEX(خطة_السفر_والتدريب[],,1),0),MATCH(فروق_السفر_والتدريب[[#Headers],[مارس]],التدريب_والسفر_الفعليين[#Headers],0))","v":{"v":600,"d":"ر.س.‏ 600.00"}},{"$f":"INDEX(خطة_السفر_والتدريب[],MATCH(INDEX(فروق_السفر_والتدريب[],ROW()-ROW(فروق_السفر_والتدريب[[#Headers],[أبريل]]),1),INDEX(خطة_السفر_والتدريب[],,1),0),MATCH(فروق_السفر_والتدريب[[#Headers],[أبريل]],خطة_السفر_والتدريب[#Headers],0))-INDEX(التدريب_والسفر_الفعليين[],MATCH(INDEX(فروق_السفر_والتدريب[],ROW()-ROW(فروق_السفر_والتدريب[[#Headers],[أبريل]]),1),INDEX(خطة_السفر_والتدريب[],,1),0),MATCH(فروق_السفر_والتدريب[[#Headers],[أبريل]],التدريب_والسفر_الفعليين[#Headers],0))","v":{"v":800,"d":"ر.س.‏ 800.00"}},{"$f":"INDEX(خطة_السفر_والتدريب[],MATCH(INDEX(فروق_السفر_والتدريب[],ROW()-ROW(فروق_السفر_والتدريب[[#Headers],[مايو]]),1),INDEX(خطة_السفر_والتدريب[],,1),0),MATCH(فروق_السفر_والتدريب[[#Headers],[مايو]],خطة_السفر_والتدريب[#Headers],0))-INDEX(التدريب_والسفر_الفعليين[],MATCH(INDEX(فروق_السفر_والتدريب[],ROW()-ROW(فروق_السفر_والتدريب[[#Headers],[مايو]]),1),INDEX(خطة_السفر_والتدريب[],,1),0),MATCH(فروق_السفر_والتدريب[[#Headers],[مايو]],التدريب_والسفر_الفعليين[#Headers],0))","v":{"v":1200,"d":"ر.س.‏ 1,200.00"}},{"$f":"INDEX(خطة_السفر_والتدريب[],MATCH(INDEX(فروق_السفر_والتدريب[],ROW()-ROW(فروق_السفر_والتدريب[[#Headers],[يونيو]]),1),INDEX(خطة_السفر_والتدريب[],,1),0),MATCH(فروق_السفر_والتدريب[[#Headers],[يونيو]],خطة_السفر_والتدريب[#Headers],0))-INDEX(التدريب_والسفر_الفعليين[],MATCH(INDEX(فروق_السفر_والتدريب[],ROW()-ROW(فروق_السفر_والتدريب[[#Headers],[يونيو]]),1),INDEX(خطة_السفر_والتدريب[],,1),0),MATCH(فروق_السفر_والتدريب[[#Headers],[يونيو]],التدريب_والسفر_الفعليين[#Headers],0))","v":{"v":-1500,"d":"ر.س.‏ 1,500.00-"}},{"$f":"INDEX(خطة_السفر_والتدريب[],MATCH(INDEX(فروق_السفر_والتدريب[],ROW()-ROW(فروق_السفر_والتدريب[[#Headers],[يوليو]]),1),INDEX(خطة_السفر_والتدريب[],,1),0),MATCH(فروق_السفر_والتدريب[[#Headers],[يوليو]],خطة_السفر_والتدريب[#Headers],0))-INDEX(التدريب_والسفر_الفعليين[],MATCH(INDEX(فروق_السفر_والتدريب[],ROW()-ROW(فروق_السفر_والتدريب[[#Headers],[يوليو]]),1),INDEX(خطة_السفر_والتدريب[],,1),0),MATCH(فروق_السفر_والتدريب[[#Headers],[يوليو]],التدريب_والسفر_الفعليين[#Headers],0))","v":{"v":2000,"d":"ر.س.‏ 2,000.00"}},{"$f":"INDEX(خطة_السفر_والتدريب[],MATCH(INDEX(فروق_السفر_والتدريب[],ROW()-ROW(فروق_السفر_والتدريب[[#Headers],[أغسطس]]),1),INDEX(خطة_السفر_والتدريب[],,1),0),MATCH(فروق_السفر_والتدريب[[#Headers],[أغسطس]],خطة_السفر_والتدريب[#Headers],0))-INDEX(التدريب_والسفر_الفعليين[],MATCH(INDEX(فروق_السفر_والتدريب[],ROW()-ROW(فروق_السفر_والتدريب[[#Headers],[أغسطس]]),1),INDEX(خطة_السفر_والتدريب[],,1),0),MATCH(فروق_السفر_والتدريب[[#Headers],[أغسطس]],التدريب_والسفر_الفعليين[#Headers],0))","v":{"v":2000,"d":"ر.س.‏ 2,000.00"}},{"$f":"INDEX(خطة_السفر_والتدريب[],MATCH(INDEX(فروق_السفر_والتدريب[],ROW()-ROW(فروق_السفر_والتدريب[[#Headers],[سبتمبر]]),1),INDEX(خطة_السفر_والتدريب[],,1),0),MATCH(فروق_السفر_والتدريب[[#Headers],[سبتمبر]],خطة_السفر_والتدريب[#Headers],0))-INDEX(التدريب_والسفر_الفعليين[],MATCH(INDEX(فروق_السفر_والتدريب[],ROW()-ROW(فروق_السفر_والتدريب[[#Headers],[سبتمبر]]),1),INDEX(خطة_السفر_والتدريب[],,1),0),MATCH(فروق_السفر_والتدريب[[#Headers],[سبتمبر]],التدريب_والسفر_الفعليين[#Headers],0))","v":{"v":2000,"d":"ر.س.‏ 2,000.00"}},{"$f":"INDEX(خطة_السفر_والتدريب[],MATCH(INDEX(فروق_السفر_والتدريب[],ROW()-ROW(فروق_السفر_والتدريب[[#Headers],[أكتوبر]]),1),INDEX(خطة_السفر_والتدريب[],,1),0),MATCH(فروق_السفر_والتدريب[[#Headers],[أكتوبر]],خطة_السفر_والتدريب[#Headers],0))-INDEX(التدريب_والسفر_الفعليين[],MATCH(INDEX(فروق_السفر_والتدريب[],ROW()-ROW(فروق_السفر_والتدريب[[#Headers],[أكتوبر]]),1),INDEX(خطة_السفر_والتدريب[],,1),0),MATCH(فروق_السفر_والتدريب[[#Headers],[أكتوبر]],التدريب_والسفر_الفعليين[#Headers],0))","v":{"v":2000,"d":"ر.س.‏ 2,000.00"}},{"$f":"INDEX(خطة_السفر_والتدريب[],MATCH(INDEX(فروق_السفر_والتدريب[],ROW()-ROW(فروق_السفر_والتدريب[[#Headers],[نوفمبر]]),1),INDEX(خطة_السفر_والتدريب[],,1),0),MATCH(فروق_السفر_والتدريب[[#Headers],[نوفمبر]],خطة_السفر_والتدريب[#Headers],0))-INDEX(التدريب_والسفر_الفعليين[],MATCH(INDEX(فروق_السفر_والتدريب[],ROW()-ROW(فروق_السفر_والتدريب[[#Headers],[نوفمبر]]),1),INDEX(خطة_السفر_والتدريب[],,1),0),MATCH(فروق_السفر_والتدريب[[#Headers],[نوفمبر]],التدريب_والسفر_الفعليين[#Headers],0))","v":{"v":2000,"d":"ر.س.‏ 2,000.00"}},{"$f":"INDEX(خطة_السفر_والتدريب[],MATCH(INDEX(فروق_السفر_والتدريب[],ROW()-ROW(فروق_السفر_والتدريب[[#Headers],[ديسمبر]]),1),INDEX(خطة_السفر_والتدريب[],,1),0),MATCH(فروق_السفر_والتدريب[[#Headers],[ديسمبر]],خطة_السفر_والتدريب[#Headers],0))-INDEX(التدريب_والسفر_الفعليين[],MATCH(INDEX(فروق_السفر_والتدريب[],ROW()-ROW(فروق_السفر_والتدريب[[#Headers],[ديسمبر]]),1),INDEX(خطة_السفر_والتدريب[],,1),0),MATCH(فروق_السفر_والتدريب[[#Headers],[ديسمبر]],التدريب_والسفر_الفعليين[#Headers],0))","v":{"v":2000,"d":"ر.س.‏ 2,000.00"}},{"$f":"SUM(فروق_السفر_والتدريب[[#This Row],[يناير]:[ديسمبر]])","v":{"v":13700,"d":"ر.س.‏ 13,700.00"}}]
[null,"الإجمالي الفرعي",{"$f":"SUBTOTAL(109,فروق_السفر_والتدريب[يناير])","v":{"v":1200,"d":"ر.س.‏ 1,200.00"}},{"$f":"SUBTOTAL(109,فروق_السفر_والتدريب[فبراير])","v":{"v":-600,"d":"ر.س.‏ 600.00-"}},{"$f":"SUBTOTAL(109,فروق_السفر_والتدريب[مارس])","v":{"v":1200,"d":"ر.س.‏ 1,200.00"}},{"$f":"SUBTOTAL(109,فروق_السفر_والتدريب[أبريل])","v":{"v":1200,"d":"ر.س.‏ 1,200.00"}},{"$f":"SUBTOTAL(109,فروق_السفر_والتدريب[مايو])","v":{"v":2000,"d":"ر.س.‏ 2,000.00"}},{"$f":"SUBTOTAL(109,فروق_السفر_والتدريب[يونيو])","v":{"v":-2300,"d":"ر.س.‏ 2,300.00-"}},{"$f":"SUBTOTAL(109,فروق_السفر_والتدريب[يوليو])","v":{"v":4000,"d":"ر.س.‏ 4,000.00"}},{"$f":"SUBTOTAL(109,فروق_السفر_والتدريب[أغسطس])","v":{"v":4000,"d":"ر.س.‏ 4,000.00"}},{"$f":"SUBTOTAL(109,فروق_السفر_والتدريب[سبتمبر])","v":{"v":4000,"d":"ر.س.‏ 4,000.00"}},{"$f":"SUBTOTAL(109,فروق_السفر_والتدريب[أكتوبر])","v":{"v":4000,"d":"ر.س.‏ 4,000.00"}},{"$f":"SUBTOTAL(109,فروق_السفر_والتدريب[نوفمبر])","v":{"v":4000,"d":"ر.س.‏ 4,000.00"}},{"$f":"SUBTOTAL(109,فروق_السفر_والتدريب[ديسمبر])","v":{"v":4000,"d":"ر.س.‏ 4,000.00"}},{"$f":"SUBTOTAL(109,فروق_السفر_والتدريب[السنة])","v":{"v":26700,"d":"ر.س.‏ 26,700.00"}}]
[]
["يتم حساب \"فروق المصروفات\" تلقائياً في الجدول \"إجمالي الفرق\" بدءاً من الخلية الموجودة على اليسار.","الإجماليات","يناير","فبراير","مارس","أبريل","مايو","يونيو","يوليو","أغسطس","سبتمبر","أكتوبر","نوفمبر","ديسمبر","السنة"]
[null,"المصروفات الفعلية الشهرية",{"$f":"فروق_السفر_والتدريب[[#Totals],[يناير]]+فروق_التسويق[[#Totals],[يناير]]+فروق_المكتب[[#Totals],[يناير]]+فروق_المصروفات[[#Totals],[يناير]]","v":{"v":1738,"d":"ر.س.‏ 1,738.00"}},{"$f":"فروق_السفر_والتدريب[[#Totals],[فبراير]]+فروق_التسويق[[#Totals],[فبراير]]+فروق_المكتب[[#Totals],[فبراير]]+فروق_المصروفات[[#Totals],[فبراير]]","v":{"v":-984,"d":"ر.س.‏ 984.00-"}},{"$f":"فروق_السفر_والتدريب[[#Totals],[مارس]]+فروق_التسويق[[#Totals],[مارس]]+فروق_المكتب[[#Totals],[مارس]]+فروق_المصروفات[[#Totals],[مارس]]","v":{"v":1255,"d":"ر.س.‏ 1,255.00"}},{"$f":"فروق_السفر_والتدريب[[#Totals],[أبريل]]+فروق_التسويق[[#Totals],[أبريل]]+فروق_المكتب[[#Totals],[أبريل]]+فروق_المصروفات[[#Totals],[أبريل]]","v":{"v":301,"d":"ر.س.‏ 301.00"}},{"$f":"فروق_السفر_والتدريب[[#Totals],[مايو]]+فروق_التسويق[[#Totals],[مايو]]+فروق_المكتب[[#Totals],[مايو]]+فروق_المصروفات[[#Totals],[مايو]]","v":{"v":1440,"d":"ر.س.‏ 1,440.00"}},{"$f":"فروق_السفر_والتدريب[[#Totals],[يونيو]]+فروق_التسويق[[#Totals],[يونيو]]+فروق_المكتب[[#Totals],[يونيو]]+فروق_المصروفات[[#Totals],[يونيو]]","v":{"v":-3744,"d":"ر.س.‏ 3,744.00-"}},{"$f":"فروق_السفر_والتدريب[[#Totals],[يوليو]]+فروق_التسويق[[#Totals],[يوليو]]+فروق_المكتب[[#Totals],[يوليو]]+فروق_المصروفات[[#Totals],[يوليو]]","v":{"v":134695,"d":"ر.س.‏ 134,695.00"}},{"$f":"فروق_السفر_والتدريب[[#Totals],[أغسطس]]+فروق_التسويق[[#Totals],[أغسطس]]+فروق_المكتب[[#Totals],[أغسطس]]+فروق_المصروفات[[#Totals],[أغسطس]]","v":{"v":138918,"d":"ر.س.‏ 138,918.00"}},{"$f":"فروق_السفر_والتدريب[[#Totals],[سبتمبر]]+فروق_التسويق[[#Totals],[سبتمبر]]+فروق_المكتب[[#Totals],[سبتمبر]]+فروق_المصروفات[[#Totals],[سبتمبر]]","v":{"v":135918,"d":"ر.س.‏ 135,918.00"}},{"$f":"فروق_السفر_والتدريب[[#Totals],[أكتوبر]]+فروق_التسويق[[#Totals],[أكتوبر]]+فروق_المكتب[[#Totals],[أكتوبر]]+فروق_المصروفات[[#Totals],[أكتوبر]]","v":{"v":140918,"d":"ر.س.‏ 140,918.00"}},{"$f":"فروق_السفر_والتدريب[[#Totals],[نوفمبر]]+فروق_التسويق[[#Totals],[نوفمبر]]+فروق_المكتب[[#Totals],[نوفمبر]]+فروق_المصروفات[[#Totals],[نوفمبر]]","v":{"v":136218,"d":"ر.س.‏ 136,218.00"}},{"$f":"فروق_السفر_والتدريب[[#Totals],[ديسمبر]]+فروق_التسويق[[#Totals],[ديسمبر]]+فروق_المكتب[[#Totals],[ديسمبر]]+فروق_المصروفات[[#Totals],[ديسمبر]]","v":{"v":140018,"d":"ر.س.‏ 140,018.00"}},{"$f":"فروق_السفر_والتدريب[[#Totals],[السنة]]+فروق_التسويق[[#Totals],[السنة]]+فروق_المكتب[[#Totals],[السنة]]+فروق_المصروفات[[#Totals],[السنة]]","v":{"v":826691,"d":"ر.س.‏ 826,691.00"}}]
[null,"إجمالي المصروفات الفعلية",{"$f":"SUM($C$36:C36)","v":{"v":1738,"d":"ر.س.‏ 1,738.00"}},{"$f":"SUM($C$36:D36)","v":{"v":754,"d":"ر.س.‏ 754.00"}},{"$f":"SUM($C$36:E36)","v":{"v":2009,"d":"ر.س.‏ 2,009.00"}},{"$f":"SUM($C$36:F36)","v":{"v":2310,"d":"ر.س.‏ 2,310.00"}},{"$f":"SUM($C$36:G36)","v":{"v":3750,"d":"ر.س.‏ 3,750.00"}},{"$f":"SUM($C$36:H36)","v":{"v":6,"d":"ر.س.‏ 6.00"}},{"$f":"SUM($C$36:I36)","v":{"v":134701,"d":"ر.س.‏ 134,701.00"}},{"$f":"SUM($C$36:J36)","v":{"v":273619,"d":"ر.س.‏ 273,619.00"}},{"$f":"SUM($C$36:K36)","v":{"v":409537,"d":"ر.س.‏ 409,537.00"}},{"$f":"SUM($C$36:L36)","v":{"v":550455,"d":"ر.س.‏ 550,455.00"}},{"$f":"SUM($C$36:M36)","v":{"v":686673,"d":"ر.س.‏ 686,673.00"}},{"$f":"SUM($C$36:N36)","v":{"v":826691,"d":"ر.س.‏ 826,691.00"}}]

{"sheet":"تحليل المصروفات","index":4,"n_rows":14,"n_cols":16,"rows_kept":14,"merged":[[1,1,2,3],[1,5,1,6],[2,4,2,6],[11,1,11,2],[11,3,11,5],[13,1,36,5]]}
["يتم تحديث \"الخطة السنوية\" و\"المصروفات الفعلية\" و\"فروق المصروفات\" و\"نسبة الفرق\" تلقائياً لكل \"فئة مصروفات\" في ورقة العمل هذه. توجد تعليمات مفيدة حول كيفية استخدام ورقة العمل هذه في الخلايا الموجودة في هذا العمود. السهم لأسفل لبدء الاستخدام. ",{"$nulls":5}," ",{"$nulls":8}," "]
["يتم تحديث اسم الشركة تلقائياً في الخلية الموجودة على اليسار. أدخل \"الشعار\" في الخلية F2.",{"$f":"'المصروفات المخططة'!B2:D3","v":"اسم الشركة"},{"$nulls":3},"يوجد شعار العنصر النائب في هذه الخلية."]
["يوجد عنوان ورقة العمل في الخلية E3. توجد الإرشادات التالية في الخلية A5.",{"$nulls":3},{"$f":"عنوان_ورقة_العمل","v":"تقديرات المصروفات التفصيلية"}]
[]
["يتم حساب \"المصروفات المخططة\" و\"المصروفات الفعلية\" و\"فرق المصروفات\" و\"نسبة الفرق\" تلقائياً في الجدول \"التحليل\" بدءاً من الخلية الموجودة على اليسار. توجد الإرشادات التالية في الخلية A12.","فئة المصروفات","المصروفات المخططة","المصروفات الفعلية","فروق المصروفات","نسبة الفرق"]
[null,"تكاليف الموظفين",{"$f":"خطة_الموظفين[[#Totals],[السنة]]","v":{"v":1355090,"d":"ر.س.‏ 1,355,090.00"}},{"$f":"تكاليف_الموظفين_الفعلية[[#Totals],[السنة]]","v":{"v":659130,"d":"ر.س.‏ 659,130.00"}},{"$f":"C6-D6","v":{"v":695960,"d":"ر.س.‏ 695,960.00"}},{"$f":"E6/C6","v":{"v":0.5135895032802249,"d":"51%"}}]
[null,{"$f":"'المصروفات المخططة'!B10","v":"تكاليف المكتب"},{"$f":"خطة_المكتب[[#Totals],[السنة]]","v":{"v":138740,"d":"ر.س.‏ 138,740.00"}},{"$f":"المكتب_الفعلي[[#Totals],[السنة]]","v":{"v":69350,"d":"ر.س.‏ 69,350.00"}},{"$f":"C7-D7","v":{"v":69390,"d":"ر.س.‏ 69,390.00"}},{"$f":"E7/C7","v":{"v":0.5001441545336601,"d":"50%"}}]
[null,{"$f":"'المصروفات المخططة'!B21","v":"تكاليف التسويق"},{"$f":"خطة_التسويق[[#Totals],[السنة]]","v":{"v":67800,"d":"ر.س.‏ 67,800.00"}},{"$f":"التسويق_الفعلي[[#Totals],[السنة]]","v":{"v":33159,"d":"ر.س.‏ 33,159.00"}},{"$f":"C8-D8","v":{"v":34641,"d":"ر.س.‏ 34,641.00"}},{"$f":"E8/C8","v":{"v":0.510929203539823,"d":"51%"}}]
[null,{"$f":"'المصروفات المخططة'!B30","v":"التدريب/السفر"},{"$f":"خطة_السفر_والتدريب[[#Totals],[السنة]]","v":{"v":48000,"d":"ر.س.‏ 48,000.00"}},{"$f":"التدريب_والسفر_الفعليين[[#Totals],[السنة]]","v":{"v":21300,"d":"ر.س.‏ 21,300.00"}},{"$f":"C9-D9","v":{"v":26700,"d":"ر.س.‏ 26,700.00"}},{"$f":"E9/C9","v":{"v":0.55625,"d":"56%"}}]
[null,{"$f":"'المصروفات المخططة'!B35","v":"الإجماليات"},{"$f":"'المصروفات المخططة'!O36","v":{"v":1609630,"d":"ر.س.‏ 1,609,630.00"}},{"$f":"'المصروفات الفعلية'!O36","v":{"v":782939,"d":"ر.س.‏ 782,939.00"}},{"$f":"C10-D10","v":{"v":826691,"d":"ر.س.‏ 826,691.00"}},{"$f":"E10/C10","v":{"v":0.5135907009685455,"d":"51%"}}]
[]
["يوجد المخطط الدائري \"المصروفات المخططة\" في الخلية الموجودة على اليسار والمخطط الدائري \"المصروفات الفعلية\" في الخلية D12. توجد الإرشادات التالية في الخلية A14.","يوجد المخطط الدائري الذي يعرض المصروفات المخططة في الفئات المختلفة في هذه الخلية.",null,"يوجد المخطط الدائري الذي يعرض المصروفات المستحقة الفعلية في الفئات المختلفة في هذه الخلية."]
[]
["يوجد المخطط الذي يعرض \"المخططة\" و\"الفعلية\" و\"الفرق\" في \"المصروفات الشهرية\" في الخلية الموجودة على اليسار."]